Body_Code,Body_Name,Service,GL Code,GL Code Desc,Posting Date,Doc Number,Doc Net Amount,Supplier Name
http://statistics.data.gov.uk/id/local-authority/38,Oxfordshire County Council,COMM DRAWDOWN FUNDNG,8102,Payments to main contractor,26/03/2020,2200752149,"-67,583.41",Skanska Construction UK Ltd Sp
http://statistics.data.gov.uk/id/local-authority/38,Oxfordshire County Council,ETMS,4861,Hired and Contracted Services,11/03/2020,2200746328,"-51,289.97",HAS TECHNOLOGY LTD
http://statistics.data.gov.uk/id/local-authority/38,Oxfordshire County Council,ETMS,4861,Hired and Contracted Services,16/03/2020,2200748150,"-51,289.97",HAS TECHNOLOGY LTD
http://statistics.data.gov.uk/id/local-authority/38,Oxfordshire County Council,COMM DRAWDOWN FUNDNG,8350,Furn. & Equip. costing 6000 or more,02/03/2020,2200742216,"-45,815.00",Externiture Ltd
http://statistics.data.gov.uk/id/local-authority/38,Oxfordshire County Council,COMM DRAWDOWN FUNDNG,8102,Payments to main contractor,26/03/2020,2200752156,"-41,727.18",Skanska Construction UK Ltd Sp
http://statistics.data.gov.uk/id/local-authority/38,Oxfordshire County Council,COMM DRAWDOWN FUNDNG,8004,Design Consultant,11/03/2020,2200746301,"-30,093.93",AECOM Infrastructure & Environment
http://statistics.data.gov.uk/id/local-authority/38,Oxfordshire County Council,ECH Central Costs,5688,,11/03/2020,3110708101,"-28,705.32",Optalis
http://statistics.data.gov.uk/id/local-authority/38,Oxfordshire County Council,COMM DRAWDOWN FUNDNG,8102,Payments to main contractor,26/03/2020,2200751782,"-25,910.87",Skanska Construction UK Ltd Sp
http://statistics.data.gov.uk/id/local-authority/38,Oxfordshire County Council,ICT Operations & Maintenance,5039,ICT Services,02/03/2020,2200741989,"-24,723.36",HEWLETT PACKARD LTD
http://statistics.data.gov.uk/id/local-authority/38,Oxfordshire County Council,Support at Home U65 Learning Disability,5688,,11/03/2020,3110708385,"-24,268.32",Mencap Contracts
http://statistics.data.gov.uk/id/local-authority/38,Oxfordshire County Council,COMM DRAWDOWN FUNDNG,8102,Payments to main contractor,20/03/2020,2200750048,"-24,017.70",Bouygues E&S Infrastructure UK Ltd
http://statistics.data.gov.uk/id/local-authority/38,Oxfordshire County Council,Continuing Care - Care Homes - 65+,5687,,11/03/2020,3110711887,"-22,350.87",SANCTUARY CARE LTD
http://statistics.data.gov.uk/id/local-authority/38,Oxfordshire County Council,Care Homes - Over 65 Physical Sypport,5686,,11/03/2020,3110709189,"-19,362.87",Orders of St John
http://statistics.data.gov.uk/id/local-authority/38,Oxfordshire County Council,Support at Home 65+ Learning Disability,5688,,11/03/2020,3110709761,"-17,227.73",H F TRUST LTD
http://statistics.data.gov.uk/id/local-authority/38,Oxfordshire County Council,MAINSTREAM-SECONDARY,7203,Other Miscellaneous Income,19/03/2020,3110716282,"-15,155.00",Stagecoach Services Ltd
http://statistics.data.gov.uk/id/local-authority/38,Oxfordshire County Council,Transformation (general),4835,Management Consultant Fees,26/03/2020,2200751849,"-14,450.00",Penna Plc
http://statistics.data.gov.uk/id/local-authority/38,Oxfordshire County Council,MEADOWBROOK TRANSPT,4330,Transport to School Activities,03/03/2020,3110704180,"-13,204.00",Black and White Cars T/A Banbury Ta
http://statistics.data.gov.uk/id/local-authority/38,Oxfordshire County Council,Care Homes - Over 65 Mental Health,5687,,11/03/2020,3110711841,"-12,925.00",Richmond Letcombe Regis
http://statistics.data.gov.uk/id/local-authority/38,Oxfordshire County Council,Support at Home U65 Learning Disability,5688,,11/03/2020,3110709798,"-12,865.03",H F TRUST LTD
http://statistics.data.gov.uk/id/local-authority/38,Oxfordshire County Council,CHC Fast Track - Care Homes - Over 65,5687,,11/03/2020,3110711639,"-12,357.86",The Albany Care Home
http://statistics.data.gov.uk/id/local-authority/38,Oxfordshire County Council,Care Homes - Under 65 MH - OBC Contract,5686,,11/03/2020,3110710233,"-11,992.86",Edenplace Ltd
http://statistics.data.gov.uk/id/local-authority/38,Oxfordshire County Council,MEADOWBROOK TRANSPT,4330,Transport to School Activities,03/03/2020,3110704181,"-11,710.00",Black and White Cars T/A Banbury Ta
http://statistics.data.gov.uk/id/local-authority/38,Oxfordshire County Council,Continuing Care - Care Homes - 65+,5687,,11/03/2020,3110710744,"-10,853.71",Green Pastures Christian NH
http://statistics.data.gov.uk/id/local-authority/38,Oxfordshire County Council,Support at Home U65 Learning Disability,5688,,11/03/2020,3110709595,"-9,375.26",ADVANCE HOUSING & SUPPORT LTD
http://statistics.data.gov.uk/id/local-authority/38,Oxfordshire County Council,Continuing Care - Care Homes - 65+,5687,,11/03/2020,3110711273,"-8,914.29",Huntercombe Hall Ltd
http://statistics.data.gov.uk/id/local-authority/38,Oxfordshire County Council,Care Homes - Over 65 Physical Sypport,5687,,11/03/2020,3110712415,"-8,914.29",The Triangle Nursing Home
http://statistics.data.gov.uk/id/local-authority/38,Oxfordshire County Council,CHC Fast Track - Care Homes - Over 65,5687,,11/03/2020,3110710579,"-8,750.00",GCH (St Katherines) Ltd
http://statistics.data.gov.uk/id/local-authority/38,Oxfordshire County Council,Care Homes - Over 65 Physical Sypport,5687,,11/03/2020,3110709156,"-8,343.05",ACER HEALTHCARE LTD
http://statistics.data.gov.uk/id/local-authority/38,Oxfordshire County Council,CHC Fast Track - Care Homes - Over 65,5687,,11/03/2020,3110712040,"-8,328.58",Stowford House
http://statistics.data.gov.uk/id/local-authority/38,Oxfordshire County Council,COMM DRAWDOWN FUNDNG,8004,Design Consultant,18/03/2020,2200748925,"-7,480.00",PETER BRETT ASSOCIATES LLP
http://statistics.data.gov.uk/id/local-authority/38,Oxfordshire County Council,Care Homes - Over 65 Leaning Disability,5686,,11/03/2020,3110711938,"-7,464.28",The Shrublands Centre
http://statistics.data.gov.uk/id/local-authority/38,Oxfordshire County Council,Care Homes - Over 65 Physical Sypport,5687,,11/03/2020,3110712053,"-7,228.57",Stowford House
http://statistics.data.gov.uk/id/local-authority/38,Oxfordshire County Council,AGENCY RESID - DISAB,5559,,18/03/2020,2200749389,"-6,435.09",Credo Care Ltd
http://statistics.data.gov.uk/id/local-authority/38,Oxfordshire County Council,COMM DRAWDOWN FUNDNG,8102,Payments to main contractor,26/03/2020,2200752003,"-6,303.58",Skanska Construction UK Ltd Sp
http://statistics.data.gov.uk/id/local-authority/38,Oxfordshire County Council,CHC Fast Track - Care Homes - Over 65,5687,,11/03/2020,3110712544,"-6,250.00",MARIA MALLABAND CARE GROUP
http://statistics.data.gov.uk/id/local-authority/38,Oxfordshire County Council,CHC Fast Track - Care Homes - Over 65,5687,,11/03/2020,3110712425,"-6,071.43",The Triangle Nursing Home
http://statistics.data.gov.uk/id/local-authority/38,Oxfordshire County Council,Care Homes - Over 65 Physical Sypport,5686,,11/03/2020,3110708823,"-5,943.43",Orders of St John
http://statistics.data.gov.uk/id/local-authority/38,Oxfordshire County Council,Care Homes - Over 65 Physical Sypport,5686,,11/03/2020,3110711442,"-5,850.00",Mon Choisy
http://statistics.data.gov.uk/id/local-authority/38,Oxfordshire County Council,Care Homes - Over 65 Physical Sypport,5686,,11/03/2020,3110711261,"-5,774.14",Lincroft Meadow
http://statistics.data.gov.uk/id/local-authority/38,Oxfordshire County Council,Funded Nursing Care  - Over 65,5692,,11/03/2020,3110710667,"-5,487.11",Gracewell Healthcare Ltd
http://statistics.data.gov.uk/id/local-authority/38,Oxfordshire County Council,CHC Fast Track - Care Homes - Over 65,5687,,11/03/2020,3110709266,"-5,400.00",Acacia Lodge Care Home
http://statistics.data.gov.uk/id/local-authority/38,Oxfordshire County Council,Support at Home U65 Learning Disability,5688,,11/03/2020,3110710867,"-5,218.81",Autism at Kingwood Limited
http://statistics.data.gov.uk/id/local-authority/38,Oxfordshire County Council,Care Homes - Over 65 Other Soc Isolation,5686,,11/03/2020,3110708798,"-5,117.14",Orders of St John
http://statistics.data.gov.uk/id/local-authority/38,Oxfordshire County Council,COMM DRAWDOWN FUNDNG,8102,Payments to main contractor,26/03/2020,2200751998,"-4,875.90",Skanska Construction UK Ltd Sp
http://statistics.data.gov.uk/id/local-authority/38,Oxfordshire County Council,Continuing Care - Care Homes - 65+,5687,,11/03/2020,3110709050,"-4,654.04",ACER HEALTHCARE LTD
http://statistics.data.gov.uk/id/local-authority/38,Oxfordshire County Council,Home Improvement Agency,4861,Hired and Contracted Services,11/03/2020,2200746093,"-4,103.43",Mears Home Improvement Ltd
http://statistics.data.gov.uk/id/local-authority/38,Oxfordshire County Council,Support at Home 65+ Physical Support,5686,,11/03/2020,3110708802,"-4,037.14",Orders of St John
http://statistics.data.gov.uk/id/local-authority/38,Oxfordshire County Council,CHC Fast Track - Care Homes - Over 65,5687,,11/03/2020,3110710901,"-4,000.00",Hempton Field Care Home
http://statistics.data.gov.uk/id/local-authority/38,Oxfordshire County Council,GYPSY & TRAVELLER SV,3951,Non System - Electricity,23/03/2020,2200750712,"-3,817.89",NPOWER
http://statistics.data.gov.uk/id/local-authority/38,Oxfordshire County Council,Early Years SEN Funding,5537,Payments to Other Establishments,23/03/2020,3110716419,"-3,795.00",Robin Playgroup
http://statistics.data.gov.uk/id/local-authority/38,Oxfordshire County Council,COMM DRAWDOWN FUNDNG,8102,Payments to main contractor,26/03/2020,2200751987,"-3,689.21",Skanska Construction UK Ltd Sp
http://statistics.data.gov.uk/id/local-authority/38,Oxfordshire County Council,Support at Home U65 Learning Disability,5688,,11/03/2020,3110710835,"-3,626.65",Autism at Kingwood Limited
http://statistics.data.gov.uk/id/local-authority/38,Oxfordshire County Council,Continuing Care - Support at Home - 65+,5691,,31/03/2020,3110722007,"-3,507.14",Redacted Personal Data
http://statistics.data.gov.uk/id/local-authority/38,Oxfordshire County Council,CHC Fast Track - Care Homes - Over 65,5687,,11/03/2020,3110712570,"-3,342.86",MARIA MALLABAND CARE GROUP
http://statistics.data.gov.uk/id/local-authority/38,Oxfordshire County Council,PLACEMENTS- RELEVANT,5558,,25/03/2020,3110719115,"-3,280.00",PCC Community Care
http://statistics.data.gov.uk/id/local-authority/38,Oxfordshire County Council,Care Homes - Over 65 Mental Health,5686,,11/03/2020,3110710333,"-3,278.57",Ferendune Court (Anchor Trust)
http://statistics.data.gov.uk/id/local-authority/38,Oxfordshire County Council,40 THE MOORS,5398,Pocket Money (Paid to Children),24/03/2020,9300046386,"-3,233.89",OCC Thornbury Hse Ass Ctr Cash
http://statistics.data.gov.uk/id/local-authority/38,Oxfordshire County Council,Care Homes - Over 65 Physical Sypport,5687,,11/03/2020,3110712252,"-3,073.25",The Grange Care Centre
http://statistics.data.gov.uk/id/local-authority/38,Oxfordshire County Council,Support at Home U65 Learning Disability,5688,,11/03/2020,3110710888,"-3,007.85",Autism at Kingwood Limited
http://statistics.data.gov.uk/id/local-authority/38,Oxfordshire County Council,RBWM Adoption Support Fund,4859,Medical and Counselling Fees,12/03/2020,2200746740,"-2,940.00",Call Us SW Support Services
http://statistics.data.gov.uk/id/local-authority/38,Oxfordshire County Council,Care Homes - Over 65 Physical Sypport,5687,,11/03/2020,3110709441,"-2,938.04",METHODIST HOMES
http://statistics.data.gov.uk/id/local-authority/38,Oxfordshire County Council,PREMISES,3951,Non System - Electricity,12/03/2020,3110712829,"-2,903.06",NPOWER
http://statistics.data.gov.uk/id/local-authority/38,Oxfordshire County Council,Care Homes - Under 65 Physical Sypport,5687,,11/03/2020,3110711694,"-2,865.71",Vale House
http://statistics.data.gov.uk/id/local-authority/38,Oxfordshire County Council,CHC Fast Track - Care Homes - Over 65,5687,,11/03/2020,3110711390,"-2,842.86",Mill House Nursing Home
http://statistics.data.gov.uk/id/local-authority/38,Oxfordshire County Council,CHC Fast Track - Care Homes - Over 65,5687,,11/03/2020,3110712590,"-2,692.86",Caring Homes Healthcare Group Ltd
http://statistics.data.gov.uk/id/local-authority/38,Oxfordshire County Council,Care Homes - Over 65 Physical Sypport,5686,,11/03/2020,3110708790,"-2,691.14",Orders of St John
http://statistics.data.gov.uk/id/local-authority/38,Oxfordshire County Council,Care Homes - Over 65 Physical Sypport,5686,,11/03/2020,3110708660,"-2,577.71",Orders of St John
http://statistics.data.gov.uk/id/local-authority/38,Oxfordshire County Council,CHC Fast Track - Care Homes - Over 65,5687,,11/03/2020,3110711796,"-2,472.00",SANCTUARY CARE LTD
http://statistics.data.gov.uk/id/local-authority/38,Oxfordshire County Council,Property Cleaning,4070,Cleaning services,18/03/2020,2200749152,"-2,458.33",Parker Contract Cleaning
http://statistics.data.gov.uk/id/local-authority/38,Oxfordshire County Council,Support at Home 65+ Physical Support,5685,B*Cycle tracks,11/03/2020,3110711271,"-2,384.11",Huntercombe Hall Ltd
http://statistics.data.gov.uk/id/local-authority/38,Oxfordshire County Council,Care Homes - Over 65 Physical Sypport,5687,,11/03/2020,3110711654,"-2,241.32",Oxford Beaumont
http://statistics.data.gov.uk/id/local-authority/38,Oxfordshire County Council,,1448,Blackfield Inc & Exp A/c,27/03/2020,3110719600,"-2,131.52",OCC One Time Vendor
http://statistics.data.gov.uk/id/local-authority/38,Oxfordshire County Council,Care Homes - Over 65 Memory & Cognition,5686,,11/03/2020,3110712300,"-2,071.43",Four Seasons (Headington) Ltd
http://statistics.data.gov.uk/id/local-authority/38,Oxfordshire County Council,CHC Fast Track - Care Homes - Over 65,5687,,11/03/2020,3110710362,"-2,061.58",Framland
http://statistics.data.gov.uk/id/local-authority/38,Oxfordshire County Council,CHC Fast Track - Care Homes - Over 65,5687,,11/03/2020,3110711812,"-2,060.00",SANCTUARY CARE LTD
http://statistics.data.gov.uk/id/local-authority/38,Oxfordshire County Council,NURSERY ED FUND,5537,Payments to Other Establishments,04/03/2020,3110704024,"-2,005.50",Bright Horizon Didcot Day Nursery
http://statistics.data.gov.uk/id/local-authority/38,Oxfordshire County Council,,1448,Blackfield Inc & Exp A/c,31/03/2020,3110722018,"-1,984.31",OCC One Time Vendor
http://statistics.data.gov.uk/id/local-authority/38,Oxfordshire County Council,Care Homes - Over 65 Physical Sypport,5687,,11/03/2020,3110708582,"-1,943.57",Orders of St John
http://statistics.data.gov.uk/id/local-authority/38,Oxfordshire County Council,Funded Nursing Care  - Over 65,5692,,11/03/2020,3110712182,"-1,892.11",The Close Nursing Home
http://statistics.data.gov.uk/id/local-authority/38,Oxfordshire County Council,,1448,Blackfield Inc & Exp A/c,19/03/2020,3110716322,"-1,847.86",OCC One Time Vendor
http://statistics.data.gov.uk/id/local-authority/38,Oxfordshire County Council,Funded Nursing Care  - Over 65,5692,,11/03/2020,3110712309,"-1,821.15",Four Seasons (Headington) Ltd
http://statistics.data.gov.uk/id/local-authority/38,Oxfordshire County Council,Continuing Care - Care Homes - 65+,5687,,11/03/2020,3110712231,"-1,809.00",The Grange Care Centre
http://statistics.data.gov.uk/id/local-authority/38,Oxfordshire County Council,Support at Home 65+ Physical Support,5686,,11/03/2020,3110708562,"-1,794.29",Orders of St John
http://statistics.data.gov.uk/id/local-authority/38,Oxfordshire County Council,VOIDS/VACANCY COSTS,3945,Rent,11/03/2020,3110708488,"-1,776.33",ADVANCE HOUSING & SUPPORT LTD
http://statistics.data.gov.uk/id/local-authority/38,Oxfordshire County Council,COMM DRAWDOWN FUNDNG,8004,Design Consultant,26/03/2020,2200752122,"-1,739.34",Skanska Construction UK Ltd Sp
http://statistics.data.gov.uk/id/local-authority/38,Oxfordshire County Council,Care Homes - Under 65 Memory & Cognition,5686,,11/03/2020,3110709951,"-1,714.29",Christchurch Court Ltd
http://statistics.data.gov.uk/id/local-authority/38,Oxfordshire County Council,Care Homes - Over 65 Mental Health,5685,B*Cycle tracks,11/03/2020,3110711088,"-1,609.14",Lashbrook House Care Home
http://statistics.data.gov.uk/id/local-authority/38,Oxfordshire County Council,VOIDS/VACANCY COSTS,3945,Rent,11/03/2020,3110708486,"-1,607.57",ADVANCE HOUSING & SUPPORT LTD
http://statistics.data.gov.uk/id/local-authority/38,Oxfordshire County Council,COMM DRAWDOWN FUNDNG,8102,Payments to main contractor,26/03/2020,2200751785,"-1,528.66",Skanska Construction UK Ltd Sp
http://statistics.data.gov.uk/id/local-authority/38,Oxfordshire County Council,Care Homes - Over 65 Physical Sypport,5687,,11/03/2020,3110711416,"-1,512.69",Merryfield Nursing Home
http://statistics.data.gov.uk/id/local-authority/38,Oxfordshire County Council,MEADOWBROOK TRANSPT,4330,Transport to School Activities,26/03/2020,3110719479,"-1,485.00",The Oxfordshire Taxi Company Ltd T/
http://statistics.data.gov.uk/id/local-authority/38,Oxfordshire County Council,Care Homes - Under 65 Physical Sypport,5687,,11/03/2020,3110709426,"-1,467.89",METHODIST HOMES
http://statistics.data.gov.uk/id/local-authority/38,Oxfordshire County Council,AWPU,5537,Payments to Other Establishments,30/03/2020,3110719620,"-1,457.36",Hardwick Community Primary School
http://statistics.data.gov.uk/id/local-authority/38,Oxfordshire County Council,COMM DRAWDOWN FUNDNG,8102,Payments to main contractor,26/03/2020,2200752181,"-1,395.16",Skanska Construction UK Ltd Sp
http://statistics.data.gov.uk/id/local-authority/38,Oxfordshire County Council,Care Homes - Over 65 Physical Sypport,5686,,11/03/2020,3110710224,"-1,335.00",Coate Water Care
http://statistics.data.gov.uk/id/local-authority/38,Oxfordshire County Council,Funded Nursing Care  - Over 65,5692,,11/03/2020,3110711620,"-1,300.83",The Albany Care Home
http://statistics.data.gov.uk/id/local-authority/38,Oxfordshire County Council,COMM DRAWDOWN FUNDNG,8004,Design Consultant,18/03/2020,2200748922,"-1,291.66",PETER BRETT ASSOCIATES LLP
http://statistics.data.gov.uk/id/local-authority/38,Oxfordshire County Council,Care Homes - Over 65 Physical Sypport,5686,,11/03/2020,3110708937,"-1,288.86",Orders of St John
http://statistics.data.gov.uk/id/local-authority/38,Oxfordshire County Council,SPECIAL GUARDIANSHIP,5661,B*Carriageway pre surf. dressing patchin,10/03/2020,3110707608,"-1,276.54",Redacted Personal Data
http://statistics.data.gov.uk/id/local-authority/38,Oxfordshire County Council,ECH Central Costs,5688,,11/03/2020,3110708185,"-1,238.48",Orders of St John Care Trust
http://statistics.data.gov.uk/id/local-authority/38,Oxfordshire County Council,FOSTERING MAIN,5549,B*Fostering Allowance - Regulation 38,03/03/2020,3110705089,"-1,236.33",Redacted Personal Data
http://statistics.data.gov.uk/id/local-authority/38,Oxfordshire County Council,Care Homes - Over 65 Physical Sypport,5687,,11/03/2020,3110712526,"-1,221.43",MARIA MALLABAND CARE GROUP
http://statistics.data.gov.uk/id/local-authority/38,Oxfordshire County Council,FOSTERING MAIN,5549,B*Fostering Allowance - Regulation 38,03/03/2020,3110704661,"-1,209.24",Redacted Personal Data
http://statistics.data.gov.uk/id/local-authority/38,Oxfordshire County Council,Care Homes - Over 65 Physical Sypport,5685,B*Cycle tracks,11/03/2020,3110712250,"-1,191.88",The Grange Care Centre
http://statistics.data.gov.uk/id/local-authority/38,Oxfordshire County Council,Care Homes - Over 65 Physical Sypport,5686,,11/03/2020,3110708681,"-1,189.71",Orders of St John
http://statistics.data.gov.uk/id/local-authority/38,Oxfordshire County Council,Funded Nursing Care  - Over 65,5692,,11/03/2020,3110710998,"-1,182.57",Banbury Heights Nursing Home
http://statistics.data.gov.uk/id/local-authority/38,Oxfordshire County Council,Funded Nursing Care  - Over 65,5692,,11/03/2020,3110709375,"-1,182.57",Bridge House
http://statistics.data.gov.uk/id/local-authority/38,Oxfordshire County Council,Support at Home 65+ Physical Support,5681,,11/03/2020,3110709018,"-1,090.57",OSJ Contract - Stirlings
http://statistics.data.gov.uk/id/local-authority/38,Oxfordshire County Council,Funded Nursing Care  - Over 65,5692,,11/03/2020,3110711269,"-1,087.96",Huntercombe Hall Ltd
http://statistics.data.gov.uk/id/local-authority/38,Oxfordshire County Council,Care Homes - Over 65 Memory & Cognition,5686,,11/03/2020,3110709007,"-1,076.57",Orders of St John
http://statistics.data.gov.uk/id/local-authority/38,Oxfordshire County Council,Support at Home U65 Learning Disability,5690,,11/03/2020,3110708227,"-1,072.46",H F TRUST LTD
http://statistics.data.gov.uk/id/local-authority/38,Oxfordshire County Council,ECH Central Costs,5688,,11/03/2020,3110708180,"-1,060.97",Orders of St John Care Trust
http://statistics.data.gov.uk/id/local-authority/38,Oxfordshire County Council,COMM DRAWDOWN FUNDNG,8102,Payments to main contractor,26/03/2020,2200751794,"-1,057.28",Skanska Construction UK Ltd Sp
http://statistics.data.gov.uk/id/local-authority/38,Oxfordshire County Council,Support at Home 65+ Physical Support,5686,,11/03/2020,3110709166,"-1,040.57",Orders of St John
http://statistics.data.gov.uk/id/local-authority/38,Oxfordshire County Council,Continuing Care - Support at Home - 65+,5691,,23/03/2020,3110716790,"-1,033.43",Orders of St John Care Trust
http://statistics.data.gov.uk/id/local-authority/38,Oxfordshire County Council,ECH Central Costs,5688,,11/03/2020,3110708175,-997.37,Orders of St John Care Trust
http://statistics.data.gov.uk/id/local-authority/38,Oxfordshire County Council,Support at Home 65+ Physical Support,5681,,11/03/2020,3110708237,-991.43,Orders of St John
http://statistics.data.gov.uk/id/local-authority/38,Oxfordshire County Council,Care Homes - Over 65 Physical Sypport,5685,B*Cycle tracks,11/03/2020,3110708477,-967.88,Orders of St John
http://statistics.data.gov.uk/id/local-authority/38,Oxfordshire County Council,Care Homes - Over 65 Mental Health,5686,,11/03/2020,3110712022,-950,St Andrews Residential Care Home L
http://statistics.data.gov.uk/id/local-authority/38,Oxfordshire County Council,ECH Central Costs,5688,,11/03/2020,3110708170,-921.08,Orders of St John Care Trust
http://statistics.data.gov.uk/id/local-authority/38,Oxfordshire County Council,FOSTERING MAIN,5541,B*Foster Parents,03/03/2020,3110705004,-897,Redacted Personal Data
http://statistics.data.gov.uk/id/local-authority/38,Oxfordshire County Council,FOSTERING MAIN,5541,B*Foster Parents,03/03/2020,3110705007,-897,Redacted Personal Data
http://statistics.data.gov.uk/id/local-authority/38,Oxfordshire County Council,Support at Home U65 Memory & Cognition,5696,,25/03/2020,3110717975,-892.04,Orders of St John Care Trust
http://statistics.data.gov.uk/id/local-authority/38,Oxfordshire County Council,OPPB INTERMED'T CARE,5687,,11/03/2020,3110711778,-889.29,SANCTUARY CARE LTD
http://statistics.data.gov.uk/id/local-authority/38,Oxfordshire County Council,Care Homes - Over 65 Physical Sypport,5685,B*Cycle tracks,11/03/2020,3110711886,-868.88,Ridgeway Rise Care Limited
http://statistics.data.gov.uk/id/local-authority/38,Oxfordshire County Council,Funded Nursing Care  - Over 65,5692,,11/03/2020,3110712072,-864.46,St. Lukes Oxford - Free Nursing
http://statistics.data.gov.uk/id/local-authority/38,Oxfordshire County Council,Care Packages & Placements- LD - OCC,5227,Other Transport Arrangements,31/03/2020,3110722014,-862.5,Monarch Oxford
http://statistics.data.gov.uk/id/local-authority/38,Oxfordshire County Council,Care Homes - Over 65 Physical Sypport,5686,,11/03/2020,3110708301,-809.42,Orders of St John
http://statistics.data.gov.uk/id/local-authority/38,Oxfordshire County Council,Care Homes - Over 65 Physical Sypport,5686,,11/03/2020,3110712320,-797.14,METHODIST HOMES
http://statistics.data.gov.uk/id/local-authority/38,Oxfordshire County Council,SAFETY INSP SUPPORT,5526,Payments to Private Contractors,26/03/2020,2200751833,-794.01,Skanska Construction UK Ltd Sp
http://statistics.data.gov.uk/id/local-authority/38,Oxfordshire County Council,FOSTERING MAIN,5549,B*Fostering Allowance - Regulation 38,03/03/2020,3110704893,-788.57,Redacted Personal Data
http://statistics.data.gov.uk/id/local-authority/38,Oxfordshire County Council,FOSTERING MAIN,5549,B*Fostering Allowance - Regulation 38,03/03/2020,3110704895,-788.57,Redacted Personal Data
http://statistics.data.gov.uk/id/local-authority/38,Oxfordshire County Council,Funded Nursing Care  - Over 65,5692,,11/03/2020,3110711750,-780.5,Penhurst Gardens
http://statistics.data.gov.uk/id/local-authority/38,Oxfordshire County Council,CHC Fast Track - Care Homes - Over 65,5687,,11/03/2020,3110709524,-742.86,CARE UK COMMUNITY PARTNERSHIPS LIMI
http://statistics.data.gov.uk/id/local-authority/38,Oxfordshire County Council,CHC Fast Track - Care Homes - Over 65,5687,,11/03/2020,3110709527,-742.86,CARE UK COMMUNITY PARTNERSHIPS LIMI
http://statistics.data.gov.uk/id/local-authority/38,Oxfordshire County Council,Funded Nursing Care  - Over 65,5692,,11/03/2020,3110712525,-733.19,MARIA MALLABAND CARE GROUP
http://statistics.data.gov.uk/id/local-authority/38,Oxfordshire County Council,Care Homes - Over 65 Physical Sypport,5685,B*Cycle tracks,11/03/2020,3110711733,-733.19,Prime Life Ltd
http://statistics.data.gov.uk/id/local-authority/38,Oxfordshire County Council,LIBRARY COLLECTIONS,4539,"Books, DVDs and CDs",20/03/2020,3110716338,-720.95,ASKEWS & HOLTS LIBRARY SERVICES LTD
http://statistics.data.gov.uk/id/local-authority/38,Oxfordshire County Council,LIBRARY COLLECTIONS,4539,"Books, DVDs and CDs",20/03/2020,3110716339,-711.04,ASKEWS & HOLTS LIBRARY SERVICES LTD
http://statistics.data.gov.uk/id/local-authority/38,Oxfordshire County Council,Marketing,5086,Other Communications,03/03/2020,2200742641,-700,EPIC Media Services
http://statistics.data.gov.uk/id/local-authority/38,Oxfordshire County Council,FOSTERING MAIN,5532,B*Fostering - Loan Equipment,31/03/2020,3110720441,-691.43,Redacted Personal Data
http://statistics.data.gov.uk/id/local-authority/38,Oxfordshire County Council,Mainstream Res,5558,,25/03/2020,3110719060,-685.71,Calcot Services For Children
http://statistics.data.gov.uk/id/local-authority/38,Oxfordshire County Council,AWPU,4940,Other Services,30/03/2020,3110719621,-685.38,Hardwick Community Primary School
http://statistics.data.gov.uk/id/local-authority/38,Oxfordshire County Council,Support at Home 65+ Physical Support,5689,,03/03/2020,3110704891,-682.19,Caremark (West Oxfordshire & Cherwe
http://statistics.data.gov.uk/id/local-authority/38,Oxfordshire County Council,Care Homes - Over 65 Mental Health,5686,,11/03/2020,3110712265,-678.57,The Grange - Goring Care Homes
http://statistics.data.gov.uk/id/local-authority/38,Oxfordshire County Council,Support at Home 65+ Physical Support,5686,,11/03/2020,3110708139,-671,Orders of St John
http://statistics.data.gov.uk/id/local-authority/38,Oxfordshire County Council,COMM DRAWDOWN FUNDNG,8004,Design Consultant,26/03/2020,2200751784,-657.41,Skanska Construction UK Ltd Sp
http://statistics.data.gov.uk/id/local-authority/38,Oxfordshire County Council,Care Homes Under 65 Other Soc Isolation,5686,,11/03/2020,3110712509,-618.36,Wells Road Care Home
http://statistics.data.gov.uk/id/local-authority/38,Oxfordshire County Council,Care Homes - Over 65 Physical Sypport,5685,B*Cycle tracks,11/03/2020,3110712224,-601.31,THE COTTAGE NURSING HOME
http://statistics.data.gov.uk/id/local-authority/38,Oxfordshire County Council,LEAVING CARE CITY 2,5415,Residential Activities,27/03/2020,2200752589,-600,Redacted Personal Data
http://statistics.data.gov.uk/id/local-authority/38,Oxfordshire County Council,Care Homes - Over 65 Physical Sypport,5686,,11/03/2020,3110708825,-594.86,Orders of St John
http://statistics.data.gov.uk/id/local-authority/38,Oxfordshire County Council,Care Homes - Over 65 Physical Sypport,5686,,11/03/2020,3110709176,-594.86,Orders of St John
http://statistics.data.gov.uk/id/local-authority/38,Oxfordshire County Council,Funded Nursing Care  - Over 65,5692,,11/03/2020,3110711868,-591.29,Richmond Letcombe Regis
http://statistics.data.gov.uk/id/local-authority/38,Oxfordshire County Council,Funded Nursing Care  - Over 65,5692,,11/03/2020,3110712357,-591.29,The Langston
http://statistics.data.gov.uk/id/local-authority/38,Oxfordshire County Council,CHC Fast Track - Sup at Homes - Over 65,5691,,16/03/2020,3110713157,-586.64,Bluebird Care
http://statistics.data.gov.uk/id/local-authority/38,Oxfordshire County Council,Bracknell Adoption Support Fund,4859,Medical and Counselling Fees,10/03/2020,2200745885,-570,Heads & Hearts Ltd
http://statistics.data.gov.uk/id/local-authority/38,Oxfordshire County Council,CENS & SURV NON GRNT,4531,Materials,03/03/2020,2200742736,-570,Intelligent Data (Collection) Ltd
http://statistics.data.gov.uk/id/local-authority/38,Oxfordshire County Council,Funded Nursing Care  - Over 65,5692,,11/03/2020,3110711293,-567.63,Lincroft Meadow
http://statistics.data.gov.uk/id/local-authority/38,Oxfordshire County Council,40 THE MOORS,4685,Clothing and Uniforms,25/03/2020,9300046394,-549.19,OCC Thornbury Hse Ass Ctr Cash
http://statistics.data.gov.uk/id/local-authority/38,Oxfordshire County Council,Funded Nursing Care  - Over 65,5692,,11/03/2020,3110711388,-543.98,Meadow View Nursing Home
http://statistics.data.gov.uk/id/local-authority/38,Oxfordshire County Council,Care Homes - Over 65 Physical Sypport,5686,,11/03/2020,3110708986,-538.29,Orders of St John
http://statistics.data.gov.uk/id/local-authority/38,Oxfordshire County Council,,1320,Childcare Vouchers A/C,20/03/2020,3110716329,-536,Childcare Vouchers Ltd
http://statistics.data.gov.uk/id/local-authority/38,Oxfordshire County Council,NURSERY ED FUND,5537,Payments to Other Establishments,04/03/2020,3110704328,-525.02,Claire Mullee
http://statistics.data.gov.uk/id/local-authority/38,Oxfordshire County Council,Funded Nursing Care  - Over 65,5692,,11/03/2020,3110708899,-520.33,Abbey Crest Nursing Home
http://statistics.data.gov.uk/id/local-authority/38,Oxfordshire County Council,Care Homes - Over 65 Physical Sypport,5687,,11/03/2020,3110709209,-517.86,ACER HEALTHCARE LTD
http://statistics.data.gov.uk/id/local-authority/38,Oxfordshire County Council,Councillors Priorities Fund,4940,Other Services,03/03/2020,3110704113,-500,Hanborough Show
http://statistics.data.gov.uk/id/local-authority/38,Oxfordshire County Council,SEN TRANSPORT,5227,Other Transport Arrangements,24/03/2020,3110716965,500,A2B Castle Cars Ltd
http://statistics.data.gov.uk/id/local-authority/38,Oxfordshire County Council,SEN TRANSPORT,4330,Transport to School Activities,11/03/2020,3110712633,500,Abingdon Taxis FKN Autotaxis
http://statistics.data.gov.uk/id/local-authority/38,Oxfordshire County Council,LAC PUPIL PREMIUM,5537,Payments to Other Establishments,17/03/2020,3110713304,500,Benson C of E Primary School
http://statistics.data.gov.uk/id/local-authority/38,Oxfordshire County Council,LAC PUPIL PREMIUM,5537,Payments to Other Establishments,17/03/2020,3110713306,500,Bishop Stopford School
http://statistics.data.gov.uk/id/local-authority/38,Oxfordshire County Council,MAINSTREAM-PRIMARY,4330,Transport to School Activities,04/03/2020,3110706251,500,Cherwell Cars
http://statistics.data.gov.uk/id/local-authority/38,Oxfordshire County Council,Planned preventative Maintenance,3787,Premises Repairs,18/03/2020,2200749218,500,Cherwell Roofing Limited
http://statistics.data.gov.uk/id/local-authority/38,Oxfordshire County Council,Community Operations Management,3787,Premises Repairs,24/03/2020,2200750830,500,Cherwell Roofing Limited
http://statistics.data.gov.uk/id/local-authority/38,Oxfordshire County Council,Support at Home 65+ Mental Health,5899,Social Care - Direct Payments,17/03/2020,3110714885,500,Redacted Personal Data
http://statistics.data.gov.uk/id/local-authority/38,Oxfordshire County Council,ICT Operations & Maintenance,5039,ICT Services,09/03/2020,2200744804,500,Entec Si Limited
http://statistics.data.gov.uk/id/local-authority/38,Oxfordshire County Council,Central FSS Statutory - Barton,4330,Transport to School Activities,15/03/2020,3110713003,500,Go Green Taxis
http://statistics.data.gov.uk/id/local-authority/38,Oxfordshire County Council,SEN TRANSPORT,4330,Transport to School Activities,15/03/2020,3110713017,500,Go Green Taxis
http://statistics.data.gov.uk/id/local-authority/38,Oxfordshire County Council,FOSTERING TEAM,4861,Hired and Contracted Services,10/03/2020,2200745415,500,Green Light People Solutions
http://statistics.data.gov.uk/id/local-authority/38,Oxfordshire County Council,FOSTERING TEAM,4861,Hired and Contracted Services,10/03/2020,2200745417,500,Green Light People Solutions
http://statistics.data.gov.uk/id/local-authority/38,Oxfordshire County Council,FOSTERING TEAM,4861,Hired and Contracted Services,10/03/2020,2200745418,500,Green Light People Solutions
http://statistics.data.gov.uk/id/local-authority/38,Oxfordshire County Council,FOSTERING TEAM,4861,Hired and Contracted Services,30/03/2020,2200753258,500,Green Light People Solutions
http://statistics.data.gov.uk/id/local-authority/38,Oxfordshire County Council,FOSTERING TEAM,4861,Hired and Contracted Services,30/03/2020,2200753259,500,Green Light People Solutions
http://statistics.data.gov.uk/id/local-authority/38,Oxfordshire County Council,,1441,Uncleared Misc Income Receipts,03/03/2020,3110704112,500,Hanborough Show
http://statistics.data.gov.uk/id/local-authority/38,Oxfordshire County Council,LEAVING CARE CITY 1,3942,Hire of Accommodation and Facilities,12/03/2020,3110712692,500,Redacted Personal Data
http://statistics.data.gov.uk/id/local-authority/38,Oxfordshire County Council,Safeguarding commissioning,5380,"Author, Speaker and Lecturer Fees",04/03/2020,2200742996,500,My Learning Tree Ltd
http://statistics.data.gov.uk/id/local-authority/38,Oxfordshire County Council,LAC PUPIL PREMIUM,5460,Entertainment Expenses,11/03/2020,2200746030,500,Nat Assoc of Virtual School Heads
http://statistics.data.gov.uk/id/local-authority/38,Oxfordshire County Council,MultiCAV,4861,Hired and Contracted Services,06/03/2020,2200744719,500,Nova Modus
http://statistics.data.gov.uk/id/local-authority/38,Oxfordshire County Council,MultiCAV,4861,Hired and Contracted Services,24/03/2020,2200751208,500,Nova Modus
http://statistics.data.gov.uk/id/local-authority/38,Oxfordshire County Council,REGISTRAR,4525,Furniture,12/03/2020,3110712827,500,OCC One Time Vendor
http://statistics.data.gov.uk/id/local-authority/38,Oxfordshire County Council,HIGHWAYS GENERAL,5055,Insurance Costs,12/03/2020,3110712865,500,OCC One Time Vendor
http://statistics.data.gov.uk/id/local-authority/38,Oxfordshire County Council,HIGHWAYS GENERAL,5055,Insurance Costs,12/03/2020,3110712868,500,OCC One Time Vendor
http://statistics.data.gov.uk/id/local-authority/38,Oxfordshire County Council,HIGHWAYS GENERAL,5055,Insurance Costs,19/03/2020,3110716257,500,OCC One Time Vendor
http://statistics.data.gov.uk/id/local-authority/38,Oxfordshire County Council,HIGHWAYS GENERAL,5055,Insurance Costs,24/03/2020,3110716990,500,OCC One Time Vendor
http://statistics.data.gov.uk/id/local-authority/38,Oxfordshire County Council,SCHOOLS H&S,3105,Training related expenditure,31/03/2020,2200753893,500,OCCUPATIONAL SAFETY & HEALTH
http://statistics.data.gov.uk/id/local-authority/38,Oxfordshire County Council,LANDLORD & TENANT,3945,Rent,22/03/2020,3500069489,500,Oxford City Council
http://statistics.data.gov.uk/id/local-authority/38,Oxfordshire County Council,SEN TRANSPORT,4330,Transport to School Activities,25/03/2020,3110718264,500,Oxon Transport Services Ltd
http://statistics.data.gov.uk/id/local-authority/38,Oxfordshire County Council,L&D CORE PROGRAMME,3103,Other Training Courses and Qualification,03/03/2020,2200742791,500,PAM Wellbeing Ltd
http://statistics.data.gov.uk/id/local-authority/38,Oxfordshire County Council,L&D CORE PROGRAMME,3103,Other Training Courses and Qualification,19/03/2020,2200749454,500,PAM Wellbeing Ltd
http://statistics.data.gov.uk/id/local-authority/38,Oxfordshire County Council,Support at Home 65+ Physical Support,5899,Social Care - Direct Payments,17/03/2020,3110715087,500,Purple Conversation Com In Co (DP)
http://statistics.data.gov.uk/id/local-authority/38,Oxfordshire County Council,L&D CORE PROGRAMME,3100,Educational and Vocational Training,04/03/2020,2200742981,500,Reducing the Risk of Domestic Abuse
http://statistics.data.gov.uk/id/local-authority/38,Oxfordshire County Council,SEN TRANSPORT,5227,Other Transport Arrangements,26/03/2020,3110719529,500,The Oxfordshire Taxi Company Ltd T/
http://statistics.data.gov.uk/id/local-authority/38,Oxfordshire County Council,LAC PUPIL PREMIUM,5537,Payments to Other Establishments,17/03/2020,3110713386,500,Walton High
http://statistics.data.gov.uk/id/local-authority/38,Oxfordshire County Council,PLACEMENTS- RELEVANT,5558,,04/03/2020,3110706296,500,Young Heaven Services
http://statistics.data.gov.uk/id/local-authority/38,Oxfordshire County Council,Support at Home 65+ Physical Support,5698,,25/03/2020,3110718598,500.13,Bridges Home Care Ltd
http://statistics.data.gov.uk/id/local-authority/38,Oxfordshire County Council,Support at Home 65+ Physical Support,5698,,25/03/2020,3110719046,500.52,Oxfordshire Crossroads
http://statistics.data.gov.uk/id/local-authority/38,Oxfordshire County Council,Support at Home 65+ Physical Support,5689,,31/03/2020,3110720686,500.59,Allied Health-Services Limited
http://statistics.data.gov.uk/id/local-authority/38,Oxfordshire County Council,MUSEUMS COLLECTIONS,4940,Other Services,12/03/2020,2200746757,501,Donaldson Filtration (GB)
http://statistics.data.gov.uk/id/local-authority/38,Oxfordshire County Council,Support at Home 65+ Mental Health,5689,,03/03/2020,3110705311,501.76,Genuine Carers Ltd
http://statistics.data.gov.uk/id/local-authority/38,Oxfordshire County Council,Support at Home 65+ Physical Support,5689,,31/03/2020,3110721185,501.8,Lifecarers Limited
http://statistics.data.gov.uk/id/local-authority/38,Oxfordshire County Council,COMM DRAWDOWN FUNDNG,8103,Payments to sub contractor,20/03/2020,2200750070,502,ENVIRONMENT AGENCY
http://statistics.data.gov.uk/id/local-authority/38,Oxfordshire County Council,Support at Home U65 Learning Disability,5682,,12/03/2020,3110712821,502.02,The Brandon Trust
http://statistics.data.gov.uk/id/local-authority/38,Oxfordshire County Council,Support at Home 65+ Learning Disability,5899,Social Care - Direct Payments,17/03/2020,3110715112,502.28,Purple Conversation Com In Co (DP)
http://statistics.data.gov.uk/id/local-authority/38,Oxfordshire County Council,Support at Home U65 Physical Support,5899,Social Care - Direct Payments,17/03/2020,3110714728,502.32,Redacted Personal Data
http://statistics.data.gov.uk/id/local-authority/38,Oxfordshire County Council,THORNHILL P & R,4496,Equipment Maintenance Contracts,30/03/2020,2200753344,502.4,Cotswold Security Systems Ltd
http://statistics.data.gov.uk/id/local-authority/38,Oxfordshire County Council,Contingency Home Care,5689,,03/03/2020,3110705740,502.69,Oxford University Hospitals NHS FT
http://statistics.data.gov.uk/id/local-authority/38,Oxfordshire County Council,Support at Home 65+ Physical Support,5696,,04/03/2020,3110706110,503.5,1st Homecare (Oxford) Ltd
http://statistics.data.gov.uk/id/local-authority/38,Oxfordshire County Council,Support at Home U65 Sensory Support,5899,Social Care - Direct Payments,17/03/2020,3110713576,504,Redacted Personal Data
http://statistics.data.gov.uk/id/local-authority/38,Oxfordshire County Council,SEN TRANSPORT,5227,Other Transport Arrangements,25/03/2020,3110718269,504,Oxon Transport Services Ltd
http://statistics.data.gov.uk/id/local-authority/38,Oxfordshire County Council,SEN TRANSPORT,5227,Other Transport Arrangements,25/03/2020,3110718273,504,Oxon Transport Services Ltd
http://statistics.data.gov.uk/id/local-authority/38,Oxfordshire County Council,SEN TRANSPORT,5227,Other Transport Arrangements,25/03/2020,3110718360,504,Oxon Transport Services Ltd
http://statistics.data.gov.uk/id/local-authority/38,Oxfordshire County Council,SEN TRANSPORT,5227,Other Transport Arrangements,25/03/2020,3110718410,504,Oxon Transport Services Ltd
http://statistics.data.gov.uk/id/local-authority/38,Oxfordshire County Council,Support at Home 65+ Physical Support,5899,Social Care - Direct Payments,10/03/2020,3110706977,504,Purple Conversation Com In Co (DP)
http://statistics.data.gov.uk/id/local-authority/38,Oxfordshire County Council,Support at Home U65 MH OBC Contract,5899,Social Care - Direct Payments,17/03/2020,3110714603,504,Purple Conversation Com In Co (DP)
http://statistics.data.gov.uk/id/local-authority/38,Oxfordshire County Council,Support at Home U65 Learning Disability,5899,Social Care - Direct Payments,17/03/2020,3110715289,504,Purple Conversation Com In Co (DP)
http://statistics.data.gov.uk/id/local-authority/38,Oxfordshire County Council,Support at Home 65+ Physical Support,5899,Social Care - Direct Payments,17/03/2020,3110715373,504,Purple Conversation Com In Co (DP)
http://statistics.data.gov.uk/id/local-authority/38,Oxfordshire County Council,Support at Home 65+ Physical Support,5689,,31/03/2020,3110721445,504.09,PLL Care Services
http://statistics.data.gov.uk/id/local-authority/38,Oxfordshire County Council,Support at Home U65 Learning Disability,5696,,25/03/2020,3110717918,504.33,Orders of St John Care Trust
http://statistics.data.gov.uk/id/local-authority/38,Oxfordshire County Council,Contingency Home Care,5689,,03/03/2020,3110705687,505.36,OXFORD HEALTH NHS FOUNDATION TRUST
http://statistics.data.gov.uk/id/local-authority/38,Oxfordshire County Council,COMM DRAWDOWN FUNDNG,8103,Payments to sub contractor,18/03/2020,2200748931,505.6,Sign Sense Consultants
http://statistics.data.gov.uk/id/local-authority/38,Oxfordshire County Council,VOIDS/VACANCY COSTS,3945,Rent,11/03/2020,3110708483,505.72,ADVANCE HOUSING & SUPPORT LTD
http://statistics.data.gov.uk/id/local-authority/38,Oxfordshire County Council,CHC Fast Track - Sup at Homes - Over 65,5691,,03/03/2020,3110704260,506,Sue Ryder
http://statistics.data.gov.uk/id/local-authority/38,Oxfordshire County Council,Support at Home U65 Learning Disability,5682,,12/03/2020,3110712759,506.15,The Brandon Trust
http://statistics.data.gov.uk/id/local-authority/38,Oxfordshire County Council,Support at Home 65+ Physical Support,5698,,25/03/2020,3110718997,506.64,Oxford Private Care
http://statistics.data.gov.uk/id/local-authority/38,Oxfordshire County Council,LOOKED AFTER CITY 2,4330,Transport to School Activities,17/03/2020,3110715616,506.75,Redacted Personal Data
http://statistics.data.gov.uk/id/local-authority/38,Oxfordshire County Council,Care Homes - Over 65 Physical Sypport,5686,,11/03/2020,3110709532,507.14,CARE UK COMMUNITY PARTNERSHIPS LIMI
http://statistics.data.gov.uk/id/local-authority/38,Oxfordshire County Council,Community Support Service - Abingdon,4232,Vehicle Fuel,03/03/2020,2200742699,507.26,Allstar Business Solutions Ltd
http://statistics.data.gov.uk/id/local-authority/38,Oxfordshire County Council,Support at Home 65+ Physical Support,5689,,03/03/2020,3110705495,507.7,Greigcare Home Service
http://statistics.data.gov.uk/id/local-authority/38,Oxfordshire County Council,CHC Fast Track - Sup at Homes - Over 65,5691,,10/03/2020,3110707990,507.83,AVR (Oxon) Ltd
http://statistics.data.gov.uk/id/local-authority/38,Oxfordshire County Council,Support at Home 65+ Physical Support,5899,Social Care - Direct Payments,17/03/2020,3110714830,508,Purple Conversation Com In Co (DP)
http://statistics.data.gov.uk/id/local-authority/38,Oxfordshire County Council,Support at Home 65+ Physical Support,5696,,25/03/2020,3110717953,508.19,Orders of St John Care Trust
http://statistics.data.gov.uk/id/local-authority/38,Oxfordshire County Council,Support at Home 65+ Physical Support,5696,,25/03/2020,3110717985,508.25,1st Homecare (Oxford) Ltd
http://statistics.data.gov.uk/id/local-authority/38,Oxfordshire County Council,Support at Home U65 MH OBC Contract,5899,Social Care - Direct Payments,17/03/2020,3110714527,508.36,Redacted Personal Data
http://statistics.data.gov.uk/id/local-authority/38,Oxfordshire County Council,Support at Home 65+ Physical Support,5698,,25/03/2020,3110718752,508.75,Day & Night Care Assistance
http://statistics.data.gov.uk/id/local-authority/38,Oxfordshire County Council,Support at Home 65+ Physical Support,5689,,03/03/2020,3110705836,509.77,PLL Care Services
http://statistics.data.gov.uk/id/local-authority/38,Oxfordshire County Council,Support at Home 65+ Physical Support,5689,,31/03/2020,3110720883,509.78,Oxfordshire Crossroads
http://statistics.data.gov.uk/id/local-authority/38,Oxfordshire County Council,Support at Home 65+ Physical Support,5698,,25/03/2020,3110718944,509.87,Oxford Private Care
http://statistics.data.gov.uk/id/local-authority/38,Oxfordshire County Council,MAINSTREAM-SECONDARY,4330,Transport to School Activities,19/03/2020,3110716236,510,001 Alpha Cars Ltd
http://statistics.data.gov.uk/id/local-authority/38,Oxfordshire County Council,Support at Home 65+ Physical Support,5693,,18/03/2020,3110715953,510,Care with Care Ltd
http://statistics.data.gov.uk/id/local-authority/38,Oxfordshire County Council,MAINSTREAM-PRIMARY,4330,Transport to School Activities,04/03/2020,3110706256,510,Cherwell Cars
http://statistics.data.gov.uk/id/local-authority/38,Oxfordshire County Council,Bracknell Adoption Support Fund,6500,Government Grants (Revenue),04/03/2020,2200743202,510,Maximum Potential
http://statistics.data.gov.uk/id/local-authority/38,Oxfordshire County Council,SEN TRANSPORT,5227,Other Transport Arrangements,25/03/2020,3110718309,510,Oxon Transport Services Ltd
http://statistics.data.gov.uk/id/local-authority/38,Oxfordshire County Council,SEN TRANSPORT,5227,Other Transport Arrangements,25/03/2020,3110718371,510,Oxon Transport Services Ltd
http://statistics.data.gov.uk/id/local-authority/38,Oxfordshire County Council,Support at Home 65+ Physical Support,5899,Social Care - Direct Payments,17/03/2020,3110714657,510.4,Redacted Personal Data
http://statistics.data.gov.uk/id/local-authority/38,Oxfordshire County Council,Support at Home U65 Learning Disability,5899,Social Care - Direct Payments,17/03/2020,3110714594,510.4,Redacted Personal Data
http://statistics.data.gov.uk/id/local-authority/38,Oxfordshire County Council,Support at Home U65 Physical Support,5899,Social Care - Direct Payments,17/03/2020,3110715115,510.4,Purple Conversation Com In Co (DP)
http://statistics.data.gov.uk/id/local-authority/38,Oxfordshire County Council,VOIDS/VACANCY COSTS,3945,Rent,11/03/2020,3110708522,510.66,Oxford Citizens Housing Association
http://statistics.data.gov.uk/id/local-authority/38,Oxfordshire County Council,VOIDS/VACANCY COSTS,3945,Rent,11/03/2020,3110708524,510.66,Oxford Citizens Housing Association
http://statistics.data.gov.uk/id/local-authority/38,Oxfordshire County Council,Support at Home U65 MH OBC Contract,5691,,16/03/2020,3110713535,510.94,Orders of St John Care Trust
http://statistics.data.gov.uk/id/local-authority/38,Oxfordshire County Council,Support at Home 65+ Mental Health,5689,,03/03/2020,3110705888,511.12,Premier Personal Care
http://statistics.data.gov.uk/id/local-authority/38,Oxfordshire County Council,Support at Home U65 Physical Support,5899,Social Care - Direct Payments,31/03/2020,3110719822,511.42,Purple Conversation Com In Co (DP)
http://statistics.data.gov.uk/id/local-authority/38,Oxfordshire County Council,AGENCY RESID - DISAB,5549,B*Fostering Allowance - Regulation 38,10/03/2020,3110707444,511.43,Redacted Personal Data
http://statistics.data.gov.uk/id/local-authority/38,Oxfordshire County Council,SM DISABILITIES,5554,Childrens' Social Care - Direct Payments,26/03/2020,3110719416,511.5,Redacted Personal Data
http://statistics.data.gov.uk/id/local-authority/38,Oxfordshire County Council,SM DISABILITIES,5554,Childrens' Social Care - Direct Payments,26/03/2020,3110719438,511.5,Purple Conversation Com In Co (DP)
http://statistics.data.gov.uk/id/local-authority/38,Oxfordshire County Council,DRAINAGE REPAIRS,5526,Payments to Private Contractors,26/03/2020,2200752237,511.54,Skanska Construction UK Ltd Sp
http://statistics.data.gov.uk/id/local-authority/38,Oxfordshire County Council,Support at Home U65 Learning Disability,5899,Social Care - Direct Payments,17/03/2020,3110715089,511.8,Purple Conversation Com In Co (DP)
http://statistics.data.gov.uk/id/local-authority/38,Oxfordshire County Council,SM DISABILITIES,5554,Childrens' Social Care - Direct Payments,26/03/2020,3110719459,511.97,Redacted Personal Data
http://statistics.data.gov.uk/id/local-authority/38,Oxfordshire County Council,Support at Home U65 Learning Disability,5899,Social Care - Direct Payments,17/03/2020,3110714347,512,Purple Conversation Com In Co (DP)
http://statistics.data.gov.uk/id/local-authority/38,Oxfordshire County Council,Support at Home 65+ Physical Support,5899,Social Care - Direct Payments,17/03/2020,3110714727,512,Purple Conversation Com In Co (DP)
http://statistics.data.gov.uk/id/local-authority/38,Oxfordshire County Council,Support at Home U65 Learning Disability,5899,Social Care - Direct Payments,17/03/2020,3110714989,512,Purple Conversation Com In Co (DP)
http://statistics.data.gov.uk/id/local-authority/38,Oxfordshire County Council,Support at Home U65 Learning Disability,5899,Social Care - Direct Payments,17/03/2020,3110715310,512,Purple Conversation Com In Co (DP)
http://statistics.data.gov.uk/id/local-authority/38,Oxfordshire County Council,Support at Home U65 MH OBC Contract,5689,,31/03/2020,3110721521,512.25,Response Organisation
http://statistics.data.gov.uk/id/local-authority/38,Oxfordshire County Council,Support at Home 65+ Physical Support,5689,,03/03/2020,3110705497,512.66,Greigcare Home Service
http://statistics.data.gov.uk/id/local-authority/38,Oxfordshire County Council,Support at Home 65+ Physical Support,5689,,03/03/2020,3110705622,512.8,My Carer Ltd
http://statistics.data.gov.uk/id/local-authority/38,Oxfordshire County Council,Support at Home U65 Physical Support,5899,Social Care - Direct Payments,17/03/2020,3110713627,512.8,Purple Conversation Com In Co (DP)
http://statistics.data.gov.uk/id/local-authority/38,Oxfordshire County Council,Support at Home 65+ Physical Support,5689,,31/03/2020,3110720799,513.83,Caremark (West Oxfordshire & Cherwe
http://statistics.data.gov.uk/id/local-authority/38,Oxfordshire County Council,Support at Home 65+ Physical Support,5696,,25/03/2020,3110718036,514.36,One Housing Group Limited
http://statistics.data.gov.uk/id/local-authority/38,Oxfordshire County Council,Support at Home 65+ Physical Support,5696,,25/03/2020,3110718057,514.36,One Housing Group Limited
http://statistics.data.gov.uk/id/local-authority/38,Oxfordshire County Council,Support at Home 65+ Physical Support,5696,,25/03/2020,3110718034,514.36,Orders of St John Care Trust
http://statistics.data.gov.uk/id/local-authority/38,Oxfordshire County Council,Support at Home U65 Learning Disability,5689,,31/03/2020,3110721453,514.38,PLL Care Services
http://statistics.data.gov.uk/id/local-authority/38,Oxfordshire County Council,Support at Home 65+ Physical Support,5696,,25/03/2020,3110717939,514.42,Orders of St John Care Trust
http://statistics.data.gov.uk/id/local-authority/38,Oxfordshire County Council,Property Cleaning,5394,Other Expenses,19/03/2020,3110716262,514.58,OCC One Time Vendor
http://statistics.data.gov.uk/id/local-authority/38,Oxfordshire County Council,Support at Home U65 Physical Support,5689,,31/03/2020,3110720640,514.59,Alina Homecare
http://statistics.data.gov.uk/id/local-authority/38,Oxfordshire County Council,Support at Home 65+ Physical Support,5689,,03/03/2020,3110705481,514.78,Greigcare Home Service
http://statistics.data.gov.uk/id/local-authority/38,Oxfordshire County Council,Support at Home U65 Learning Disability,5689,,03/03/2020,3110705883,515.07,Premier Personal Care
http://statistics.data.gov.uk/id/local-authority/38,Oxfordshire County Council,SEN TRANSPORT,5227,Other Transport Arrangements,23/03/2020,3110716397,515.1,D & A Nichols
http://statistics.data.gov.uk/id/local-authority/38,Oxfordshire County Council,Support at Home 65+ Physical Support,5698,,25/03/2020,3110718678,515.16,Charterville Care At Home Ltd
http://statistics.data.gov.uk/id/local-authority/38,Oxfordshire County Council,FAM GRP CONFERENCES,5668,Technical and Professional Consultant F,26/03/2020,2200752010,515.19,Jessica Howards
http://statistics.data.gov.uk/id/local-authority/38,Oxfordshire County Council,Support at Home U65 Physical Support,5899,Social Care - Direct Payments,17/03/2020,3110715094,515.2,Purple Conversation Com In Co (DP)
http://statistics.data.gov.uk/id/local-authority/38,Oxfordshire County Council,Support at Home U65 Learning Disability,5698,,25/03/2020,3110718757,515.32,Day & Night Care Assistance
http://statistics.data.gov.uk/id/local-authority/38,Oxfordshire County Council,Support at Home U65 Physical Support,5689,,31/03/2020,3110721024,515.5,Golden Services Care Ltd
http://statistics.data.gov.uk/id/local-authority/38,Oxfordshire County Council,Support at Home U65 Sensory Support,5899,Social Care - Direct Payments,17/03/2020,3110713549,515.52,Redacted Personal Data
http://statistics.data.gov.uk/id/local-authority/38,Oxfordshire County Council,Support at Home 65+ Physical Support,5689,,31/03/2020,3110720828,515.58,Caremark (West Oxfordshire & Cherwe
http://statistics.data.gov.uk/id/local-authority/38,Oxfordshire County Council,Support at Home U65 Physical Support,5693,,18/03/2020,3110715964,516.06,Helping Hands
http://statistics.data.gov.uk/id/local-authority/38,Oxfordshire County Council,Support at Home 65+ Memory & Cognition,5689,,31/03/2020,3110721163,516.09,Home Helpers Care Ltd
http://statistics.data.gov.uk/id/local-authority/38,Oxfordshire County Council,SHARED LIVES,5555,Payments to Carers,11/03/2020,3110709804,516.49,Redacted Personal Data
http://statistics.data.gov.uk/id/local-authority/38,Oxfordshire County Council,DEPUTY DIRECTOR &MAN,3942,Hire of Accommodation and Facilities,12/03/2020,2200746885,516.8,NYS CORPORATE LTD
http://statistics.data.gov.uk/id/local-authority/38,Oxfordshire County Council,Support at Home U65 Mental Health,5689,,03/03/2020,3110705143,516.87,Oxfordshire Crossroads
http://statistics.data.gov.uk/id/local-authority/38,Oxfordshire County Council,FOSTERING MAIN,5549,B*Fostering Allowance - Regulation 38,03/03/2020,3110704953,517,Redacted Personal Data
http://statistics.data.gov.uk/id/local-authority/38,Oxfordshire County Council,FOSTERING MAIN,5549,B*Fostering Allowance - Regulation 38,10/03/2020,3110707506,517,Redacted Personal Data
http://statistics.data.gov.uk/id/local-authority/38,Oxfordshire County Council,FOSTERING MAIN,5549,B*Fostering Allowance - Regulation 38,17/03/2020,3110715629,517,Redacted Personal Data
http://statistics.data.gov.uk/id/local-authority/38,Oxfordshire County Council,FOSTERING MAIN,5549,B*Fostering Allowance - Regulation 38,25/03/2020,3110717745,517,Redacted Personal Data
http://statistics.data.gov.uk/id/local-authority/38,Oxfordshire County Council,FOSTERING MAIN,5549,B*Fostering Allowance - Regulation 38,31/03/2020,3110720271,517,Redacted Personal Data
http://statistics.data.gov.uk/id/local-authority/38,Oxfordshire County Council,Support at Home 65+ Physical Support,5693,,04/03/2020,3110706123,517.42,PROFESSIONAL CARE SERVICES BUCKS
http://statistics.data.gov.uk/id/local-authority/38,Oxfordshire County Council,SEN TRANSPORT,5227,Other Transport Arrangements,10/03/2020,3110707843,517.95,Luxicars Ltd
http://statistics.data.gov.uk/id/local-authority/38,Oxfordshire County Council,FOSTERING MAIN,5541,B*Foster Parents,03/03/2020,3110705109,518,Redacted Personal Data
http://statistics.data.gov.uk/id/local-authority/38,Oxfordshire County Council,FOSTERING MAIN,5541,B*Foster Parents,10/03/2020,3110707620,518,Redacted Personal Data
http://statistics.data.gov.uk/id/local-authority/38,Oxfordshire County Council,FOSTERING MAIN,5541,B*Foster Parents,17/03/2020,3110715689,518,Redacted Personal Data
http://statistics.data.gov.uk/id/local-authority/38,Oxfordshire County Council,FOSTERING MAIN,5541,B*Foster Parents,25/03/2020,3110717779,518,Redacted Personal Data
http://statistics.data.gov.uk/id/local-authority/38,Oxfordshire County Council,FOSTERING MAIN,5541,B*Foster Parents,31/03/2020,3110720369,518,Redacted Personal Data
http://statistics.data.gov.uk/id/local-authority/38,Oxfordshire County Council,Support at Home 65+ Physical Support,5899,Social Care - Direct Payments,17/03/2020,3110715125,518.4,Purple Conversation Com In Co (DP)
http://statistics.data.gov.uk/id/local-authority/38,Oxfordshire County Council,Contingency Home Care,5689,,03/03/2020,3110705688,518.69,OXFORD HEALTH NHS FOUNDATION TRUST
http://statistics.data.gov.uk/id/local-authority/38,Oxfordshire County Council,Support at Home 65+ Physical Support,5689,,31/03/2020,3110721430,518.99,PLL Care Services
http://statistics.data.gov.uk/id/local-authority/38,Oxfordshire County Council,SEN Additional Funding,5537,Payments to Other Establishments,23/03/2020,3110716737,519.4,Heyford Park Free School
http://statistics.data.gov.uk/id/local-authority/38,Oxfordshire County Council,SEN Additional Funding,5537,Payments to Other Establishments,23/03/2020,3110716749,519.4,Windale Community Primary School
http://statistics.data.gov.uk/id/local-authority/38,Oxfordshire County Council,ROAD SAFETY,3103,Other Training Courses and Qualification,23/03/2020,2200750505,520,Avanti Cycling
http://statistics.data.gov.uk/id/local-authority/38,Oxfordshire County Council,Support at Home 65+ Other /Soc Isolation,5693,,18/03/2020,3110715959,520,Redacted Personal Data
http://statistics.data.gov.uk/id/local-authority/38,Oxfordshire County Council,Reading Adoption Support Fund,4859,Medical and Counselling Fees,30/03/2020,2200753264,520,Karen Crooks
http://statistics.data.gov.uk/id/local-authority/38,Oxfordshire County Council,Support at Home U65 Learning Disability,5899,Social Care - Direct Payments,17/03/2020,3110714144,520,Redacted Personal Data
http://statistics.data.gov.uk/id/local-authority/38,Oxfordshire County Council,LAC PUPIL PREMIUM,5537,Payments to Other Establishments,17/03/2020,3110713346,520,Meadows School
http://statistics.data.gov.uk/id/local-authority/38,Oxfordshire County Council,Central FSS Statutory - Barton,5227,Other Transport Arrangements,18/03/2020,3110715804,520,Oxon Transport Services Ltd
http://statistics.data.gov.uk/id/local-authority/38,Oxfordshire County Council,Support at Home U65 Learning Disability,5227,Other Transport Arrangements,18/03/2020,3110715881,520,Oxon Transport Services Ltd
http://statistics.data.gov.uk/id/local-authority/38,Oxfordshire County Council,SEN TRANSPORT,5227,Other Transport Arrangements,25/03/2020,3110718260,520,Oxon Transport Services Ltd
http://statistics.data.gov.uk/id/local-authority/38,Oxfordshire County Council,Support at Home U65 Physical Support,5899,Social Care - Direct Payments,17/03/2020,3110714106,520,Purple Conversation Com In Co (DP)
http://statistics.data.gov.uk/id/local-authority/38,Oxfordshire County Council,Support at Home U65 Physical Support,5899,Social Care - Direct Payments,17/03/2020,3110714573,520,Purple Conversation Com In Co (DP)
http://statistics.data.gov.uk/id/local-authority/38,Oxfordshire County Council,Support at Home U65 Physical Support,5899,Social Care - Direct Payments,17/03/2020,3110714999,520,Purple Conversation Com In Co (DP)
http://statistics.data.gov.uk/id/local-authority/38,Oxfordshire County Council,Support at Home U65 Physical Support,5899,Social Care - Direct Payments,17/03/2020,3110715029,520,Purple Conversation Com In Co (DP)
http://statistics.data.gov.uk/id/local-authority/38,Oxfordshire County Council,KINGFISHER,5227,Other Transport Arrangements,18/03/2020,3110716111,520,Supreme Taxis
http://statistics.data.gov.uk/id/local-authority/38,Oxfordshire County Council,SEN TRANSPORT,4330,Transport to School Activities,23/03/2020,3110716599,520,The Oxfordshire Taxi Company Ltd T/
http://statistics.data.gov.uk/id/local-authority/38,Oxfordshire County Council,FLEET COSTS,4270,HTM / Other Vehicle - Hire Charges,11/03/2020,2200746272,520,West Wallasey Fleet Hire Services
http://statistics.data.gov.uk/id/local-authority/38,Oxfordshire County Council,Support at Home 65+ Learning Disability,5696,,04/03/2020,3110706078,520.2,Housing&care21
http://statistics.data.gov.uk/id/local-authority/38,Oxfordshire County Council,SEN TRANSPORT,5227,Other Transport Arrangements,10/03/2020,3110707841,520.2,Luxicars Ltd
http://statistics.data.gov.uk/id/local-authority/38,Oxfordshire County Council,Support at Home U65 Other /Soc Isolation,5899,Social Care - Direct Payments,17/03/2020,3110715284,520.8,Purple Conversation Com In Co (DP)
http://statistics.data.gov.uk/id/local-authority/38,Oxfordshire County Council,LAC PUPIL PREMIUM,5537,Payments to Other Establishments,17/03/2020,3110713305,521,Bishop Loveday CofE Primary School
http://statistics.data.gov.uk/id/local-authority/38,Oxfordshire County Council,LAC PUPIL PREMIUM,5537,Payments to Other Establishments,17/03/2020,3110713375,521,The Bicester School
http://statistics.data.gov.uk/id/local-authority/38,Oxfordshire County Council,Support at Home 65+ Physical Support,5693,,04/03/2020,3110706050,521.16,Bicester PA and Care LLP
http://statistics.data.gov.uk/id/local-authority/38,Oxfordshire County Council,Support at Home U65 Physical Support,5689,,03/03/2020,3110705366,521.16,Golden Services Care Ltd
http://statistics.data.gov.uk/id/local-authority/38,Oxfordshire County Council,Support at Home U65 Physical Support,5899,Social Care - Direct Payments,17/03/2020,3110715221,521.2,Purple Conversation Com In Co (DP)
http://statistics.data.gov.uk/id/local-authority/38,Oxfordshire County Council,Support at Home U65 Learning Disability,5688,,11/03/2020,3110710861,521.69,Autism at Kingwood Limited
http://statistics.data.gov.uk/id/local-authority/38,Oxfordshire County Council,Support at Home 65+ Physical Support,5689,,03/03/2020,3110704863,521.7,Caremark (West Oxfordshire & Cherwe
http://statistics.data.gov.uk/id/local-authority/38,Oxfordshire County Council,FLEET MAINTENANCE,4236,Vehicle Equipment and Running Expen,02/03/2020,2200742088,522,C Track UK
http://statistics.data.gov.uk/id/local-authority/38,Oxfordshire County Council,FLEET MAINTENANCE,4236,Vehicle Equipment and Running Expen,04/03/2020,2200743368,522,C Track UK
http://statistics.data.gov.uk/id/local-authority/38,Oxfordshire County Council,MAINSTREAM-PRIMARY,4330,Transport to School Activities,15/03/2020,3110712997,522,Go Green Taxis
http://statistics.data.gov.uk/id/local-authority/38,Oxfordshire County Council,SEN TRANSPORT,4330,Transport to School Activities,23/03/2020,3110716626,522,The Oxfordshire Taxi Company Ltd T/
http://statistics.data.gov.uk/id/local-authority/38,Oxfordshire County Council,Continuing Care - Support at Home - U65,5691,,09/03/2020,3110706662,522.27,JESCARE SERVICES LTD
http://statistics.data.gov.uk/id/local-authority/38,Oxfordshire County Council,,1429,Charitable Donations,04/03/2020,3110706038,522.59,GIVE AS YOU EARN
http://statistics.data.gov.uk/id/local-authority/38,Oxfordshire County Council,Support at Home 65+ Physical Support,5691,,16/03/2020,2200747662,522.75,Oasis Private Care Ltd
http://statistics.data.gov.uk/id/local-authority/38,Oxfordshire County Council,Urgent Response,5689,,03/03/2020,3110705248,522.86,Day and Nightcare Assistance
http://statistics.data.gov.uk/id/local-authority/38,Oxfordshire County Council,,1448,Blackfield Inc & Exp A/c,09/03/2020,3110706761,523,OCC One Time Vendor
http://statistics.data.gov.uk/id/local-authority/38,Oxfordshire County Council,Oxford Citywide Cycle & Ped Routes,5526,Payments to Private Contractors,26/03/2020,2200752279,523,Skanska Construction UK Ltd Sp
http://statistics.data.gov.uk/id/local-authority/38,Oxfordshire County Council,TRO TEAM,4790,"Publicity, Promotions and Advertisement",18/03/2020,2200748936,523.56,Tmp (Uk) Ltd
http://statistics.data.gov.uk/id/local-authority/38,Oxfordshire County Council,NURSERY ED FUND,5537,Payments to Other Establishments,04/03/2020,3110703627,523.58,Deborah Barlow
http://statistics.data.gov.uk/id/local-authority/38,Oxfordshire County Council,NURSERY ED FUND,5537,Payments to Other Establishments,04/03/2020,3110703711,523.58,Redacted Personal Data
http://statistics.data.gov.uk/id/local-authority/38,Oxfordshire County Council,Support at Home U65 Physical Support,5688,,11/03/2020,3110708359,523.59,The Laurels (Witney)
http://statistics.data.gov.uk/id/local-authority/38,Oxfordshire County Council,SEN TRANSPORT,5227,Other Transport Arrangements,25/03/2020,3110718303,523.6,Oxon Transport Services Ltd
http://statistics.data.gov.uk/id/local-authority/38,Oxfordshire County Council,Support at Home 65+ Physical Support,5689,,03/03/2020,3110705969,523.84,AVR (Oxon) Ltd
http://statistics.data.gov.uk/id/local-authority/38,Oxfordshire County Council,Support at Home U65 Learning Disability,5682,,12/03/2020,3110712657,523.9,The Brandon Trust
http://statistics.data.gov.uk/id/local-authority/38,Oxfordshire County Council,Support at Home U65 Learning Disability,5899,Social Care - Direct Payments,17/03/2020,3110714900,524,Redacted Personal Data
http://statistics.data.gov.uk/id/local-authority/38,Oxfordshire County Council,Support at Home U65 Learning Disability,5693,,25/03/2020,3110717970,524.26,Autism at Kingwood Limited
http://statistics.data.gov.uk/id/local-authority/38,Oxfordshire County Council,Cities4People,4270,HTM / Other Vehicle - Hire Charges,31/03/2020,2200753810,524.55,Barton Community Association
http://statistics.data.gov.uk/id/local-authority/38,Oxfordshire County Council,Support at Home U65 Physical Support,5689,,03/03/2020,3110705994,524.74,Same Ways Care Ltd
http://statistics.data.gov.uk/id/local-authority/38,Oxfordshire County Council,Planned preventative Maintenance,3787,Premises Repairs,24/03/2020,2200750807,525,Metro Rod Ltd (Oxon & West Bucks)
http://statistics.data.gov.uk/id/local-authority/38,Oxfordshire County Council,FLETCHERS HOUSE SITE,4070,Cleaning services,11/03/2020,2200746086,525,Super Clean
http://statistics.data.gov.uk/id/local-authority/38,Oxfordshire County Council,Support at Home 65+ Physical Support,5689,,03/03/2020,3110705628,525.38,My Carer Ltd
http://statistics.data.gov.uk/id/local-authority/38,Oxfordshire County Council,PLACEMENTS- RELEVANT,5604,,03/03/2020,3110704129,525.71,KEY2 FUTURES LTD
http://statistics.data.gov.uk/id/local-authority/38,Oxfordshire County Council,Contingency Home Care,5689,,31/03/2020,3110721356,526.03,Oxford University Hospitals NHS FT
http://statistics.data.gov.uk/id/local-authority/38,Oxfordshire County Council,Support at Home 65+ Physical Support,5689,,03/03/2020,3110705633,526.49,My Carer Ltd
http://statistics.data.gov.uk/id/local-authority/38,Oxfordshire County Council,Contingency Home Care,5689,,03/03/2020,3110705767,526.69,Oxford University Hospitals NHS FT
http://statistics.data.gov.uk/id/local-authority/38,Oxfordshire County Council,Support at Home 65+ Physical Support,5689,,03/03/2020,3110705505,526.98,Harino Care
http://statistics.data.gov.uk/id/local-authority/38,Oxfordshire County Council,Support at Home 65+ Physical Support,5693,,04/03/2020,3110706048,527.22,Bicester PA and Care LLP
http://statistics.data.gov.uk/id/local-authority/38,Oxfordshire County Council,Support at Home U65 Physical Support,5698,,25/03/2020,3110718464,527.32,Acquire Care Ltd
http://statistics.data.gov.uk/id/local-authority/38,Oxfordshire County Council,Contingency Home Care,5689,,31/03/2020,3110721395,527.36,Oxford University Hospitals NHS FT
http://statistics.data.gov.uk/id/local-authority/38,Oxfordshire County Council,RESIDENTIAL STRATEGY,3100,Educational and Vocational Training,31/03/2020,2200754047,527.5,EMDR WORKS LTD
http://statistics.data.gov.uk/id/local-authority/38,Oxfordshire County Council,COMM DRAWDOWN FUNDNG,8102,Payments to main contractor,26/03/2020,2200752141,527.61,Skanska Construction UK Ltd Sp
http://statistics.data.gov.uk/id/local-authority/38,Oxfordshire County Council,Support at Home 65+ Learning Disability,5693,,25/03/2020,3110717965,528,HF TRUST Ltd
http://statistics.data.gov.uk/id/local-authority/38,Oxfordshire County Council,POST18 UASC DCSF FND,5416,After School Activities,06/03/2020,2200744664,528,Redacted Personal Data
http://statistics.data.gov.uk/id/local-authority/38,Oxfordshire County Council,POST 16 SEN,4330,Transport to School Activities,16/03/2020,3110713229,528,Oxon Transport Services Ltd
http://statistics.data.gov.uk/id/local-authority/38,Oxfordshire County Council,SEN TRANSPORT,5227,Other Transport Arrangements,25/03/2020,3110718377,528,Oxon Transport Services Ltd
http://statistics.data.gov.uk/id/local-authority/38,Oxfordshire County Council,Support at Home 65+ Physical Support,5899,Social Care - Direct Payments,17/03/2020,3110715336,528,Purple Conversation Com In Co (DP)
http://statistics.data.gov.uk/id/local-authority/38,Oxfordshire County Council,Central FSS Statutory - Blackbird Leys,5227,Other Transport Arrangements,10/03/2020,3110707719,528,Supreme Taxis
http://statistics.data.gov.uk/id/local-authority/38,Oxfordshire County Council,LIBRARY COLLECTIONS,4539,"Books, DVDs and CDs",24/03/2020,3110716922,528.18,ASKEWS & HOLTS LIBRARY SERVICES LTD
http://statistics.data.gov.uk/id/local-authority/38,Oxfordshire County Council,Support at Home 65+ Physical Support,5689,,31/03/2020,3110721218,528.63,My Carer Ltd
http://statistics.data.gov.uk/id/local-authority/38,Oxfordshire County Council,FOSTERING MAIN,5541,B*Foster Parents,03/03/2020,3110705056,529,Redacted Personal Data
http://statistics.data.gov.uk/id/local-authority/38,Oxfordshire County Council,FOSTERING MAIN,5541,B*Foster Parents,10/03/2020,3110707578,529,Redacted Personal Data
http://statistics.data.gov.uk/id/local-authority/38,Oxfordshire County Council,FOSTERING MAIN,5541,B*Foster Parents,17/03/2020,3110715663,529,Redacted Personal Data
http://statistics.data.gov.uk/id/local-authority/38,Oxfordshire County Council,FOSTERING MAIN,5541,B*Foster Parents,25/03/2020,3110717766,529,Redacted Personal Data
http://statistics.data.gov.uk/id/local-authority/38,Oxfordshire County Council,FOSTERING MAIN,5541,B*Foster Parents,31/03/2020,3110720330,529,Redacted Personal Data
http://statistics.data.gov.uk/id/local-authority/38,Oxfordshire County Council,FOSTERING MAIN,5541,B*Foster Parents,03/03/2020,3110704801,529,Redacted Personal Data
http://statistics.data.gov.uk/id/local-authority/38,Oxfordshire County Council,FOSTERING MAIN,5541,B*Foster Parents,10/03/2020,3110707390,529,Redacted Personal Data
http://statistics.data.gov.uk/id/local-authority/38,Oxfordshire County Council,FOSTERING MAIN,5541,B*Foster Parents,17/03/2020,3110715572,529,Redacted Personal Data
http://statistics.data.gov.uk/id/local-authority/38,Oxfordshire County Council,FOSTERING MAIN,5541,B*Foster Parents,25/03/2020,3110717699,529,Redacted Personal Data
http://statistics.data.gov.uk/id/local-authority/38,Oxfordshire County Council,FOSTERING MAIN,5541,B*Foster Parents,31/03/2020,3110720177,529,Redacted Personal Data
http://statistics.data.gov.uk/id/local-authority/38,Oxfordshire County Council,AGENCY RESID - DISAB,5541,B*Foster Parents,03/03/2020,3110704848,529,Redacted Personal Data
http://statistics.data.gov.uk/id/local-authority/38,Oxfordshire County Council,AGENCY RESID - DISAB,5541,B*Foster Parents,10/03/2020,3110707427,529,Redacted Personal Data
http://statistics.data.gov.uk/id/local-authority/38,Oxfordshire County Council,NURSERY ED FUND,5537,Payments to Other Establishments,31/03/2020,3110722432,529.2,Cheney School Multi Academy Trust
http://statistics.data.gov.uk/id/local-authority/38,Oxfordshire County Council,Urgent Response,5689,,31/03/2020,3110720967,529.46,Day and Nightcare Assistance
http://statistics.data.gov.uk/id/local-authority/38,Oxfordshire County Council,Support at Home 65+ Physical Support,5696,,25/03/2020,3110717960,529.48,Orders of St John Care Trust
http://statistics.data.gov.uk/id/local-authority/38,Oxfordshire County Council,LIBRARY SERV MANAGER,4525,Furniture,03/03/2020,2200742823,530,Opening the Book
http://statistics.data.gov.uk/id/local-authority/38,Oxfordshire County Council,Support at Home 65+ Physical Support,5693,,04/03/2020,3110706071,530.28,Heritage Healthcare Oxford - South
http://statistics.data.gov.uk/id/local-authority/38,Oxfordshire County Council,Support at Home U65 Physical Support,5899,Social Care - Direct Payments,17/03/2020,3110714901,530.48,Purple Conversation Com In Co (DP)
http://statistics.data.gov.uk/id/local-authority/38,Oxfordshire County Council,KINGFISHER,5227,Other Transport Arrangements,25/03/2020,9300046388,530.9,OCC SS Oxford City Div 1 Cash
http://statistics.data.gov.uk/id/local-authority/38,Oxfordshire County Council,Support at Home 65+ Physical Support,5689,,03/03/2020,3110705846,531.04,PLL Care Services
http://statistics.data.gov.uk/id/local-authority/38,Oxfordshire County Council,LAC PUPIL PREMIUM,5380,"Author, Speaker and Lecturer Fees",17/03/2020,3110713448,531.1,OCC One Time Vendor
http://statistics.data.gov.uk/id/local-authority/38,Oxfordshire County Council,Support at Home 65+ Physical Support,5689,,03/03/2020,3110705145,531.17,Oxfordshire Crossroads
http://statistics.data.gov.uk/id/local-authority/38,Oxfordshire County Council,Support at Home U65 Physical Support,5899,Social Care - Direct Payments,17/03/2020,3110714517,531.2,Purple Conversation Com In Co (DP)
http://statistics.data.gov.uk/id/local-authority/38,Oxfordshire County Council,Support at Home U65 Learning Disability,5899,Social Care - Direct Payments,17/03/2020,3110713494,531.43,Purple Conversation Com In Co (DP)
http://statistics.data.gov.uk/id/local-authority/38,Oxfordshire County Council,POST 16 SEN,4330,Transport to School Activities,15/03/2020,3110713046,531.5,Oxon Transport Services Ltd
http://statistics.data.gov.uk/id/local-authority/38,Oxfordshire County Council,Support at Home U65 Learning Disability,5682,,12/03/2020,3110712761,531.6,The Brandon Trust
http://statistics.data.gov.uk/id/local-authority/38,Oxfordshire County Council,Support at Home U65 Learning Disability,5689,,31/03/2020,3110721472,531.69,Premier Personal Care
http://statistics.data.gov.uk/id/local-authority/38,Oxfordshire County Council,Support at Home U65 Physical Support,5899,Social Care - Direct Payments,17/03/2020,3110714645,532,Redacted Personal Data
http://statistics.data.gov.uk/id/local-authority/38,Oxfordshire County Council,Support at Home 65+ Physical Support,5899,Social Care - Direct Payments,17/03/2020,3110714172,532,Redacted Personal Data
http://statistics.data.gov.uk/id/local-authority/38,Oxfordshire County Council,Support at Home U65 Learning Disability,5899,Social Care - Direct Payments,17/03/2020,3110714508,532,Purple Conversation Com In Co (DP)
http://statistics.data.gov.uk/id/local-authority/38,Oxfordshire County Council,Support at Home 65+ Physical Support,5689,,31/03/2020,3110720706,532.3,Amber Healthcare Personnel Ltd
http://statistics.data.gov.uk/id/local-authority/38,Oxfordshire County Council,Support at Home 65+ Physical Support,5689,,03/03/2020,3110705903,532.89,Premier Personal Care
http://statistics.data.gov.uk/id/local-authority/38,Oxfordshire County Council,LIBRARY COLLECTIONS,4539,"Books, DVDs and CDs",19/03/2020,2200749855,532.95,Blackwells Music Shop
http://statistics.data.gov.uk/id/local-authority/38,Oxfordshire County Council,NURSERY ED FUND,5537,Payments to Other Establishments,31/03/2020,3110722517,533.28,Hunsdon House Nursery Sc
http://statistics.data.gov.uk/id/local-authority/38,Oxfordshire County Council,NURSERY ED FUND,5537,Payments to Other Establishments,31/03/2020,3110722569,533.28,The Lighthouse Nursery
http://statistics.data.gov.uk/id/local-authority/38,Oxfordshire County Council,ASC WORKFORCE STRAT,5051,Provision of Courses,10/03/2020,2200745678,533.33,NYS CORPORATE LTD
http://statistics.data.gov.uk/id/local-authority/38,Oxfordshire County Council,Support at Home 65+ Physical Support,5899,Social Care - Direct Payments,17/03/2020,3110715349,533.56,Purple Conversation Com In Co (DP)
http://statistics.data.gov.uk/id/local-authority/38,Oxfordshire County Council,Support at Home U65 Learning Disability,5682,,12/03/2020,3110712795,533.78,The Brandon Trust
http://statistics.data.gov.uk/id/local-authority/38,Oxfordshire County Council,Support at Home U65 Learning Disability,5682,,12/03/2020,3110712809,533.78,The Brandon Trust
http://statistics.data.gov.uk/id/local-authority/38,Oxfordshire County Council,LAC PUPIL PREMIUM,5537,Payments to Other Establishments,17/03/2020,3110713350,534,North Oxfordshire Academy
http://statistics.data.gov.uk/id/local-authority/38,Oxfordshire County Council,Property Cleaning,4060,Cleaning Materials,04/03/2020,2200743216,534.38,Nationwide Hygiene Supplies Ltd
http://statistics.data.gov.uk/id/local-authority/38,Oxfordshire County Council,Contingency Home Care,5689,,31/03/2020,3110721360,535.36,Oxford University Hospitals NHS FT
http://statistics.data.gov.uk/id/local-authority/38,Oxfordshire County Council,SEN TRANSPORT,5227,Other Transport Arrangements,10/03/2020,3110707849,535.5,Luxicars Ltd
http://statistics.data.gov.uk/id/local-authority/38,Oxfordshire County Council,SERVICE DELIVERY,4685,Clothing and Uniforms,10/03/2020,2200745639,535.59,Oxford Safety Supplies
http://statistics.data.gov.uk/id/local-authority/38,Oxfordshire County Council,Support at Home U65 Physical Support,5696,,25/03/2020,3110718012,535.82,Orders of St John Care Trust
http://statistics.data.gov.uk/id/local-authority/38,Oxfordshire County Council,Support at Home U65 Physical Support,5689,,31/03/2020,3110721101,535.88,Greigcare Home Service
http://statistics.data.gov.uk/id/local-authority/38,Oxfordshire County Council,Early Years SEN Funding,5537,Payments to Other Establishments,03/03/2020,3110706313,535.92,Grovelands Park Pre-School
http://statistics.data.gov.uk/id/local-authority/38,Oxfordshire County Council,Support at Home U65 Physical Support,5899,Social Care - Direct Payments,17/03/2020,3110715160,535.96,Purple Conversation Com In Co (DP)
http://statistics.data.gov.uk/id/local-authority/38,Oxfordshire County Council,Support at Home U65 Learning Disability,5899,Social Care - Direct Payments,17/03/2020,3110713724,536,Redacted Personal Data
http://statistics.data.gov.uk/id/local-authority/38,Oxfordshire County Council,Support at Home U65 Physical Support,5899,Social Care - Direct Payments,17/03/2020,3110713636,536,Redacted Personal Data
http://statistics.data.gov.uk/id/local-authority/38,Oxfordshire County Council,Support at Home U65 Learning Disability,5899,Social Care - Direct Payments,17/03/2020,3110713981,536,Redacted Personal Data
http://statistics.data.gov.uk/id/local-authority/38,Oxfordshire County Council,Support at Home 65+ Physical Support,5698,,25/03/2020,3110718761,536.36,Day & Night Care Assistance
http://statistics.data.gov.uk/id/local-authority/38,Oxfordshire County Council,Delegated Health Tasks  - Over 65,5691,,16/03/2020,3110713058,536.5,Bluebird Care
http://statistics.data.gov.uk/id/local-authority/38,Oxfordshire County Council,Delegated Health Tasks  - Over 65,5691,,16/03/2020,3110713059,536.5,Bluebird Care
http://statistics.data.gov.uk/id/local-authority/38,Oxfordshire County Council,Delegated Health Tasks  - Under 65,5691,,16/03/2020,3110713060,536.5,Bluebird Care
http://statistics.data.gov.uk/id/local-authority/38,Oxfordshire County Council,Contingency Home Care,5689,,03/03/2020,3110705700,536.69,Oxford University Hospitals NHS FT
http://statistics.data.gov.uk/id/local-authority/38,Oxfordshire County Council,Support at Home 65+ Physical Support,5698,,25/03/2020,3110718844,536.8,Day & Night Care Assistance
http://statistics.data.gov.uk/id/local-authority/38,Oxfordshire County Council,Support at Home 65+ Physical Support,5698,,25/03/2020,3110718698,537.82,Charterville Care At Home Ltd
http://statistics.data.gov.uk/id/local-authority/38,Oxfordshire County Council,Support at Home 65+ Physical Support,5686,,11/03/2020,3110708334,538.28,Orders of St John
http://statistics.data.gov.uk/id/local-authority/38,Oxfordshire County Council,Support at Home 65+ Physical Support,5681,,11/03/2020,3110708801,538.29,Orders of St John
http://statistics.data.gov.uk/id/local-authority/38,Oxfordshire County Council,Support at Home 65+ Physical Support,5681,,11/03/2020,3110708922,538.29,Orders of St John
http://statistics.data.gov.uk/id/local-authority/38,Oxfordshire County Council,Care Homes - Over 65 Memory & Cognition,5686,,11/03/2020,3110709061,538.29,Orders of St John
http://statistics.data.gov.uk/id/local-authority/38,Oxfordshire County Council,,1162,VAT - Input Adjustment,18/03/2020,3110716082,538.5,Weightmans LLP
http://statistics.data.gov.uk/id/local-authority/38,Oxfordshire County Council,LEGAL BUDGET,5251,Legal Costs,02/03/2020,2200741828,539.08,DR A J WILKINS
http://statistics.data.gov.uk/id/local-authority/38,Oxfordshire County Council,Support at Home 65+ Physical Support,5689,,03/03/2020,3110704759,539.19,Caremark (West Oxfordshire & Cherwe
http://statistics.data.gov.uk/id/local-authority/38,Oxfordshire County Council,Support at Home 65+ Physical Support,5689,,03/03/2020,3110705090,539.21,Oxfordshire Crossroads
http://statistics.data.gov.uk/id/local-authority/38,Oxfordshire County Council,Support at Home U65 Learning Disability,5690,,11/03/2020,3110708367,539.4,Life Path Trust Ltd
http://statistics.data.gov.uk/id/local-authority/38,Oxfordshire County Council,Support at Home 65+ Physical Support,5689,,03/03/2020,3110705559,539.53,Home Helpers Care Ltd
http://statistics.data.gov.uk/id/local-authority/38,Oxfordshire County Council,Support at Home U65 Learning Disability,5690,,11/03/2020,3110708361,539.58,Life Path Trust Ltd
http://statistics.data.gov.uk/id/local-authority/38,Oxfordshire County Council,Support at Home 65+ Physical Support,5689,,31/03/2020,3110721228,539.59,My Carer Ltd
http://statistics.data.gov.uk/id/local-authority/38,Oxfordshire County Council,SEN TRANSPORT,5227,Other Transport Arrangements,10/03/2020,3110707733,540,Angelas Travel
http://statistics.data.gov.uk/id/local-authority/38,Oxfordshire County Council,MAINSTREAM-PRIMARY,4330,Transport to School Activities,16/03/2020,3110713207,540,Evenlode Taxis
http://statistics.data.gov.uk/id/local-authority/38,Oxfordshire County Council,Support at Home U65 Physical Support,5697,,11/03/2020,3110708032,540,Headway Oxford
http://statistics.data.gov.uk/id/local-authority/38,Oxfordshire County Council,SEN TRANSPORT,5227,Other Transport Arrangements,02/03/2020,3110704089,540,Henley Taxis Ltd
http://statistics.data.gov.uk/id/local-authority/38,Oxfordshire County Council,Support at Home 65+ Physical Support,5899,Social Care - Direct Payments,17/03/2020,3110713619,540,Redacted Personal Data
http://statistics.data.gov.uk/id/local-authority/38,Oxfordshire County Council,SEN Miscellaneous Expenditure,5537,Payments to Other Establishments,25/03/2020,3110717561,540,OCC One Time Vendor
http://statistics.data.gov.uk/id/local-authority/38,Oxfordshire County Council,POST 16 SEN,4330,Transport to School Activities,16/03/2020,3110713226,540,Oxon Transport Services Ltd
http://statistics.data.gov.uk/id/local-authority/38,Oxfordshire County Council,POST 16 SEN,4330,Transport to School Activities,16/03/2020,3110713236,540,Oxon Transport Services Ltd
http://statistics.data.gov.uk/id/local-authority/38,Oxfordshire County Council,WANTAGE REC CENTRE,4330,Transport to School Activities,18/03/2020,3110715878,540,Oxon Transport Services Ltd
http://statistics.data.gov.uk/id/local-authority/38,Oxfordshire County Council,SEN TRANSPORT,5227,Other Transport Arrangements,25/03/2020,3110718271,540,Oxon Transport Services Ltd
http://statistics.data.gov.uk/id/local-authority/38,Oxfordshire County Council,SEN TRANSPORT,5227,Other Transport Arrangements,25/03/2020,3110718288,540,Oxon Transport Services Ltd
http://statistics.data.gov.uk/id/local-authority/38,Oxfordshire County Council,SEN TRANSPORT,5227,Other Transport Arrangements,25/03/2020,3110718299,540,Oxon Transport Services Ltd
http://statistics.data.gov.uk/id/local-authority/38,Oxfordshire County Council,SEN TRANSPORT,5227,Other Transport Arrangements,25/03/2020,3110718314,540,Oxon Transport Services Ltd
http://statistics.data.gov.uk/id/local-authority/38,Oxfordshire County Council,SEN TRANSPORT,5227,Other Transport Arrangements,25/03/2020,3110718343,540,Oxon Transport Services Ltd
http://statistics.data.gov.uk/id/local-authority/38,Oxfordshire County Council,SEN TRANSPORT,5227,Other Transport Arrangements,25/03/2020,3110718347,540,Oxon Transport Services Ltd
http://statistics.data.gov.uk/id/local-authority/38,Oxfordshire County Council,SEN TRANSPORT,5227,Other Transport Arrangements,25/03/2020,3110718355,540,Oxon Transport Services Ltd
http://statistics.data.gov.uk/id/local-authority/38,Oxfordshire County Council,SEN TRANSPORT,5227,Other Transport Arrangements,25/03/2020,3110718364,540,Oxon Transport Services Ltd
http://statistics.data.gov.uk/id/local-authority/38,Oxfordshire County Council,SEN TRANSPORT,5227,Other Transport Arrangements,25/03/2020,3110718367,540,Oxon Transport Services Ltd
http://statistics.data.gov.uk/id/local-authority/38,Oxfordshire County Council,SEN TRANSPORT,5227,Other Transport Arrangements,25/03/2020,3110718373,540,Oxon Transport Services Ltd
http://statistics.data.gov.uk/id/local-authority/38,Oxfordshire County Council,SEN TRANSPORT,5227,Other Transport Arrangements,25/03/2020,3110718381,540,Oxon Transport Services Ltd
http://statistics.data.gov.uk/id/local-authority/38,Oxfordshire County Council,Support at Home U65 Learning Disability,5697,,25/03/2020,3110718143,540,Pennyhooks Farm Trust
http://statistics.data.gov.uk/id/local-authority/38,Oxfordshire County Council,Support at Home 65+ Mental Health,5899,Social Care - Direct Payments,17/03/2020,3110714392,540,Purple Conversation Com In Co (DP)
http://statistics.data.gov.uk/id/local-authority/38,Oxfordshire County Council,Wokingham Adoption Support Fund,4859,Medical and Counselling Fees,09/03/2020,2200744818,540,The Cherrycroft Practice Limited
http://statistics.data.gov.uk/id/local-authority/38,Oxfordshire County Council,CSC MAIN TEAM,4342,Staff Use of Public Transport,04/03/2020,2200743207,540,The Oxfordshire Taxi Company Ltd T/
http://statistics.data.gov.uk/id/local-authority/38,Oxfordshire County Council,Delegated Health Tasks  - Over 65,5689,,31/03/2020,3110720776,540.68,Caremark (West Oxfordshire & Cherwe
http://statistics.data.gov.uk/id/local-authority/38,Oxfordshire County Council,CONTRACEPTION,4934,,07/03/2020,3110712919,540.8,Boots the Chemist
http://statistics.data.gov.uk/id/local-authority/38,Oxfordshire County Council,COUNTY PRINT FINSHRS,4531,Materials,27/03/2020,2200752644,541.09,Lexon Group
http://statistics.data.gov.uk/id/local-authority/38,Oxfordshire County Council,FOSTERING MAIN,5545,B*Fostering Enhancements - Level 2,25/03/2020,3110717666,541.15,Redacted Personal Data
http://statistics.data.gov.uk/id/local-authority/38,Oxfordshire County Council,Support at Home U65 Learning Disability,5690,,11/03/2020,3110708625,542.5,Turnstyle
http://statistics.data.gov.uk/id/local-authority/38,Oxfordshire County Council,Support at Home U65 Learning Disability,5682,,12/03/2020,3110712812,542.64,The Brandon Trust
http://statistics.data.gov.uk/id/local-authority/38,Oxfordshire County Council,Support at Home U65 Learning Disability,5686,,11/03/2020,3110709879,542.85,Cherwood House Care Centre
http://statistics.data.gov.uk/id/local-authority/38,Oxfordshire County Council,MUSEUM RETAIL,4531,Materials,10/03/2020,2200745432,543.01,HOUSE OF MARBLES
http://statistics.data.gov.uk/id/local-authority/38,Oxfordshire County Council,Delegated Health Tasks  - Over 65,5691,,10/03/2020,3110707966,543.2,The Caring Company (Oxon)
http://statistics.data.gov.uk/id/local-authority/38,Oxfordshire County Council,NURSERY ED FUND,5537,Payments to Other Establishments,31/03/2020,3110722541,543.6,Orchard Meadow Primary School
http://statistics.data.gov.uk/id/local-authority/38,Oxfordshire County Council,DEFINITIVE MAP,3103,Other Training Courses and Qualification,10/03/2020,2200745862,544,INSTITUTE OF PUBLIC RIGHTS OF WAY
http://statistics.data.gov.uk/id/local-authority/38,Oxfordshire County Council,Support at Home 65+ Physical Support,5899,Social Care - Direct Payments,17/03/2020,3110714808,544,Redacted Personal Data
http://statistics.data.gov.uk/id/local-authority/38,Oxfordshire County Council,TRAINING MANAGEMENT,3100,Educational and Vocational Training,23/03/2020,2200750551,544,South Central Ambulance Service
http://statistics.data.gov.uk/id/local-authority/38,Oxfordshire County Council,FOSTERING MAIN,5548,B*Fostering - Special Rates & Plus Amou,31/03/2020,3110720424,544.33,Redacted Personal Data
http://statistics.data.gov.uk/id/local-authority/38,Oxfordshire County Council,SEN TRANSPORT,5227,Other Transport Arrangements,18/03/2020,3110716095,544.5,C V OSullivan
http://statistics.data.gov.uk/id/local-authority/38,Oxfordshire County Council,SEN TRANSPORT,5227,Other Transport Arrangements,25/03/2020,3110718311,544.5,Oxon Transport Services Ltd
http://statistics.data.gov.uk/id/local-authority/38,Oxfordshire County Council,Support at Home 65+ Physical Support,5689,,31/03/2020,3110721104,544.85,Greigcare Home Service
http://statistics.data.gov.uk/id/local-authority/38,Oxfordshire County Council,LEAVING CARE NORTH,5227,Other Transport Arrangements,04/03/2020,9300045827,545.39,OCC SS Oxford City Div 1 Cash
http://statistics.data.gov.uk/id/local-authority/38,Oxfordshire County Council,DIRECTOR'S OFFICE,3942,Hire of Accommodation and Facilities,03/03/2020,2200742554,545.52,NYS CORPORATE LTD
http://statistics.data.gov.uk/id/local-authority/38,Oxfordshire County Council,Support at Home 65+ Physical Support,5693,,25/03/2020,3110718217,545.56,We-Care-Recruitment Ltd
http://statistics.data.gov.uk/id/local-authority/38,Oxfordshire County Council,North FSS Statutory - Bicester,4330,Transport to School Activities,09/03/2020,3110706560,546,The Oxford Minibus Company Ltd
http://statistics.data.gov.uk/id/local-authority/38,Oxfordshire County Council,Support at Home 65+ Mental Health,5689,,31/03/2020,3110721123,546.16,Harino Care
http://statistics.data.gov.uk/id/local-authority/38,Oxfordshire County Council,Support at Home 65+ Physical Support,5689,,31/03/2020,3110720743,546.83,Care Outlook Ltd
http://statistics.data.gov.uk/id/local-authority/38,Oxfordshire County Council,Support at Home U65 Learning Disability,5899,Social Care - Direct Payments,17/03/2020,3110713708,546.88,Redacted Personal Data
http://statistics.data.gov.uk/id/local-authority/38,Oxfordshire County Council,Support at Home 65+ Physical Support,5689,,31/03/2020,3110720919,546.92,Oxfordshire Crossroads
http://statistics.data.gov.uk/id/local-authority/38,Oxfordshire County Council,Contingency Home Care,5689,,03/03/2020,3110705680,547.36,OXFORD HEALTH NHS FOUNDATION TRUST
http://statistics.data.gov.uk/id/local-authority/38,Oxfordshire County Council,Support at Home U65 Physical Support,5698,,25/03/2020,3110718978,547.54,Oxford Private Care
http://statistics.data.gov.uk/id/local-authority/38,Oxfordshire County Council,Support at Home 65+ Physical Support,5689,,03/03/2020,3110705535,547.69,Harino Care
http://statistics.data.gov.uk/id/local-authority/38,Oxfordshire County Council,NURSERY ED FUND,5537,Payments to Other Establishments,04/03/2020,3110703665,547.82,Redacted Personal Data
http://statistics.data.gov.uk/id/local-authority/38,Oxfordshire County Council,Support at Home 65+ Physical Support,5689,,03/03/2020,3110705875,547.96,PLL Care Services
http://statistics.data.gov.uk/id/local-authority/38,Oxfordshire County Council,FOSTERING MAIN,5545,B*Fostering Enhancements - Level 2,03/03/2020,3110705037,548,Redacted Personal Data
http://statistics.data.gov.uk/id/local-authority/38,Oxfordshire County Council,FAM GRP CONFERENCES,5668,Technical and Professional Consultant F,16/03/2020,2200747837,548.5,Shellie Keen
http://statistics.data.gov.uk/id/local-authority/38,Oxfordshire County Council,Support at Home 65+ Physical Support,5689,,25/03/2020,3110718936,548.91,Oxford Private Care
http://statistics.data.gov.uk/id/local-authority/38,Oxfordshire County Council,,1162,VAT - Input Adjustment,27/03/2020,3110719610,549,Weightmans LLP
http://statistics.data.gov.uk/id/local-authority/38,Oxfordshire County Council,Support at Home 65+ Learning Disability,5690,,11/03/2020,3110708824,549.14,Style Acre
http://statistics.data.gov.uk/id/local-authority/38,Oxfordshire County Council,40 THE MOORS,4685,Clothing and Uniforms,25/03/2020,9300046396,549.19,OCC Thornbury Hse Ass Ctr Cash
http://statistics.data.gov.uk/id/local-authority/38,Oxfordshire County Council,Support at Home 65+ Physical Support,5689,,03/03/2020,3110705129,549.32,Oxfordshire Crossroads
http://statistics.data.gov.uk/id/local-authority/38,Oxfordshire County Council,TRANSPORT COSTS,5227,Other Transport Arrangements,09/03/2020,3110706567,549.9,Charlies Taxis Ltd
http://statistics.data.gov.uk/id/local-authority/38,Oxfordshire County Council,NURSERY ED FUND,5537,Payments to Other Establishments,31/03/2020,3110722572,549.96,The Sunshine Centre
http://statistics.data.gov.uk/id/local-authority/38,Oxfordshire County Council,SEN TRANSPORT,4330,Transport to School Activities,11/03/2020,3110712622,550,Abingdon Taxis FKN Autotaxis
http://statistics.data.gov.uk/id/local-authority/38,Oxfordshire County Council,LEGAL SERVICES,5251,Legal Costs,02/03/2020,2200742244,550,Annie Sayers
http://statistics.data.gov.uk/id/local-authority/38,Oxfordshire County Council,LEGAL SERVICES,5251,Legal Costs,03/03/2020,2200742543,550,Annie Sayers
http://statistics.data.gov.uk/id/local-authority/38,Oxfordshire County Council,MAINSTREAM-SECONDARY,4330,Transport to School Activities,04/03/2020,3110706252,550,Cherwell Cars
http://statistics.data.gov.uk/id/local-authority/38,Oxfordshire County Council,LEGAL SERVICES,5251,Legal Costs,03/03/2020,2200742546,550,David Marusza
http://statistics.data.gov.uk/id/local-authority/38,Oxfordshire County Council,LEGAL SERVICES,5251,Legal Costs,24/03/2020,2200751305,550,David Marusza
http://statistics.data.gov.uk/id/local-authority/38,Oxfordshire County Council,LEGAL SERVICES,5251,Legal Costs,11/03/2020,2200746318,550,Eleanor Howard
http://statistics.data.gov.uk/id/local-authority/38,Oxfordshire County Council,TRAFF SIGNALS MTCE,5526,Payments to Private Contractors,17/03/2020,2200748699,550,JSTSM Ltd
http://statistics.data.gov.uk/id/local-authority/38,Oxfordshire County Council,LEGAL SERVICES,5251,Legal Costs,02/03/2020,2200741853,550,Redacted Personal Data
http://statistics.data.gov.uk/id/local-authority/38,Oxfordshire County Council,LEGAL SERVICES,5251,Legal Costs,26/03/2020,2200752270,550,Mavis Amonoo-Acquah
http://statistics.data.gov.uk/id/local-authority/38,Oxfordshire County Council,LEGAL SERVICES,5251,Legal Costs,03/03/2020,2200742507,550,Miss Chloe Wilkins
http://statistics.data.gov.uk/id/local-authority/38,Oxfordshire County Council,LEGAL SERVICES,5251,Legal Costs,26/03/2020,2200751901,550,Miss Chloe Wilkins
http://statistics.data.gov.uk/id/local-authority/38,Oxfordshire County Council,L&D CORE PROGRAMME,3103,Other Training Courses and Qualification,20/03/2020,2200750030,550,Premier Partnership
http://statistics.data.gov.uk/id/local-authority/38,Oxfordshire County Council,Support at Home 65+ Physical Support,5693,,18/03/2020,3110715996,550,Royle Care Ltd.
http://statistics.data.gov.uk/id/local-authority/38,Oxfordshire County Council,Central FSS Statutory - Blackbird Leys,5227,Other Transport Arrangements,18/03/2020,3110716109,550,Supreme Taxis
http://statistics.data.gov.uk/id/local-authority/38,Oxfordshire County Council,LEGAL SERVICES,5251,Legal Costs,11/03/2020,2200746471,550,Vicky Reynolds
http://statistics.data.gov.uk/id/local-authority/38,Oxfordshire County Council,LEGAL SERVICES,5251,Legal Costs,11/03/2020,2200746494,550,Vicky Reynolds
http://statistics.data.gov.uk/id/local-authority/38,Oxfordshire County Council,Support at Home 65+ Physical Support,5689,,31/03/2020,3110720846,550.06,Caretree Ltd
http://statistics.data.gov.uk/id/local-authority/38,Oxfordshire County Council,Support at Home 65+ Physical Support,5696,,25/03/2020,3110718122,551.16,Orders of St John Care Trust
http://statistics.data.gov.uk/id/local-authority/38,Oxfordshire County Council,Support at Home 65+ Physical Support,5698,,25/03/2020,3110718613,551.23,Charterville Care At Home Ltd
http://statistics.data.gov.uk/id/local-authority/38,Oxfordshire County Council,VOIDS/VACANCY COSTS,3945,Rent,11/03/2020,3110708494,551.49,Cherwell District Council
http://statistics.data.gov.uk/id/local-authority/38,Oxfordshire County Council,VOIDS/VACANCY COSTS,3945,Rent,11/03/2020,3110708496,551.49,Cherwell District Council
http://statistics.data.gov.uk/id/local-authority/38,Oxfordshire County Council,VOIDS/VACANCY COSTS,3945,Rent,11/03/2020,3110708499,551.49,Cherwell District Council
http://statistics.data.gov.uk/id/local-authority/38,Oxfordshire County Council,VOIDS/VACANCY COSTS,3945,Rent,11/03/2020,3110708501,551.49,Cherwell District Council
http://statistics.data.gov.uk/id/local-authority/38,Oxfordshire County Council,Support at Home 65+ Physical Support,5698,,25/03/2020,3110718861,551.69,Day & Night Care Assistance
http://statistics.data.gov.uk/id/local-authority/38,Oxfordshire County Council,Support at Home 65+ Memory & Cognition,5899,Social Care - Direct Payments,17/03/2020,3110713699,552,Redacted Personal Data
http://statistics.data.gov.uk/id/local-authority/38,Oxfordshire County Council,Support at Home U65 Sensory Support,5899,Social Care - Direct Payments,17/03/2020,3110713719,552,Redacted Personal Data
http://statistics.data.gov.uk/id/local-authority/38,Oxfordshire County Council,Support at Home U65 Other /Soc Isolation,5899,Social Care - Direct Payments,17/03/2020,3110714115,552,Purple Conversation Com In Co (DP)
http://statistics.data.gov.uk/id/local-authority/38,Oxfordshire County Council,CHC Fast Track - Sup at Home - Under 65,5691,,03/03/2020,3110704272,552,Sue Ryder
http://statistics.data.gov.uk/id/local-authority/38,Oxfordshire County Council,Contingency Home Care,5689,,03/03/2020,3110705717,552.03,Oxford University Hospitals NHS FT
http://statistics.data.gov.uk/id/local-authority/38,Oxfordshire County Council,Support at Home U65 Learning Disability,5698,,25/03/2020,3110718750,552.13,Day & Night Care Assistance
http://statistics.data.gov.uk/id/local-authority/38,Oxfordshire County Council,Support at Home 65+ Physical Support,5689,,03/03/2020,3110705866,552.31,PLL Care Services
http://statistics.data.gov.uk/id/local-authority/38,Oxfordshire County Council,Delegated Health Tasks  - Over 65,5691,,23/03/2020,3110716833,552.7,George Springall Homecare
http://statistics.data.gov.uk/id/local-authority/38,Oxfordshire County Council,LOOKED AFTER CITY 2,4330,Transport to School Activities,17/03/2020,3110715586,552.75,Redacted Personal Data
http://statistics.data.gov.uk/id/local-authority/38,Oxfordshire County Council,FOSTERING MAIN,5549,B*Fostering Allowance - Regulation 38,03/03/2020,3110705076,552.9,Redacted Personal Data
http://statistics.data.gov.uk/id/local-authority/38,Oxfordshire County Council,FOSTERING MAIN,5549,B*Fostering Allowance - Regulation 38,31/03/2020,3110720264,552.9,Redacted Personal Data
http://statistics.data.gov.uk/id/local-authority/38,Oxfordshire County Council,L&D CORE PROGRAMME,4615,Drugs and Medical Supplies,06/03/2020,2200744210,553,ST JOHN AMBULANCE
http://statistics.data.gov.uk/id/local-authority/38,Oxfordshire County Council,Support at Home 65+ Physical Support,5689,,31/03/2020,3110720899,553.03,Oxfordshire Crossroads
http://statistics.data.gov.uk/id/local-authority/38,Oxfordshire County Council,Support at Home U65 Learning Disability,5899,Social Care - Direct Payments,17/03/2020,3110715177,553.2,Purple Conversation Com In Co (DP)
http://statistics.data.gov.uk/id/local-authority/38,Oxfordshire County Council,,1416,FSNBF,04/03/2020,3110706029,553.2,THE FIRE FIGHTERS CHARITY
http://statistics.data.gov.uk/id/local-authority/38,Oxfordshire County Council,Support at Home 65+ Other /Soc Isolation,5689,,03/03/2020,3110705395,553.34,Goldsmith Personnel Ltd
http://statistics.data.gov.uk/id/local-authority/38,Oxfordshire County Council,Support at Home U65 Learning Disability,5690,,11/03/2020,3110708776,553.35,Style Acre
http://statistics.data.gov.uk/id/local-authority/38,Oxfordshire County Council,Support at Home 65+ Physical Support,5689,,31/03/2020,3110720904,553.46,Oxfordshire Crossroads
http://statistics.data.gov.uk/id/local-authority/38,Oxfordshire County Council,Support at Home 65+ Mental Health,5689,,31/03/2020,3110721115,554.2,Harino Care
http://statistics.data.gov.uk/id/local-authority/38,Oxfordshire County Council,SEN TRANSPORT,5227,Other Transport Arrangements,02/03/2020,3110704075,554.4,Henley Taxis Ltd
http://statistics.data.gov.uk/id/local-authority/38,Oxfordshire County Council,Support at Home 65+ Physical Support,5689,,03/03/2020,3110705487,554.76,Greigcare Home Service
http://statistics.data.gov.uk/id/local-authority/38,Oxfordshire County Council,Delegated Health Tasks  - Over 65,5689,,03/03/2020,3110704797,554.79,Caremark (West Oxfordshire & Cherwe
http://statistics.data.gov.uk/id/local-authority/38,Oxfordshire County Council,CONCESSIONARY FARES,5781,Payments to Transport Operators,19/03/2020,2200749791,554.82,Stagecoach Services Ltd
http://statistics.data.gov.uk/id/local-authority/38,Oxfordshire County Council,Support at Home U65 Physical Support,5899,Social Care - Direct Payments,17/03/2020,3110714607,555.2,Purple Conversation Com In Co (DP)
http://statistics.data.gov.uk/id/local-authority/38,Oxfordshire County Council,Support at Home 65+ Physical Support,5698,,25/03/2020,3110718646,555.54,Charterville Care At Home Ltd
http://statistics.data.gov.uk/id/local-authority/38,Oxfordshire County Council,Support at Home U65 Physical Support,5899,Social Care - Direct Payments,17/03/2020,3110713959,556,Purple Conversation Com In Co (DP)
http://statistics.data.gov.uk/id/local-authority/38,Oxfordshire County Council,Support at Home U65 Learning Disability,5899,Social Care - Direct Payments,17/03/2020,3110713806,556,Redacted Personal Data
http://statistics.data.gov.uk/id/local-authority/38,Oxfordshire County Council,Support at Home 65+ Physical Support,5689,,31/03/2020,3110721457,556.21,PLL Care Services
http://statistics.data.gov.uk/id/local-authority/38,Oxfordshire County Council,NURSERY ED FUND,5537,Payments to Other Establishments,04/03/2020,3110703799,557.52,Redacted Personal Data
http://statistics.data.gov.uk/id/local-authority/38,Oxfordshire County Council,Support at Home U65 Other /Soc Isolation,5899,Social Care - Direct Payments,17/03/2020,3110714045,557.6,Purple Conversation Com In Co (DP)
http://statistics.data.gov.uk/id/local-authority/38,Oxfordshire County Council,Support at Home U65 Physical Support,5899,Social Care - Direct Payments,17/03/2020,3110715300,558,Purple Conversation Com In Co (DP)
http://statistics.data.gov.uk/id/local-authority/38,Oxfordshire County Council,SM DISABILITIES,5554,Childrens' Social Care - Direct Payments,26/03/2020,3110719410,558,Purple Conversation Com In Co (DP)
http://statistics.data.gov.uk/id/local-authority/38,Oxfordshire County Council,MAINSTREAM-SECONDARY,4330,Transport to School Activities,25/03/2020,3110717872,558,Streamline Peppard Taxi
http://statistics.data.gov.uk/id/local-authority/38,Oxfordshire County Council,SM DISABILITIES,5554,Childrens' Social Care - Direct Payments,26/03/2020,3110719314,558,Redacted Personal Data
http://statistics.data.gov.uk/id/local-authority/38,Oxfordshire County Council,Support at Home U65 Learning Disability,5690,,11/03/2020,3110708640,558,Turnstyle
http://statistics.data.gov.uk/id/local-authority/38,Oxfordshire County Council,LIBRARY COLLECTIONS,4539,"Books, DVDs and CDs",18/03/2020,3110715895,558.14,ASKEWS & HOLTS LIBRARY SERVICES LTD
http://statistics.data.gov.uk/id/local-authority/38,Oxfordshire County Council,UASC 16&17,5604,,03/03/2020,3110704119,558.57,KEY2 FUTURES LTD
http://statistics.data.gov.uk/id/local-authority/38,Oxfordshire County Council,NURSERY ED FUND,5537,Payments to Other Establishments,31/03/2020,3110722470,559.28,Child First (Banbury)
http://statistics.data.gov.uk/id/local-authority/38,Oxfordshire County Council,ROW MAINT,4531,Materials,10/03/2020,2200745625,559.95,C J Clarke (Timber Merchants) Ltd
http://statistics.data.gov.uk/id/local-authority/38,Oxfordshire County Council,TRANSPORT COSTS,4330,Transport to School Activities,04/03/2020,3110706382,560,Abingdon Taxis FKN Autotaxis
http://statistics.data.gov.uk/id/local-authority/38,Oxfordshire County Council,TRANSPORT COSTS,4330,Transport to School Activities,04/03/2020,3110706383,560,Abingdon Taxis FKN Autotaxis
http://statistics.data.gov.uk/id/local-authority/38,Oxfordshire County Council,ROAD SAFETY,3103,Other Training Courses and Qualification,23/03/2020,2200750501,560,Avanti Cycling
http://statistics.data.gov.uk/id/local-authority/38,Oxfordshire County Council,SEN TRANSPORT,5227,Other Transport Arrangements,03/03/2020,3110704325,560,Banbury Taxis
http://statistics.data.gov.uk/id/local-authority/38,Oxfordshire County Council,Support at Home U65 Learning Disability,5697,,11/03/2020,3110708026,560,Guideposts Trust
http://statistics.data.gov.uk/id/local-authority/38,Oxfordshire County Council,Support at Home 65+ Physical Support,5899,Social Care - Direct Payments,17/03/2020,3110713948,560,Redacted Personal Data
http://statistics.data.gov.uk/id/local-authority/38,Oxfordshire County Council,LAC PUPIL PREMIUM,5537,Payments to Other Establishments,17/03/2020,3110713345,560,Meadowfield School
http://statistics.data.gov.uk/id/local-authority/38,Oxfordshire County Council,Support at Home 65+ Physical Support,5899,Social Care - Direct Payments,17/03/2020,3110713777,560,Redacted Personal Data
http://statistics.data.gov.uk/id/local-authority/38,Oxfordshire County Council,Support at Home U65 MH OBC Contract,5691,,09/03/2020,3110706775,560,Oasis Private Care Ltd
http://statistics.data.gov.uk/id/local-authority/38,Oxfordshire County Council,Support at Home U65 MH OBC Contract,5691,,12/03/2020,3110712905,560,Oasis Private Care Ltd
http://statistics.data.gov.uk/id/local-authority/38,Oxfordshire County Council,Support at Home U65 MH OBC Contract,5691,,24/03/2020,3110717053,560,Oasis Private Care Ltd
http://statistics.data.gov.uk/id/local-authority/38,Oxfordshire County Council,Central FSS Statutory - Barton,5227,Other Transport Arrangements,18/03/2020,3110715865,560,Oxon Transport Services Ltd
http://statistics.data.gov.uk/id/local-authority/38,Oxfordshire County Council,SEN TRANSPORT,5227,Other Transport Arrangements,25/03/2020,3110718295,560,Oxon Transport Services Ltd
http://statistics.data.gov.uk/id/local-authority/38,Oxfordshire County Council,SEN TRANSPORT,5227,Other Transport Arrangements,25/03/2020,3110718319,560,Oxon Transport Services Ltd
http://statistics.data.gov.uk/id/local-authority/38,Oxfordshire County Council,SEN TRANSPORT,5227,Other Transport Arrangements,25/03/2020,3110718325,560,Oxon Transport Services Ltd
http://statistics.data.gov.uk/id/local-authority/38,Oxfordshire County Council,Support at Home 65+ Physical Support,5899,Social Care - Direct Payments,17/03/2020,3110714368,560,Purple Conversation Com In Co (DP)
http://statistics.data.gov.uk/id/local-authority/38,Oxfordshire County Council,Support at Home U65 Learning Disability,5899,Social Care - Direct Payments,17/03/2020,3110714422,560,Purple Conversation Com In Co (DP)
http://statistics.data.gov.uk/id/local-authority/38,Oxfordshire County Council,Support at Home U65 Physical Support,5899,Social Care - Direct Payments,17/03/2020,3110714867,560,Purple Conversation Com In Co (DP)
http://statistics.data.gov.uk/id/local-authority/38,Oxfordshire County Council,Support at Home U65 Physical Support,5899,Social Care - Direct Payments,17/03/2020,3110715113,560,Purple Conversation Com In Co (DP)
http://statistics.data.gov.uk/id/local-authority/38,Oxfordshire County Council,Support at Home 65+ Physical Support,5899,Social Care - Direct Payments,17/03/2020,3110715264,560,Purple Conversation Com In Co (DP)
http://statistics.data.gov.uk/id/local-authority/38,Oxfordshire County Council,SEN TRANSPORT,5227,Other Transport Arrangements,09/03/2020,3110706588,560,The Oxford Minibus Company Ltd
http://statistics.data.gov.uk/id/local-authority/38,Oxfordshire County Council,SEN TRANSPORT,5227,Other Transport Arrangements,23/03/2020,3110716580,560,The Oxfordshire Taxi Company Ltd T/
http://statistics.data.gov.uk/id/local-authority/38,Oxfordshire County Council,SEN TRANSPORT,5227,Other Transport Arrangements,23/03/2020,3110716588,560,The Oxfordshire Taxi Company Ltd T/
http://statistics.data.gov.uk/id/local-authority/38,Oxfordshire County Council,SEN TRANSPORT,5227,Other Transport Arrangements,23/03/2020,3110716616,560,The Oxfordshire Taxi Company Ltd T/
http://statistics.data.gov.uk/id/local-authority/38,Oxfordshire County Council,Central FSS Statutory - Blackbird Leys,5227,Other Transport Arrangements,23/03/2020,3110716683,560,The Oxfordshire Taxi Company Ltd T/
http://statistics.data.gov.uk/id/local-authority/38,Oxfordshire County Council,Wokingham Adoption Support Fund,4859,Medical and Counselling Fees,31/03/2020,2200753896,560,The Paperclip Group
http://statistics.data.gov.uk/id/local-authority/38,Oxfordshire County Council,Support at Home 65+ Physical Support,5689,,03/03/2020,3110705830,560.09,PLL Care Services
http://statistics.data.gov.uk/id/local-authority/38,Oxfordshire County Council,Support at Home 65+ Physical Support,5696,,25/03/2020,3110718121,560.24,Orders of St John Care Trust
http://statistics.data.gov.uk/id/local-authority/38,Oxfordshire County Council,STAFF HOUSING GEN,3956,Non System - Water - Metered,27/03/2020,3110719606,560.52,Thames Water Utilities Ltd
http://statistics.data.gov.uk/id/local-authority/38,Oxfordshire County Council,,1162,VAT - Input Adjustment,18/03/2020,3110716080,561,Weightmans LLP
http://statistics.data.gov.uk/id/local-authority/38,Oxfordshire County Council,,1162,VAT - Input Adjustment,27/03/2020,3110719607,561,Weightmans LLP
http://statistics.data.gov.uk/id/local-authority/38,Oxfordshire County Council,FOSTERING MAIN,5549,B*Fostering Allowance - Regulation 38,10/03/2020,3110707682,561.43,Redacted Personal Data
http://statistics.data.gov.uk/id/local-authority/38,Oxfordshire County Council,Support at Home 65+ Physical Support,5899,Social Care - Direct Payments,17/03/2020,3110715200,561.44,Purple Conversation Com In Co (DP)
http://statistics.data.gov.uk/id/local-authority/38,Oxfordshire County Council,Support at Home 65+ Physical Support,5693,,25/03/2020,3110717882,561.87,247 HOME CARE LTD
http://statistics.data.gov.uk/id/local-authority/38,Oxfordshire County Council,MAINSTREAM-SECONDARY,4330,Transport to School Activities,10/03/2020,3110706886,562.5,Ace Taxis (West Oxfordshire) Ltd
http://statistics.data.gov.uk/id/local-authority/38,Oxfordshire County Council,LIBRARY COLLECTIONS,4706,Stationery and other office consumables,25/03/2020,2200751730,562.5,Bibliotheca Ltd
http://statistics.data.gov.uk/id/local-authority/38,Oxfordshire County Council,Support at Home 65+ Physical Support,5696,,25/03/2020,3110718040,562.5,One Housing Group Limited
http://statistics.data.gov.uk/id/local-authority/38,Oxfordshire County Council,MAINSTREAM-PRIMARY,4330,Transport to School Activities,23/03/2020,3110716369,562.5,Streamline Peppard Taxi
http://statistics.data.gov.uk/id/local-authority/38,Oxfordshire County Council,MAINSTREAM-SECONDARY,4330,Transport to School Activities,23/03/2020,3110716370,562.5,Streamline Peppard Taxi
http://statistics.data.gov.uk/id/local-authority/38,Oxfordshire County Council,Support at Home 65+ Memory & Cognition,5899,Social Care - Direct Payments,17/03/2020,3110714685,562.6,Purple Conversation Com In Co (DP)
http://statistics.data.gov.uk/id/local-authority/38,Oxfordshire County Council,Contingency Home Care,5689,,03/03/2020,3110705771,562.69,Oxford University Hospitals NHS FT
http://statistics.data.gov.uk/id/local-authority/38,Oxfordshire County Council,LIBRARY COLLECTIONS,4539,"Books, DVDs and CDs",24/03/2020,3110716934,562.81,ASKEWS & HOLTS LIBRARY SERVICES LTD
http://statistics.data.gov.uk/id/local-authority/38,Oxfordshire County Council,FOSTERING MAIN,5549,B*Fostering Allowance - Regulation 38,31/03/2020,3110720299,562.9,Redacted Personal Data
http://statistics.data.gov.uk/id/local-authority/38,Oxfordshire County Council,LIBRARY COLLECTIONS,4539,"Books, DVDs and CDs",18/03/2020,3110715928,563.1,ASKEWS & HOLTS LIBRARY SERVICES LTD
http://statistics.data.gov.uk/id/local-authority/38,Oxfordshire County Council,Support at Home 65+ Physical Support,5689,,31/03/2020,3110721456,563.66,PLL Care Services
http://statistics.data.gov.uk/id/local-authority/38,Oxfordshire County Council,Support at Home 65+ Physical Support,5689,,31/03/2020,3110720918,563.78,Oxfordshire Crossroads
http://statistics.data.gov.uk/id/local-authority/38,Oxfordshire County Council,SEN TRANSPORT,5227,Other Transport Arrangements,18/03/2020,3110716092,564,C V OSullivan
http://statistics.data.gov.uk/id/local-authority/38,Oxfordshire County Council,Support at Home 65+ Physical Support,5899,Social Care - Direct Payments,17/03/2020,3110714219,564,Purple Conversation Com In Co (DP)
http://statistics.data.gov.uk/id/local-authority/38,Oxfordshire County Council,Support at Home U65 Learning Disability,5899,Social Care - Direct Payments,17/03/2020,3110715002,564,Purple Conversation Com In Co (DP)
http://statistics.data.gov.uk/id/local-authority/38,Oxfordshire County Council,Support at Home U65 Physical Support,5899,Social Care - Direct Payments,17/03/2020,3110715042,564,Purple Conversation Com In Co (DP)
http://statistics.data.gov.uk/id/local-authority/38,Oxfordshire County Council,Contingency Home Care,5689,,03/03/2020,3110705794,564.03,Oxford University Hospitals NHS FT
http://statistics.data.gov.uk/id/local-authority/38,Oxfordshire County Council,Support at Home 65+ Physical Support,5689,,03/03/2020,3110705900,564.13,Premier Personal Care
http://statistics.data.gov.uk/id/local-authority/38,Oxfordshire County Council,FOSTERING MAIN,5548,B*Fostering - Special Rates & Plus Amou,10/03/2020,3110707289,564.57,Redacted Personal Data
http://statistics.data.gov.uk/id/local-authority/38,Oxfordshire County Council,MEADOWBROOK TRANSPT,4330,Transport to School Activities,10/03/2020,3110706910,565,Cherwell Cars
http://statistics.data.gov.uk/id/local-authority/38,Oxfordshire County Council,FOSTERING MAIN,5394,Other Expenses,10/03/2020,3110707480,565,Redacted Personal Data
http://statistics.data.gov.uk/id/local-authority/38,Oxfordshire County Council,DEFECT REPAIRS,3821,Grounds Maintenance Contracts,04/03/2020,2200742980,565,Treetech Arboricultural Services Lt
http://statistics.data.gov.uk/id/local-authority/38,Oxfordshire County Council,Support at Home U65 Learning Disability,5696,,25/03/2020,3110718144,565.33,Orders of St John Care Trust
http://statistics.data.gov.uk/id/local-authority/38,Oxfordshire County Council,FPT SOUTH/VALE,5227,Other Transport Arrangements,25/03/2020,3110717680,565.72,Redacted Personal Data
http://statistics.data.gov.uk/id/local-authority/38,Oxfordshire County Council,Support at Home U65 Learning Disability,5899,Social Care - Direct Payments,17/03/2020,3110714964,565.88,Redacted Personal Data
http://statistics.data.gov.uk/id/local-authority/38,Oxfordshire County Council,Contingency Home Care,5689,,03/03/2020,3110705719,566.03,Oxford University Hospitals NHS FT
http://statistics.data.gov.uk/id/local-authority/38,Oxfordshire County Council,Support at Home 65+ Physical Support,5689,,03/03/2020,3110704703,566.28,Care Outlook Ltd
http://statistics.data.gov.uk/id/local-authority/38,Oxfordshire County Council,North FSS Statutory - Bicester,4330,Transport to School Activities,09/03/2020,3110706514,567,Bicester Cars UK Ltd
http://statistics.data.gov.uk/id/local-authority/38,Oxfordshire County Council,Community Support Service Wantage,2040,Agency Staff,05/03/2020,2200743678,567,Completely Care Ltd
http://statistics.data.gov.uk/id/local-authority/38,Oxfordshire County Council,Support at Home 65+ Physical Support,5689,,31/03/2020,3110721436,567.2,PLL Care Services
http://statistics.data.gov.uk/id/local-authority/38,Oxfordshire County Council,Planned preventative Maintenance,3787,Premises Repairs,16/03/2020,2200748145,567.5,Windrush Door & Window Services Ltd
http://statistics.data.gov.uk/id/local-authority/38,Oxfordshire County Council,Support at Home 65+ Physical Support,5689,,03/03/2020,3110705971,567.55,AVR (Oxon) Ltd
http://statistics.data.gov.uk/id/local-authority/38,Oxfordshire County Council,Support at Home 65+ Physical Support,5689,,31/03/2020,3110720819,567.62,Caremark (West Oxfordshire & Cherwe
http://statistics.data.gov.uk/id/local-authority/38,Oxfordshire County Council,Support at Home U65 Learning Disability,5899,Social Care - Direct Payments,17/03/2020,3110714524,567.84,Redacted Personal Data
http://statistics.data.gov.uk/id/local-authority/38,Oxfordshire County Council,Councillors Priorities Fund,4940,Other Services,19/03/2020,3110716270,568,Freeland Cricket Club
http://statistics.data.gov.uk/id/local-authority/38,Oxfordshire County Council,LIABILITY,3153,,12/03/2020,3110712869,568,OCC One Time Vendor
http://statistics.data.gov.uk/id/local-authority/38,Oxfordshire County Council,Support at Home 65+ Physical Support,5899,Social Care - Direct Payments,17/03/2020,3110714595,568,Purple Conversation Com In Co (DP)
http://statistics.data.gov.uk/id/local-authority/38,Oxfordshire County Council,Contingency Home Care,5689,,03/03/2020,3110705748,568.03,Oxford University Hospitals NHS FT
http://statistics.data.gov.uk/id/local-authority/38,Oxfordshire County Council,MOTOR FLEET,3053,,31/03/2020,3110719723,568.08,OCC One Time Vendor
http://statistics.data.gov.uk/id/local-authority/38,Oxfordshire County Council,Support at Home 65+ Physical Support,5693,,25/03/2020,3110718203,568.32,We-Care-Recruitment Ltd
http://statistics.data.gov.uk/id/local-authority/38,Oxfordshire County Council,AGENCY RESID - DISAB,5549,B*Fostering Allowance - Regulation 38,31/03/2020,3110720455,569,Redacted Personal Data
http://statistics.data.gov.uk/id/local-authority/38,Oxfordshire County Council,FOSTERING MAIN,5541,B*Foster Parents,10/03/2020,3110707173,569,Redacted Personal Data
http://statistics.data.gov.uk/id/local-authority/38,Oxfordshire County Council,FOSTERING MAIN,5541,B*Foster Parents,17/03/2020,3110715494,569,Redacted Personal Data
http://statistics.data.gov.uk/id/local-authority/38,Oxfordshire County Council,FOSTERING MAIN,5541,B*Foster Parents,25/03/2020,3110717645,569,Redacted Personal Data
http://statistics.data.gov.uk/id/local-authority/38,Oxfordshire County Council,FOSTERING MAIN,5541,B*Foster Parents,31/03/2020,3110720022,569,Redacted Personal Data
http://statistics.data.gov.uk/id/local-authority/38,Oxfordshire County Council,Delegated Health Tasks  - Over 65,5698,,25/03/2020,3110718632,569.22,Charterville Care At Home Ltd
http://statistics.data.gov.uk/id/local-authority/38,Oxfordshire County Council,Support at Home U65 Learning Disability,5688,,11/03/2020,3110710159,569.47,Mencap Contracts
http://statistics.data.gov.uk/id/local-authority/38,Oxfordshire County Council,Support at Home U65 Learning Disability,5688,,11/03/2020,3110710205,569.47,Mencap Contracts
http://statistics.data.gov.uk/id/local-authority/38,Oxfordshire County Council,Support at Home U65 Learning Disability,5688,,11/03/2020,3110710207,569.47,Mencap Contracts
http://statistics.data.gov.uk/id/local-authority/38,Oxfordshire County Council,Support at Home 65+ Learning Disability,5690,,11/03/2020,3110708698,569.47,Style Acre
http://statistics.data.gov.uk/id/local-authority/38,Oxfordshire County Council,Support at Home 65+ Learning Disability,5688,,11/03/2020,3110710557,569.47,The Brandon Trust
http://statistics.data.gov.uk/id/local-authority/38,Oxfordshire County Council,Support at Home 65+ Learning Disability,5688,,11/03/2020,3110710582,569.47,The Brandon Trust
http://statistics.data.gov.uk/id/local-authority/38,Oxfordshire County Council,AAC EQUIPMENT,4494,Purchase of IT Equipment,31/03/2020,2200753874,569.5,Smile Smart Technology Ltd
http://statistics.data.gov.uk/id/local-authority/38,Oxfordshire County Council,Support at Home 65+ Physical Support,5689,,31/03/2020,3110720823,569.8,Caremark (West Oxfordshire & Cherwe
http://statistics.data.gov.uk/id/local-authority/38,Oxfordshire County Council,North FSS Statutory - Bicester,4330,Transport to School Activities,19/03/2020,3110716293,570,BC CARS
http://statistics.data.gov.uk/id/local-authority/38,Oxfordshire County Council,Covid-19 Home Support Planned Hours,5689,,31/03/2020,3110721170,570,Lifecarers Limited
http://statistics.data.gov.uk/id/local-authority/38,Oxfordshire County Council,SEN Miscellaneous Expenditure,5537,Payments to Other Establishments,25/03/2020,3110717562,570,OCC One Time Vendor
http://statistics.data.gov.uk/id/local-authority/38,Oxfordshire County Council,RESIDENTIAL STRATEGY,3100,Educational and Vocational Training,27/03/2020,2200752641,570,Oxford Brookes University
http://statistics.data.gov.uk/id/local-authority/38,Oxfordshire County Council,Support at Home U65 Learning Disability,5899,Social Care - Direct Payments,17/03/2020,3110715009,570,Purple Conversation Com In Co (DP)
http://statistics.data.gov.uk/id/local-authority/38,Oxfordshire County Council,LAC PUPIL PREMIUM,5537,Payments to Other Establishments,17/03/2020,3110713366,570,St Edwards RC/CE VA School
http://statistics.data.gov.uk/id/local-authority/38,Oxfordshire County Council,MAINSTREAM-PRIMARY,4330,Transport to School Activities,10/03/2020,3110706890,570,Town Cars
http://statistics.data.gov.uk/id/local-authority/38,Oxfordshire County Council,LAC PUPIL PREMIUM,5537,Payments to Other Establishments,17/03/2020,3110713387,570,Westwood Farm Schools Fed
http://statistics.data.gov.uk/id/local-authority/38,Oxfordshire County Council,LIBRARY COLLECTIONS,4539,"Books, DVDs and CDs",18/03/2020,3110715910,570.29,ASKEWS & HOLTS LIBRARY SERVICES LTD
http://statistics.data.gov.uk/id/local-authority/38,Oxfordshire County Council,FOSTERING MAIN,5549,B*Fostering Allowance - Regulation 38,17/03/2020,3110715679,570.71,Redacted Personal Data
http://statistics.data.gov.uk/id/local-authority/38,Oxfordshire County Council,Support at Home 65+ Physical Support,5689,,03/03/2020,3110705835,570.75,PLL Care Services
http://statistics.data.gov.uk/id/local-authority/38,Oxfordshire County Council,VOLUNTEER COORDINATION,4531,Materials,11/03/2020,2200746078,570.84,MEON MARKETING
http://statistics.data.gov.uk/id/local-authority/38,Oxfordshire County Council,Support at Home U65 Physical Support,5698,,25/03/2020,3110718475,570.88,Acquire Care Ltd
http://statistics.data.gov.uk/id/local-authority/38,Oxfordshire County Council,PROCUREMENT,4232,Vehicle Fuel,17/03/2020,2200748289,570.96,Certas Energy UK Ltd
http://statistics.data.gov.uk/id/local-authority/38,Oxfordshire County Council,Support at Home U65 Physical Support,5899,Social Care - Direct Payments,17/03/2020,3110714389,571.2,Purple Conversation Com In Co (DP)
http://statistics.data.gov.uk/id/local-authority/38,Oxfordshire County Council,Support at Home U65 Learning Disability,5899,Social Care - Direct Payments,17/03/2020,3110713858,572,Purple Conversation Com In Co (DP)
http://statistics.data.gov.uk/id/local-authority/38,Oxfordshire County Council,Support at Home U65 Learning Disability,5693,,25/03/2020,3110718137,572.5,Pechiv Ltd
http://statistics.data.gov.uk/id/local-authority/38,Oxfordshire County Council,Support at Home 65+ Physical Support,5698,,25/03/2020,3110718882,572.68,Day & Night Care Assistance
http://statistics.data.gov.uk/id/local-authority/38,Oxfordshire County Council,Support at Home U65 Physical Support,5698,,25/03/2020,3110718644,573,Charterville Care At Home Ltd
http://statistics.data.gov.uk/id/local-authority/38,Oxfordshire County Council,Delegated Health Tasks  - Over 65,5689,,31/03/2020,3110720896,573.13,Oxfordshire Crossroads
http://statistics.data.gov.uk/id/local-authority/38,Oxfordshire County Council,Support at Home 65+ Memory & Cognition,5687,,11/03/2020,3110711675,573.14,Vale House
http://statistics.data.gov.uk/id/local-authority/38,Oxfordshire County Council,Support at Home 65+ Learning Disability,5690,,11/03/2020,3110708812,573.94,Style Acre
http://statistics.data.gov.uk/id/local-authority/38,Oxfordshire County Council,School Readiness,3942,Hire of Accommodation and Facilities,10/03/2020,2200745876,573.96,NYS CORPORATE LTD
http://statistics.data.gov.uk/id/local-authority/38,Oxfordshire County Council,CORONER,5668,Technical and Professional Consultant F,11/03/2020,2200746487,574,Peter Geoffrey Clark
http://statistics.data.gov.uk/id/local-authority/38,Oxfordshire County Council,Support at Home U65 MH OBC Contract,5691,,09/03/2020,3110706785,574.4,Care With Dignity Partnerships
http://statistics.data.gov.uk/id/local-authority/38,Oxfordshire County Council,LIBRARY COLLECTIONS,4539,"Books, DVDs and CDs",27/03/2020,2200752458,574.4,W F HOWES LTD
http://statistics.data.gov.uk/id/local-authority/38,Oxfordshire County Council,Support at Home 65+ Physical Support,5696,,25/03/2020,3110718155,574.52,Orders of St John Care Trust
http://statistics.data.gov.uk/id/local-authority/38,Oxfordshire County Council,Support at Home U65 Physical Support,5698,,25/03/2020,3110718614,574.53,Charterville Care At Home Ltd
http://statistics.data.gov.uk/id/local-authority/38,Oxfordshire County Council,Support at Home U65 Learning Disability,5899,Social Care - Direct Payments,17/03/2020,3110713815,574.6,Redacted Personal Data
http://statistics.data.gov.uk/id/local-authority/38,Oxfordshire County Council,LIBRARY COLLECTIONS,4539,"Books, DVDs and CDs",25/03/2020,2200751743,574.64,Blackwells Music Shop
http://statistics.data.gov.uk/id/local-authority/38,Oxfordshire County Council,TREE MAINT OPS,5526,Payments to Private Contractors,31/03/2020,2200753832,575,Jenks Oxford Ltd
http://statistics.data.gov.uk/id/local-authority/38,Oxfordshire County Council,Support at Home U65 Learning Disability,5899,Social Care - Direct Payments,17/03/2020,3110714258,575.2,Redacted Personal Data
http://statistics.data.gov.uk/id/local-authority/38,Oxfordshire County Council,NURSERY ED FUND,5537,Payments to Other Establishments,31/03/2020,3110722580,575.7,West Kidlington Primary &NurserySch
http://statistics.data.gov.uk/id/local-authority/38,Oxfordshire County Council,SEN TRANSPORT,5227,Other Transport Arrangements,25/03/2020,3110718427,576,Oxon Transport Services Ltd
http://statistics.data.gov.uk/id/local-authority/38,Oxfordshire County Council,Support at Home U65 Mental Health,5899,Social Care - Direct Payments,17/03/2020,3110713659,576,Purple Conversation Com In Co (DP)
http://statistics.data.gov.uk/id/local-authority/38,Oxfordshire County Council,Support at Home 65+ Physical Support,5899,Social Care - Direct Payments,17/03/2020,3110714344,576,Purple Conversation Com In Co (DP)
http://statistics.data.gov.uk/id/local-authority/38,Oxfordshire County Council,Support at Home 65+ Physical Support,5899,Social Care - Direct Payments,17/03/2020,3110714638,576,Purple Conversation Com In Co (DP)
http://statistics.data.gov.uk/id/local-authority/38,Oxfordshire County Council,POST 16 SEN,4330,Transport to School Activities,09/03/2020,3110706581,576,The Oxford Minibus Company Ltd
http://statistics.data.gov.uk/id/local-authority/38,Oxfordshire County Council,Support at Home U65 Physical Support,5899,Social Care - Direct Payments,17/03/2020,3110713488,576.04,Purple Conversation Com In Co (DP)
http://statistics.data.gov.uk/id/local-authority/38,Oxfordshire County Council,40 THE MOORS,5394,Other Expenses,02/03/2020,9300045783,576.69,OCC Thornbury Hse Ass Ctr Cash
http://statistics.data.gov.uk/id/local-authority/38,Oxfordshire County Council,ELEC PRIN RD ST LTG,5526,Payments to Private Contractors,18/03/2020,2200748900,576.73,Bouygues E&S Infrastructure UK Ltd
http://statistics.data.gov.uk/id/local-authority/38,Oxfordshire County Council,Support at Home U65 MH OBC Contract,5691,,16/03/2020,3110713561,576.74,BANTU Carers Ltd
http://statistics.data.gov.uk/id/local-authority/38,Oxfordshire County Council,Support at Home U65 Physical Support,5899,Social Care - Direct Payments,17/03/2020,3110713623,576.8,Purple Conversation Com In Co (DP)
http://statistics.data.gov.uk/id/local-authority/38,Oxfordshire County Council,FOSTERING MAIN,5549,B*Fostering Allowance - Regulation 38,17/03/2020,3110715520,577,Redacted Personal Data
http://statistics.data.gov.uk/id/local-authority/38,Oxfordshire County Council,Support at Home 65+ Physical Support,5689,,03/03/2020,3110704960,577.24,Caremark (West Oxfordshire & Cherwe
http://statistics.data.gov.uk/id/local-authority/38,Oxfordshire County Council,Delegated Health Tasks  - Over 65,5691,,16/03/2020,3110713133,577.45,Enable Health Ltd
http://statistics.data.gov.uk/id/local-authority/38,Oxfordshire County Council,Early Years SEN Funding,5537,Payments to Other Establishments,09/03/2020,3110707885,577.5,Banbury School Day Nursery Ltd
http://statistics.data.gov.uk/id/local-authority/38,Oxfordshire County Council,Union Street,4122,Other premises related costs,03/03/2020,2200742876,577.5,Ecolab Ltd (Pest Division)
http://statistics.data.gov.uk/id/local-authority/38,Oxfordshire County Council,AIDS & ADPT TEAM,4450,Disability Aids and Equipment,04/03/2020,2200743015,577.5,Oxford University Hospitals NHS Tru
http://statistics.data.gov.uk/id/local-authority/38,Oxfordshire County Council,,1448,Blackfield Inc & Exp A/c,16/03/2020,3110713285,577.85,OCC One Time Vendor
http://statistics.data.gov.uk/id/local-authority/38,Oxfordshire County Council,Support at Home 65+ Physical Support,5698,,25/03/2020,3110718723,577.99,Day & Night Care Assistance
http://statistics.data.gov.uk/id/local-authority/38,Oxfordshire County Council,LIBRARY COLLECTIONS,4539,"Books, DVDs and CDs",25/03/2020,3110718454,578.22,ASKEWS & HOLTS LIBRARY SERVICES LTD
http://statistics.data.gov.uk/id/local-authority/38,Oxfordshire County Council,Support at Home 65+ Physical Support,5698,,25/03/2020,3110718891,578.42,Day & Night Care Assistance
http://statistics.data.gov.uk/id/local-authority/38,Oxfordshire County Council,ContrO ASC Payments Control Account,5554,Childrens' Social Care - Direct Payments,26/03/2020,3110719321,578.96,Redacted Personal Data
http://statistics.data.gov.uk/id/local-authority/38,Oxfordshire County Council,Support at Home 65+ Physical Support,5689,,03/03/2020,3110705423,579.52,Greigcare Home Service
http://statistics.data.gov.uk/id/local-authority/38,Oxfordshire County Council,2 YEAR OLD FUNDING,5537,Payments to Other Establishments,31/03/2020,3110722465,579.6,Sylwia Horozaniecka
http://statistics.data.gov.uk/id/local-authority/38,Oxfordshire County Council,2 YEAR OLD FUNDING,5537,Payments to Other Establishments,31/03/2020,3110722477,579.6,The Sunshine Centre
http://statistics.data.gov.uk/id/local-authority/38,Oxfordshire County Council,2 YEAR OLD FUNDING,5537,Payments to Other Establishments,31/03/2020,3110722483,579.6,Tina Farmer
http://statistics.data.gov.uk/id/local-authority/38,Oxfordshire County Council,Support at Home U65 Mental Health,5689,,03/03/2020,3110705050,579.66,Casa Care Ltd
http://statistics.data.gov.uk/id/local-authority/38,Oxfordshire County Council,DEPUTY DIRECTOR &MAN,3942,Hire of Accommodation and Facilities,12/03/2020,2200746783,580,NYS CORPORATE LTD
http://statistics.data.gov.uk/id/local-authority/38,Oxfordshire County Council,SEN TRANSPORT,5227,Other Transport Arrangements,25/03/2020,3110718284,580,Oxon Transport Services Ltd
http://statistics.data.gov.uk/id/local-authority/38,Oxfordshire County Council,Support at Home U65 Physical Support,5899,Social Care - Direct Payments,17/03/2020,3110714695,580,Purple Conversation Com In Co (DP)
http://statistics.data.gov.uk/id/local-authority/38,Oxfordshire County Council,IN YEAR FAIR ACCESS,5537,Payments to Other Establishments,31/03/2020,3110722108,580,The Henry Box Academy
http://statistics.data.gov.uk/id/local-authority/38,Oxfordshire County Council,SEN TRANSPORT,4330,Transport to School Activities,23/03/2020,3110716545,580,The Oxfordshire Taxi Company Ltd T/
http://statistics.data.gov.uk/id/local-authority/38,Oxfordshire County Council,ASSESSMENT TEAM NORT,4494,Purchase of IT Equipment,20/03/2020,2200750000,580,TOTAL COMPUTERS NETWORK LTD
http://statistics.data.gov.uk/id/local-authority/38,Oxfordshire County Council,,1162,VAT - Input Adjustment,10/03/2020,3110706981,580,Weightmans LLP
http://statistics.data.gov.uk/id/local-authority/38,Oxfordshire County Council,,1162,VAT - Input Adjustment,18/03/2020,3110716084,580,Weightmans LLP
http://statistics.data.gov.uk/id/local-authority/38,Oxfordshire County Council,Contingency Home Care,5689,,31/03/2020,3110721340,580.03,Oxford University Hospitals NHS FT
http://statistics.data.gov.uk/id/local-authority/38,Oxfordshire County Council,Support at Home 65+ Physical Support,5693,,18/03/2020,3110715942,580.52,1st Homecare (Oxford) Ltd
http://statistics.data.gov.uk/id/local-authority/38,Oxfordshire County Council,Support at Home U65 Learning Disability,5899,Social Care - Direct Payments,17/03/2020,3110713641,581.4,Purple Conversation Com In Co (DP)
http://statistics.data.gov.uk/id/local-authority/38,Oxfordshire County Council,Support at Home 65+ Physical Support,5698,,25/03/2020,3110718713,581.49,Day & Night Care Assistance
http://statistics.data.gov.uk/id/local-authority/38,Oxfordshire County Council,NURSERY ED FUND,5537,Payments to Other Establishments,04/03/2020,3110703576,581.76,Redacted Personal Data
http://statistics.data.gov.uk/id/local-authority/38,Oxfordshire County Council,NURSERY ED FUND,5537,Payments to Other Establishments,04/03/2020,3110703578,581.76,Redacted Personal Data
http://statistics.data.gov.uk/id/local-authority/38,Oxfordshire County Council,NURSERY ED FUND,5537,Payments to Other Establishments,31/03/2020,3110722460,581.76,Redacted Personal Data
http://statistics.data.gov.uk/id/local-authority/38,Oxfordshire County Council,NURSERY ED FUND,5537,Payments to Other Establishments,04/03/2020,3110703729,581.76,Redacted Personal Data
http://statistics.data.gov.uk/id/local-authority/38,Oxfordshire County Council,NURSERY ED FUND,5537,Payments to Other Establishments,04/03/2020,3110703584,581.76,Catherine Emma Waddy
http://statistics.data.gov.uk/id/local-authority/38,Oxfordshire County Council,NURSERY ED FUND,5537,Payments to Other Establishments,04/03/2020,3110703604,581.76,Claire Clark
http://statistics.data.gov.uk/id/local-authority/38,Oxfordshire County Council,NURSERY ED FUND,5537,Payments to Other Establishments,04/03/2020,3110703689,581.76,Helen Burridge
http://statistics.data.gov.uk/id/local-authority/38,Oxfordshire County Council,NURSERY ED FUND,5537,Payments to Other Establishments,04/03/2020,3110703704,581.76,Jackie Forrester
http://statistics.data.gov.uk/id/local-authority/38,Oxfordshire County Council,NURSERY ED FUND,5537,Payments to Other Establishments,04/03/2020,3110703715,581.76,Joanne Lister
http://statistics.data.gov.uk/id/local-authority/38,Oxfordshire County Council,NURSERY ED FUND,5537,Payments to Other Establishments,04/03/2020,3110703725,581.76,Karen Wheeler
http://statistics.data.gov.uk/id/local-authority/38,Oxfordshire County Council,NURSERY ED FUND,5537,Payments to Other Establishments,04/03/2020,3110703732,581.76,Katie McKechnie
http://statistics.data.gov.uk/id/local-authority/38,Oxfordshire County Council,NURSERY ED FUND,5537,Payments to Other Establishments,04/03/2020,3110703734,581.76,Kelly Chappell
http://statistics.data.gov.uk/id/local-authority/38,Oxfordshire County Council,NURSERY ED FUND,5537,Payments to Other Establishments,04/03/2020,3110703735,581.76,Redacted Personal Data
http://statistics.data.gov.uk/id/local-authority/38,Oxfordshire County Council,NURSERY ED FUND,5537,Payments to Other Establishments,04/03/2020,3110703738,581.76,Kerry Wilkins
http://statistics.data.gov.uk/id/local-authority/38,Oxfordshire County Council,NURSERY ED FUND,5537,Payments to Other Establishments,04/03/2020,3110703757,581.76,Redacted Personal Data
http://statistics.data.gov.uk/id/local-authority/38,Oxfordshire County Council,NURSERY ED FUND,5537,Payments to Other Establishments,31/03/2020,3110722536,581.76,Marcham Playgroup
http://statistics.data.gov.uk/id/local-authority/38,Oxfordshire County Council,NURSERY ED FUND,5537,Payments to Other Establishments,04/03/2020,3110703790,581.76,Maria HIckman
http://statistics.data.gov.uk/id/local-authority/38,Oxfordshire County Council,NURSERY ED FUND,5537,Payments to Other Establishments,04/03/2020,3110703792,581.76,Matthew Hills
http://statistics.data.gov.uk/id/local-authority/38,Oxfordshire County Council,NURSERY ED FUND,5537,Payments to Other Establishments,04/03/2020,3110703795,581.76,Melanie Ford
http://statistics.data.gov.uk/id/local-authority/38,Oxfordshire County Council,NURSERY ED FUND,5537,Payments to Other Establishments,04/03/2020,3110703806,581.76,Naomi Lucas
http://statistics.data.gov.uk/id/local-authority/38,Oxfordshire County Council,NURSERY ED FUND,5537,Payments to Other Establishments,04/03/2020,3110703809,581.76,Natalie Took
http://statistics.data.gov.uk/id/local-authority/38,Oxfordshire County Council,NURSERY ED FUND,5537,Payments to Other Establishments,04/03/2020,3110703815,581.76,Nichola Philip
http://statistics.data.gov.uk/id/local-authority/38,Oxfordshire County Council,NURSERY ED FUND,5537,Payments to Other Establishments,04/03/2020,3110703817,581.76,Nicola Broome
http://statistics.data.gov.uk/id/local-authority/38,Oxfordshire County Council,NURSERY ED FUND,5537,Payments to Other Establishments,04/03/2020,3110703851,581.76,Redacted Personal Data
http://statistics.data.gov.uk/id/local-authority/38,Oxfordshire County Council,NURSERY ED FUND,5537,Payments to Other Establishments,04/03/2020,3110703872,581.76,Sally Rosoman
http://statistics.data.gov.uk/id/local-authority/38,Oxfordshire County Council,NURSERY ED FUND,5537,Payments to Other Establishments,04/03/2020,3110703992,581.76,Valerie Robinson
http://statistics.data.gov.uk/id/local-authority/38,Oxfordshire County Council,NURSERY ED FUND,5537,Payments to Other Establishments,31/03/2020,3110722578,581.76,Watchfield Primary School - Academy
http://statistics.data.gov.uk/id/local-authority/38,Oxfordshire County Council,LANDLORD & TENANT,8004,Design Consultant,10/03/2020,2200745628,581.88,Bluestone Planning
http://statistics.data.gov.uk/id/local-authority/38,Oxfordshire County Council,LEGAL BUDGET,5251,Legal Costs,11/03/2020,2200746292,582.01,LEXTOX
http://statistics.data.gov.uk/id/local-authority/38,Oxfordshire County Council,Community Support Service Wallingford,4232,Vehicle Fuel,06/03/2020,2200744222,582.52,Allstar Business Solutions Ltd
http://statistics.data.gov.uk/id/local-authority/38,Oxfordshire County Council,Support at Home U65 Learning Disability,5682,,12/03/2020,3110712725,582.6,The Brandon Trust
http://statistics.data.gov.uk/id/local-authority/38,Oxfordshire County Council,Support at Home U65 Learning Disability,5682,,12/03/2020,3110712810,582.6,The Brandon Trust
http://statistics.data.gov.uk/id/local-authority/38,Oxfordshire County Council,Support at Home U65 Learning Disability,5696,,25/03/2020,3110718149,582.65,Orders of St John Care Trust
http://statistics.data.gov.uk/id/local-authority/38,Oxfordshire County Council,LAC PUPIL PREMIUM,5537,Payments to Other Establishments,17/03/2020,3110713336,583,John Mason School
http://statistics.data.gov.uk/id/local-authority/38,Oxfordshire County Council,BBCF,5394,Other Expenses,11/03/2020,2200746222,583.2,EUCLID LTD
http://statistics.data.gov.uk/id/local-authority/38,Oxfordshire County Council,Support at Home 65+ Physical Support,5698,,25/03/2020,3110718963,583.66,Oxford Private Care
http://statistics.data.gov.uk/id/local-authority/38,Oxfordshire County Council,Support at Home 65+ Physical Support,5899,Social Care - Direct Payments,17/03/2020,3110715324,584,Purple Conversation Com In Co (DP)
http://statistics.data.gov.uk/id/local-authority/38,Oxfordshire County Council,Support at Home 65+ Physical Support,5689,,03/03/2020,3110705871,584.13,PLL Care Services
http://statistics.data.gov.uk/id/local-authority/38,Oxfordshire County Council,Support at Home 65+ Physical Support,5689,,03/03/2020,3110704786,584.23,Caremark (West Oxfordshire & Cherwe
http://statistics.data.gov.uk/id/local-authority/38,Oxfordshire County Council,Support at Home 65+ Physical Support,5899,Social Care - Direct Payments,17/03/2020,3110714990,584.6,Purple Conversation Com In Co (DP)
http://statistics.data.gov.uk/id/local-authority/38,Oxfordshire County Council,,1448,Blackfield Inc & Exp A/c,16/03/2020,3110713282,585,OCC One Time Vendor
http://statistics.data.gov.uk/id/local-authority/38,Oxfordshire County Council,SEN TRANSPORT,4330,Transport to School Activities,25/03/2020,3110718326,585,Oxon Transport Services Ltd
http://statistics.data.gov.uk/id/local-authority/38,Oxfordshire County Council,Support at Home 65+ Physical Support,5899,Social Care - Direct Payments,17/03/2020,3110714108,585,Redacted Personal Data
http://statistics.data.gov.uk/id/local-authority/38,Oxfordshire County Council,Continuing Care - Support at Home - U65,5691,,30/03/2020,3110719725,585.14,THORNBURY NURSING SERVICES
http://statistics.data.gov.uk/id/local-authority/38,Oxfordshire County Council,Contingency Home Care,5689,,03/03/2020,3110705812,585.36,Oxford University Hospitals NHS FT
http://statistics.data.gov.uk/id/local-authority/38,Oxfordshire County Council,Continuing Care - Support at Home - U65,5691,,30/03/2020,3110719726,585.38,THORNBURY NURSING SERVICES
http://statistics.data.gov.uk/id/local-authority/38,Oxfordshire County Council,Support at Home 65+ Learning Disability,5698,,25/03/2020,3110718843,585.43,Day & Night Care Assistance
http://statistics.data.gov.uk/id/local-authority/38,Oxfordshire County Council,Support at Home U65 Autism /Abated,5691,,12/03/2020,3110712885,585.6,Style Acre
http://statistics.data.gov.uk/id/local-authority/38,Oxfordshire County Council,Support at Home 65+ Physical Support,5689,,03/03/2020,3110705000,585.63,Caretree Ltd
http://statistics.data.gov.uk/id/local-authority/38,Oxfordshire County Council,FAM GRP CONFERENCES,5668,Technical and Professional Consultant F,26/03/2020,2200752025,585.86,Jessica Howards
http://statistics.data.gov.uk/id/local-authority/38,Oxfordshire County Council,Support at Home U65 Learning Disability,5899,Social Care - Direct Payments,17/03/2020,3110714114,586.56,Redacted Personal Data
http://statistics.data.gov.uk/id/local-authority/38,Oxfordshire County Council,CHC Fast Track - Sup at Homes - Over 65,5691,,16/03/2020,3110713159,586.64,Bluebird Care (Oxford South & West)
http://statistics.data.gov.uk/id/local-authority/38,Oxfordshire County Council,Support at Home U65 MH OBC Contract,5689,,03/03/2020,3110705936,586.73,Response Organisation
http://statistics.data.gov.uk/id/local-authority/38,Oxfordshire County Council,Support at Home 65+ Physical Support,5698,,25/03/2020,3110718973,586.77,Oxford Private Care
http://statistics.data.gov.uk/id/local-authority/38,Oxfordshire County Council,Support at Home 65+ Physical Support,5689,,31/03/2020,3110720812,586.86,Caremark (West Oxfordshire & Cherwe
http://statistics.data.gov.uk/id/local-authority/38,Oxfordshire County Council,Oxfordshire Safeguarding Adults Board,4861,Hired and Contracted Services,24/03/2020,2200750846,587,Susan Ross
http://statistics.data.gov.uk/id/local-authority/38,Oxfordshire County Council,Support at Home 65+ Physical Support,5689,,31/03/2020,3110721100,587.31,Greigcare Home Service
http://statistics.data.gov.uk/id/local-authority/38,Oxfordshire County Council,Delegated Health Tasks  - Over 65,5691,,10/03/2020,3110707957,587.9,George Springall Homecare
http://statistics.data.gov.uk/id/local-authority/38,Oxfordshire County Council,Support at Home U65 Learning Disability,5689,,31/03/2020,3110720879,587.91,Oxfordshire Crossroads
http://statistics.data.gov.uk/id/local-authority/38,Oxfordshire County Council,FOSTERING MAIN,5549,B*Fostering Allowance - Regulation 38,17/03/2020,3110715582,588,Redacted Personal Data
http://statistics.data.gov.uk/id/local-authority/38,Oxfordshire County Council,FOSTERING MAIN,5549,B*Fostering Allowance - Regulation 38,17/03/2020,3110715523,588,Redacted Personal Data
http://statistics.data.gov.uk/id/local-authority/38,Oxfordshire County Council,FOSTERING MAIN,5549,B*Fostering Allowance - Regulation 38,17/03/2020,3110715578,588,Redacted Personal Data
http://statistics.data.gov.uk/id/local-authority/38,Oxfordshire County Council,Support at Home 65+ Physical Support,5689,,31/03/2020,3110720924,588.49,Oxfordshire Crossroads
http://statistics.data.gov.uk/id/local-authority/38,Oxfordshire County Council,Support at Home 65+ Physical Support,5689,,03/03/2020,3110705521,588.67,Harino Care
http://statistics.data.gov.uk/id/local-authority/38,Oxfordshire County Council,Contingency Home Care,5689,,31/03/2020,3110721332,588.7,Oxford University Hospitals NHS FT
http://statistics.data.gov.uk/id/local-authority/38,Oxfordshire County Council,Family Solutions Central,5227,Other Transport Arrangements,10/03/2020,3110706877,589,001 Alpha Cars Ltd
http://statistics.data.gov.uk/id/local-authority/38,Oxfordshire County Council,LAC PUPIL PREMIUM,5537,Payments to Other Establishments,17/03/2020,3110713339,589,Larchfield Primary and Nursery Scho
http://statistics.data.gov.uk/id/local-authority/38,Oxfordshire County Council,Support at Home U65 Other /Soc Isolation,5690,,11/03/2020,3110708815,589,Style Acre
http://statistics.data.gov.uk/id/local-authority/38,Oxfordshire County Council,Support at Home U65 Learning Disability,5690,,11/03/2020,3110708821,589,Style Acre
http://statistics.data.gov.uk/id/local-authority/38,Oxfordshire County Council,Support at Home U65 Learning Disability,5688,,11/03/2020,3110710340,589,Style Acre
http://statistics.data.gov.uk/id/local-authority/38,Oxfordshire County Council,SI EQUIPMENT,4450,Disability Aids and Equipment,17/03/2020,2200748244,589.39,OPTELEC LTD
http://statistics.data.gov.uk/id/local-authority/38,Oxfordshire County Council,FOSTERING MAIN,5394,Other Expenses,17/03/2020,3110715677,589.4,Redacted Personal Data
http://statistics.data.gov.uk/id/local-authority/38,Oxfordshire County Council,Support at Home 65+ Physical Support,5689,,03/03/2020,3110705492,589.43,Greigcare Home Service
http://statistics.data.gov.uk/id/local-authority/38,Oxfordshire County Council,Support at Home U65 Learning Disability,5690,,11/03/2020,3110708665,589.66,Turnstyle
http://statistics.data.gov.uk/id/local-authority/38,Oxfordshire County Council,TRO TEAM,4790,"Publicity, Promotions and Advertisement",03/03/2020,2200742848,589.87,Tmp (Uk) Ltd
http://statistics.data.gov.uk/id/local-authority/38,Oxfordshire County Council,SEN TRANSPORT,4330,Transport to School Activities,09/03/2020,3110706613,590,The Oxford Minibus Company Ltd
http://statistics.data.gov.uk/id/local-authority/38,Oxfordshire County Council,LAC PUPIL PREMIUM,5537,Payments to Other Establishments,17/03/2020,3110713338,590,The Propeller Academy Trust
http://statistics.data.gov.uk/id/local-authority/38,Oxfordshire County Council,Support at Home 65+ Mental Health,5899,Social Care - Direct Payments,17/03/2020,3110713756,591,Redacted Personal Data
http://statistics.data.gov.uk/id/local-authority/38,Oxfordshire County Council,Contingency Home Care,5689,,03/03/2020,3110705724,591.36,Oxford University Hospitals NHS FT
http://statistics.data.gov.uk/id/local-authority/38,Oxfordshire County Council,SHARED LIVES,5555,Payments to Carers,12/03/2020,3110712694,591.4,Redacted Personal Data
http://statistics.data.gov.uk/id/local-authority/38,Oxfordshire County Council,Support at Home 65+ Physical Support,5689,,03/03/2020,3110705567,591.58,Home Helpers Care Ltd
http://statistics.data.gov.uk/id/local-authority/38,Oxfordshire County Council,Support at Home 65+ Physical Support,5689,,31/03/2020,3110720855,591.65,Caretree Ltd
http://statistics.data.gov.uk/id/local-authority/38,Oxfordshire County Council,Support at Home 65+ Learning Disability,5689,,03/03/2020,3110705902,591.92,Premier Personal Care
http://statistics.data.gov.uk/id/local-authority/38,Oxfordshire County Council,COUNTY PRINT FINSHRS,4705,Printing,18/03/2020,2200748814,592,CLIFFE ENTERPRISE
http://statistics.data.gov.uk/id/local-authority/38,Oxfordshire County Council,Contingency Home Care,5689,,31/03/2020,3110721324,592.03,Oxford University Hospitals NHS FT
http://statistics.data.gov.uk/id/local-authority/38,Oxfordshire County Council,Delegated Health Tasks  - Over 65,5689,,03/03/2020,3110705124,592.22,Oxfordshire Crossroads
http://statistics.data.gov.uk/id/local-authority/38,Oxfordshire County Council,Support at Home 65+ Physical Support,5689,,31/03/2020,3110720785,592.54,Caremark (West Oxfordshire & Cherwe
http://statistics.data.gov.uk/id/local-authority/38,Oxfordshire County Council,Support at Home U65 MH OBC Contract,5689,,31/03/2020,3110721496,592.6,Response Organisation
http://statistics.data.gov.uk/id/local-authority/38,Oxfordshire County Council,Support at Home 65+ Physical Support,5689,,31/03/2020,3110721477,592.72,Premier Personal Care
http://statistics.data.gov.uk/id/local-authority/38,Oxfordshire County Council,LOOKED AFTER CITY 2,4330,Transport to School Activities,10/03/2020,3110707648,593,Redacted Personal Data
http://statistics.data.gov.uk/id/local-authority/38,Oxfordshire County Council,TIDMARSH LANE,4111,Security Costs,04/03/2020,2200742966,593.25,Securipol Ltd
http://statistics.data.gov.uk/id/local-authority/38,Oxfordshire County Council,Support at Home 65+ Physical Support,5689,,31/03/2020,3110721094,593.32,Greigcare Home Service
http://statistics.data.gov.uk/id/local-authority/38,Oxfordshire County Council,VOIDS/VACANCY COSTS,3945,Rent,11/03/2020,3110708519,593.47,Oxford Citizens Housing Association
http://statistics.data.gov.uk/id/local-authority/38,Oxfordshire County Council,Support at Home U65 Learning Disability,5698,,25/03/2020,3110718595,593.64,Bridges Home Care Ltd
http://statistics.data.gov.uk/id/local-authority/38,Oxfordshire County Council,Support at Home U65 Physical Support,5899,Social Care - Direct Payments,17/03/2020,3110714666,593.84,Purple Conversation Com In Co (DP)
http://statistics.data.gov.uk/id/local-authority/38,Oxfordshire County Council,Care Packages & Placements- LD - OCC,5227,Other Transport Arrangements,16/03/2020,3110713234,594,Oxon Transport Services Ltd
http://statistics.data.gov.uk/id/local-authority/38,Oxfordshire County Council,SEN TRANSPORT,5227,Other Transport Arrangements,25/03/2020,3110718339,594,Oxon Transport Services Ltd
http://statistics.data.gov.uk/id/local-authority/38,Oxfordshire County Council,Support at Home U65 Mental Health,5899,Social Care - Direct Payments,17/03/2020,3110714945,594,Purple Conversation Com In Co (DP)
http://statistics.data.gov.uk/id/local-authority/38,Oxfordshire County Council,SEN TRANSPORT,5227,Other Transport Arrangements,23/03/2020,3110716563,594,The Oxfordshire Taxi Company Ltd T/
http://statistics.data.gov.uk/id/local-authority/38,Oxfordshire County Council,Support at Home 65+ Physical Support,5689,,31/03/2020,3110721016,594.28,Golden Services Care Ltd
http://statistics.data.gov.uk/id/local-authority/38,Oxfordshire County Council,Support at Home 65+ Physical Support,5698,,25/03/2020,3110718818,594.64,Day & Night Care Assistance
http://statistics.data.gov.uk/id/local-authority/38,Oxfordshire County Council,Care Homes - Over 65 Physical Sypport,5686,,11/03/2020,3110708867,594.86,Orders of St John
http://statistics.data.gov.uk/id/local-authority/38,Oxfordshire County Council,SEN TRANSPORT,4330,Transport to School Activities,09/03/2020,3110706532,594.9,Charlies Taxis Ltd
http://statistics.data.gov.uk/id/local-authority/38,Oxfordshire County Council,TRANSPORT COSTS,4330,Transport to School Activities,04/03/2020,3110706269,595,Cherwell Cars
http://statistics.data.gov.uk/id/local-authority/38,Oxfordshire County Council,SEN Miscellaneous Expenditure,4861,Hired and Contracted Services,23/03/2020,2200750303,595,Ian D Ll Jones
http://statistics.data.gov.uk/id/local-authority/38,Oxfordshire County Council,BULLINGDON PRISON,4525,Furniture,30/03/2020,2200753503,595,Opening the Book
http://statistics.data.gov.uk/id/local-authority/38,Oxfordshire County Council,Support at Home U65 Learning Disability,5899,Social Care - Direct Payments,17/03/2020,3110713983,595.92,Purple Conversation Com In Co (DP)
http://statistics.data.gov.uk/id/local-authority/38,Oxfordshire County Council,FOSTERING MAIN,5549,B*Fostering Allowance - Regulation 38,17/03/2020,3110715684,595.98,Redacted Personal Data
http://statistics.data.gov.uk/id/local-authority/38,Oxfordshire County Council,Support at Home U65 Physical Support,5899,Social Care - Direct Payments,17/03/2020,3110713771,596,Purple Conversation Com In Co (DP)
http://statistics.data.gov.uk/id/local-authority/38,Oxfordshire County Council,Support at Home U65 Physical Support,5899,Social Care - Direct Payments,17/03/2020,3110714601,596.08,Purple Conversation Com In Co (DP)
http://statistics.data.gov.uk/id/local-authority/38,Oxfordshire County Council,Support at Home U65 Mental Health,5689,,31/03/2020,3110720866,596.53,Casa Care Ltd
http://statistics.data.gov.uk/id/local-authority/38,Oxfordshire County Council,Urgent Response,5689,,31/03/2020,3110720966,596.53,Day and Nightcare Assistance
http://statistics.data.gov.uk/id/local-authority/38,Oxfordshire County Council,Delegated Health Tasks  - Over 65,5691,,03/03/2020,3110704234,596.84,Bluebird Care (Oxford South & West)
http://statistics.data.gov.uk/id/local-authority/38,Oxfordshire County Council,Delegated Health Tasks  - Under 65,5691,,03/03/2020,3110704276,596.84,Bluebird Care (Oxford South & West)
http://statistics.data.gov.uk/id/local-authority/38,Oxfordshire County Council,Delegated Health Tasks  - Over 65,5691,,23/03/2020,3110716781,596.84,Bluebird Care (Oxford South & West)
http://statistics.data.gov.uk/id/local-authority/38,Oxfordshire County Council,Support at Home 65+ Physical Support,5698,,25/03/2020,3110718557,597.13,Bridges Home Care Ltd
http://statistics.data.gov.uk/id/local-authority/38,Oxfordshire County Council,Support at Home U65 Learning Disability,5696,,25/03/2020,3110718175,597.48,Orders of St John Care Trust
http://statistics.data.gov.uk/id/local-authority/38,Oxfordshire County Council,Support at Home U65 Learning Disability,5690,,11/03/2020,3110708138,597.86,H F TRUST LTD
http://statistics.data.gov.uk/id/local-authority/38,Oxfordshire County Council,Support at Home U65 Learning Disability,5690,,11/03/2020,3110708489,597.86,MacIntyre Care (Womaston)
http://statistics.data.gov.uk/id/local-authority/38,Oxfordshire County Council,Support at Home U65 Learning Disability,5690,,11/03/2020,3110708543,597.86,MacIntyre Care (Womaston)
http://statistics.data.gov.uk/id/local-authority/38,Oxfordshire County Council,Support at Home U65 Learning Disability,5689,,03/03/2020,3110705082,597.86,Oxfordshire Crossroads
http://statistics.data.gov.uk/id/local-authority/38,Oxfordshire County Council,Support at Home 65+ Physical Support,5689,,31/03/2020,3110721060,597.92,Greigcare Home Service
http://statistics.data.gov.uk/id/local-authority/38,Oxfordshire County Council,Support at Home U65 Physical Support,5689,,31/03/2020,3110721450,597.98,PLL Care Services
http://statistics.data.gov.uk/id/local-authority/38,Oxfordshire County Council,Support at Home U65 Learning Disability,5697,,04/03/2020,3110706130,598,Stepping Stones
http://statistics.data.gov.uk/id/local-authority/38,Oxfordshire County Council,CHC Fast Track - Sup at Homes - Over 65,5691,,03/03/2020,3110704267,598,Sue Ryder
http://statistics.data.gov.uk/id/local-authority/38,Oxfordshire County Council,MAINSTREAM-PRIMARY,4330,Transport to School Activities,10/03/2020,3110706873,598.5,Town Cars
http://statistics.data.gov.uk/id/local-authority/38,Oxfordshire County Council,MAINSTREAM-SECONDARY,4330,Transport to School Activities,10/03/2020,3110706876,598.5,Town Cars
http://statistics.data.gov.uk/id/local-authority/38,Oxfordshire County Council,Planned preventative Maintenance,3787,Premises Repairs,30/03/2020,2200753368,598.5,Whitco Catering & Bakery Equipment
http://statistics.data.gov.uk/id/local-authority/38,Oxfordshire County Council,Support at Home U65 MH OBC Contract,5689,,03/03/2020,3110705932,599.45,Response Organisation
http://statistics.data.gov.uk/id/local-authority/38,Oxfordshire County Council,Support at Home U65 MH OBC Contract,5689,,31/03/2020,3110721525,599.45,Response Organisation
http://statistics.data.gov.uk/id/local-authority/38,Oxfordshire County Council,School Readiness,4539,"Books, DVDs and CDs",10/03/2020,2200745809,599.73,Blackwell UK Ltd
http://statistics.data.gov.uk/id/local-authority/38,Oxfordshire County Council,NURSERY ED FUND,5537,Payments to Other Establishments,04/03/2020,3110703885,599.94,Sarahs Childminding Services
http://statistics.data.gov.uk/id/local-authority/38,Oxfordshire County Council,SEN TRANSPORT,5227,Other Transport Arrangements,23/03/2020,3110716407,600,1St Taxis
http://statistics.data.gov.uk/id/local-authority/38,Oxfordshire County Council,SEN TRANSPORT,5227,Other Transport Arrangements,23/03/2020,3110716415,600,1St Taxis
http://statistics.data.gov.uk/id/local-authority/38,Oxfordshire County Council,SEN TRANSPORT,5227,Other Transport Arrangements,10/03/2020,3110707765,600,AKR Ltd
http://statistics.data.gov.uk/id/local-authority/38,Oxfordshire County Council,SEN TRANSPORT,5227,Other Transport Arrangements,26/03/2020,3110719564,600,C&M Management Services Ltd
http://statistics.data.gov.uk/id/local-authority/38,Oxfordshire County Council,Support at Home U65 Learning Disability,5537,Payments to Other Establishments,11/03/2020,3110708195,600,Derwen College
http://statistics.data.gov.uk/id/local-authority/38,Oxfordshire County Council,Support at Home 65+ Mental Health,5899,Social Care - Direct Payments,17/03/2020,3110713761,600,Redacted Personal Data
http://statistics.data.gov.uk/id/local-authority/38,Oxfordshire County Council,MAINSTREAM-PRIMARY,4330,Transport to School Activities,15/03/2020,3110712994,600,Go Green Taxis
http://statistics.data.gov.uk/id/local-authority/38,Oxfordshire County Council,MAINSTREAM-PRIMARY,4330,Transport to School Activities,15/03/2020,3110712996,600,Go Green Taxis
http://statistics.data.gov.uk/id/local-authority/38,Oxfordshire County Council,SEN TRANSPORT,5227,Other Transport Arrangements,02/03/2020,3110704073,600,Henley Taxis Ltd
http://statistics.data.gov.uk/id/local-authority/38,Oxfordshire County Council,SEN TRANSPORT,5227,Other Transport Arrangements,02/03/2020,3110704082,600,Henley Taxis Ltd
http://statistics.data.gov.uk/id/local-authority/38,Oxfordshire County Council,SEN TRANSPORT,5227,Other Transport Arrangements,02/03/2020,3110704084,600,Henley Taxis Ltd
http://statistics.data.gov.uk/id/local-authority/38,Oxfordshire County Council,SEN TRANSPORT,5227,Other Transport Arrangements,02/03/2020,3110704095,600,Henley Taxis Ltd
http://statistics.data.gov.uk/id/local-authority/38,Oxfordshire County Council,SEN TRANSPORT,5227,Other Transport Arrangements,02/03/2020,3110704097,600,Henley Taxis Ltd
http://statistics.data.gov.uk/id/local-authority/38,Oxfordshire County Council,SEN TRANSPORT,5227,Other Transport Arrangements,02/03/2020,3110704099,600,Henley Taxis Ltd
http://statistics.data.gov.uk/id/local-authority/38,Oxfordshire County Council,SEN TRANSPORT,5227,Other Transport Arrangements,02/03/2020,3110704102,600,Henley Taxis Ltd
http://statistics.data.gov.uk/id/local-authority/38,Oxfordshire County Council,RECRUITMENT+MEDICALS,3200,Staff Advertising - General,25/03/2020,2200751396,600,HR Solutiuons Hub Ltd
http://statistics.data.gov.uk/id/local-authority/38,Oxfordshire County Council,Catering Management Soft FM,4665,Catering,18/03/2020,2200748894,600,LACA Ltd
http://statistics.data.gov.uk/id/local-authority/38,Oxfordshire County Council,MUSIC UNALLOCABLE,5668,Technical and Professional Consultant F,11/03/2020,2200746079,600,LEICESTERSHIRE COUNTY COUNCIL
http://statistics.data.gov.uk/id/local-authority/38,Oxfordshire County Council,SEN TRANSPORT,5227,Other Transport Arrangements,10/03/2020,3110707830,600,Luxicars Ltd
http://statistics.data.gov.uk/id/local-authority/38,Oxfordshire County Council,SEN TRANSPORT,5227,Other Transport Arrangements,10/03/2020,3110707832,600,Luxicars Ltd
http://statistics.data.gov.uk/id/local-authority/38,Oxfordshire County Council,SEN TRANSPORT,5227,Other Transport Arrangements,10/03/2020,3110707839,600,Luxicars Ltd
http://statistics.data.gov.uk/id/local-authority/38,Oxfordshire County Council,SEN TRANSPORT,5227,Other Transport Arrangements,10/03/2020,3110707847,600,Luxicars Ltd
http://statistics.data.gov.uk/id/local-authority/38,Oxfordshire County Council,SEN TRANSPORT,5227,Other Transport Arrangements,10/03/2020,3110707852,600,Luxicars Ltd
http://statistics.data.gov.uk/id/local-authority/38,Oxfordshire County Council,COMM DRAWDOWN FUNDNG,8004,Design Consultant,05/03/2020,2200743931,600,Mewies Engineering Consultants Ltd
http://statistics.data.gov.uk/id/local-authority/38,Oxfordshire County Council,Childminders,4940,Other Services,17/03/2020,2200748537,600,My Learning Tree Ltd
http://statistics.data.gov.uk/id/local-authority/38,Oxfordshire County Council,LAC PUPIL PREMIUM,5537,Payments to Other Establishments,17/03/2020,3110713351,600,Oakhurst Primary School
http://statistics.data.gov.uk/id/local-authority/38,Oxfordshire County Council,Childminders,4861,Hired and Contracted Services,12/03/2020,3110712871,600,OCC One Time Vendor
http://statistics.data.gov.uk/id/local-authority/38,Oxfordshire County Council,Childminders,4861,Hired and Contracted Services,12/03/2020,3110712872,600,OCC One Time Vendor
http://statistics.data.gov.uk/id/local-authority/38,Oxfordshire County Council,Childminders,4861,Hired and Contracted Services,12/03/2020,3110712873,600,OCC One Time Vendor
http://statistics.data.gov.uk/id/local-authority/38,Oxfordshire County Council,Childminders,4861,Hired and Contracted Services,12/03/2020,3110712874,600,OCC One Time Vendor
http://statistics.data.gov.uk/id/local-authority/38,Oxfordshire County Council,Childminders,4861,Hired and Contracted Services,19/03/2020,3110716264,600,OCC One Time Vendor
http://statistics.data.gov.uk/id/local-authority/38,Oxfordshire County Council,Central FSS Early Help - Barton,4940,Other Services,20/03/2020,3110716343,600,OCC One Time Vendor
http://statistics.data.gov.uk/id/local-authority/38,Oxfordshire County Council,SEN Miscellaneous Expenditure,5537,Payments to Other Establishments,25/03/2020,3110717563,600,OCC One Time Vendor
http://statistics.data.gov.uk/id/local-authority/38,Oxfordshire County Council,SEN Miscellaneous Expenditure,5537,Payments to Other Establishments,25/03/2020,3110717564,600,OCC One Time Vendor
http://statistics.data.gov.uk/id/local-authority/38,Oxfordshire County Council,MENTAL CAPACITY,5380,"Author, Speaker and Lecturer Fees",31/03/2020,3110719801,600,OCC One Time Vendor
http://statistics.data.gov.uk/id/local-authority/38,Oxfordshire County Council,"Education, Employment & Training Team",5962,General Support Service and LMS Expenditure,17/03/2020,2200748301,600,Outstanding Careers
http://statistics.data.gov.uk/id/local-authority/38,Oxfordshire County Council,Care Packages & Placements- LD - OCC,5227,Other Transport Arrangements,18/03/2020,3110715800,600,Oxon Transport Services Ltd
http://statistics.data.gov.uk/id/local-authority/38,Oxfordshire County Council,TRANSPORT COSTS,5227,Other Transport Arrangements,18/03/2020,3110715851,600,Oxon Transport Services Ltd
http://statistics.data.gov.uk/id/local-authority/38,Oxfordshire County Council,SEN TRANSPORT,5227,Other Transport Arrangements,25/03/2020,3110718232,600,Oxon Transport Services Ltd
http://statistics.data.gov.uk/id/local-authority/38,Oxfordshire County Council,SEN TRANSPORT,5227,Other Transport Arrangements,25/03/2020,3110718240,600,Oxon Transport Services Ltd
http://statistics.data.gov.uk/id/local-authority/38,Oxfordshire County Council,SEN TRANSPORT,5227,Other Transport Arrangements,25/03/2020,3110718243,600,Oxon Transport Services Ltd
http://statistics.data.gov.uk/id/local-authority/38,Oxfordshire County Council,SEN TRANSPORT,5227,Other Transport Arrangements,25/03/2020,3110718252,600,Oxon Transport Services Ltd
http://statistics.data.gov.uk/id/local-authority/38,Oxfordshire County Council,SEN TRANSPORT,5227,Other Transport Arrangements,25/03/2020,3110718258,600,Oxon Transport Services Ltd
http://statistics.data.gov.uk/id/local-authority/38,Oxfordshire County Council,SEN TRANSPORT,5227,Other Transport Arrangements,25/03/2020,3110718277,600,Oxon Transport Services Ltd
http://statistics.data.gov.uk/id/local-authority/38,Oxfordshire County Council,SEN TRANSPORT,5227,Other Transport Arrangements,25/03/2020,3110718279,600,Oxon Transport Services Ltd
http://statistics.data.gov.uk/id/local-authority/38,Oxfordshire County Council,SEN TRANSPORT,5227,Other Transport Arrangements,25/03/2020,3110718301,600,Oxon Transport Services Ltd
http://statistics.data.gov.uk/id/local-authority/38,Oxfordshire County Council,SEN TRANSPORT,5227,Other Transport Arrangements,25/03/2020,3110718337,600,Oxon Transport Services Ltd
http://statistics.data.gov.uk/id/local-authority/38,Oxfordshire County Council,SEN TRANSPORT,5227,Other Transport Arrangements,25/03/2020,3110718341,600,Oxon Transport Services Ltd
http://statistics.data.gov.uk/id/local-authority/38,Oxfordshire County Council,SEN TRANSPORT,5227,Other Transport Arrangements,25/03/2020,3110718345,600,Oxon Transport Services Ltd
http://statistics.data.gov.uk/id/local-authority/38,Oxfordshire County Council,SEN TRANSPORT,5227,Other Transport Arrangements,25/03/2020,3110718349,600,Oxon Transport Services Ltd
http://statistics.data.gov.uk/id/local-authority/38,Oxfordshire County Council,SEN TRANSPORT,5227,Other Transport Arrangements,25/03/2020,3110718352,600,Oxon Transport Services Ltd
http://statistics.data.gov.uk/id/local-authority/38,Oxfordshire County Council,SEN TRANSPORT,5227,Other Transport Arrangements,25/03/2020,3110718369,600,Oxon Transport Services Ltd
http://statistics.data.gov.uk/id/local-authority/38,Oxfordshire County Council,SEN TRANSPORT,5227,Other Transport Arrangements,25/03/2020,3110718390,600,Oxon Transport Services Ltd
http://statistics.data.gov.uk/id/local-authority/38,Oxfordshire County Council,SEN TRANSPORT,5227,Other Transport Arrangements,25/03/2020,3110718404,600,Oxon Transport Services Ltd
http://statistics.data.gov.uk/id/local-authority/38,Oxfordshire County Council,SEN TRANSPORT,5227,Other Transport Arrangements,25/03/2020,3110718412,600,Oxon Transport Services Ltd
http://statistics.data.gov.uk/id/local-authority/38,Oxfordshire County Council,SEN TRANSPORT,5227,Other Transport Arrangements,25/03/2020,3110718418,600,Oxon Transport Services Ltd
http://statistics.data.gov.uk/id/local-authority/38,Oxfordshire County Council,SEN TRANSPORT,5227,Other Transport Arrangements,25/03/2020,3110718421,600,Oxon Transport Services Ltd
http://statistics.data.gov.uk/id/local-authority/38,Oxfordshire County Council,Support at Home U65 Learning Disability,5899,Social Care - Direct Payments,17/03/2020,3110713798,600,Purple Conversation Com In Co (DP)
http://statistics.data.gov.uk/id/local-authority/38,Oxfordshire County Council,Support at Home U65 Learning Disability,5899,Social Care - Direct Payments,17/03/2020,3110714124,600,Purple Conversation Com In Co (DP)
http://statistics.data.gov.uk/id/local-authority/38,Oxfordshire County Council,Support at Home 65+ Physical Support,5899,Social Care - Direct Payments,17/03/2020,3110714544,600,Purple Conversation Com In Co (DP)
http://statistics.data.gov.uk/id/local-authority/38,Oxfordshire County Council,Support at Home U65 Physical Support,5899,Social Care - Direct Payments,17/03/2020,3110714551,600,Purple Conversation Com In Co (DP)
http://statistics.data.gov.uk/id/local-authority/38,Oxfordshire County Council,Support at Home U65 Learning Disability,5899,Social Care - Direct Payments,17/03/2020,3110714747,600,Purple Conversation Com In Co (DP)
http://statistics.data.gov.uk/id/local-authority/38,Oxfordshire County Council,Support at Home U65 Learning Disability,5899,Social Care - Direct Payments,17/03/2020,3110714749,600,Purple Conversation Com In Co (DP)
http://statistics.data.gov.uk/id/local-authority/38,Oxfordshire County Council,Support at Home U65 Learning Disability,5899,Social Care - Direct Payments,17/03/2020,3110714886,600,Purple Conversation Com In Co (DP)
http://statistics.data.gov.uk/id/local-authority/38,Oxfordshire County Council,Support at Home 65+ Learning Disability,5899,Social Care - Direct Payments,17/03/2020,3110715215,600,Purple Conversation Com In Co (DP)
http://statistics.data.gov.uk/id/local-authority/38,Oxfordshire County Council,Childminders,4940,Other Services,10/03/2020,2200745881,600,S HUGHES
http://statistics.data.gov.uk/id/local-authority/38,Oxfordshire County Council,SEN TRANSPORT,5227,Other Transport Arrangements,10/03/2020,3110707726,600,Schon Executive Cars Ltd
http://statistics.data.gov.uk/id/local-authority/38,Oxfordshire County Council,PD EQUIPMENT,4450,Disability Aids and Equipment,04/03/2020,2200743589,600,Schuchmann LLP
http://statistics.data.gov.uk/id/local-authority/38,Oxfordshire County Council,,1441,Uncleared Misc Income Receipts,23/03/2020,3110716425,600,Redacted Personal Data
http://statistics.data.gov.uk/id/local-authority/38,Oxfordshire County Council,,1441,Uncleared Misc Income Receipts,27/03/2020,3110719596,600,Redacted Personal Data
http://statistics.data.gov.uk/id/local-authority/38,Oxfordshire County Council,LEAVING CARE CITY 2,5415,Residential Activities,24/03/2020,3500069686,600,Redacted Personal Data
http://statistics.data.gov.uk/id/local-authority/38,Oxfordshire County Council,LEAVING CARE CITY 2,5415,Residential Activities,28/03/2020,3500069745,600,Redacted Personal Data
http://statistics.data.gov.uk/id/local-authority/38,Oxfordshire County Council,SEN TRANSPORT,5227,Other Transport Arrangements,23/03/2020,3110716573,600,The Oxfordshire Taxi Company Ltd T/
http://statistics.data.gov.uk/id/local-authority/38,Oxfordshire County Council,SEN TRANSPORT,5227,Other Transport Arrangements,23/03/2020,3110716610,600,The Oxfordshire Taxi Company Ltd T/
http://statistics.data.gov.uk/id/local-authority/38,Oxfordshire County Council,SPECIALISED TRAINING,3105,Training related expenditure,26/03/2020,2200752215,600,Unipart Group Ltd
http://statistics.data.gov.uk/id/local-authority/38,Oxfordshire County Council,LAC PUPIL PREMIUM,5537,Payments to Other Establishments,17/03/2020,3110713392,600,William Morris Primary School
http://statistics.data.gov.uk/id/local-authority/38,Oxfordshire County Council,LAC PUPIL PREMIUM,5537,Payments to Other Establishments,17/03/2020,3110713393,600,Windale Community Primary School
http://statistics.data.gov.uk/id/local-authority/38,Oxfordshire County Council,SEN TRANSPORT,5227,Other Transport Arrangements,10/03/2020,3110707872,600,Woodstock Travel
http://statistics.data.gov.uk/id/local-authority/38,Oxfordshire County Council,Support at Home 65+ Physical Support,5689,,31/03/2020,3110721150,600.32,Home Helpers Care Ltd
http://statistics.data.gov.uk/id/local-authority/38,Oxfordshire County Council,Support at Home U65 MH OBC Contract,5689,,03/03/2020,3110705923,600.53,Response Organisation
http://statistics.data.gov.uk/id/local-authority/38,Oxfordshire County Council,Support at Home 65+ Physical Support,5698,,25/03/2020,3110718778,601.21,Day & Night Care Assistance
http://statistics.data.gov.uk/id/local-authority/38,Oxfordshire County Council,Support at Home 65+ Physical Support,5698,,25/03/2020,3110718790,601.21,Day & Night Care Assistance
http://statistics.data.gov.uk/id/local-authority/38,Oxfordshire County Council,ContrO ASC Payments Control Account,7190,Other Recovered Costs,31/03/2020,3110721595,601.31,THE COTTAGE NURSING HOME
http://statistics.data.gov.uk/id/local-authority/38,Oxfordshire County Council,SM DISABILITIES,5554,Childrens' Social Care - Direct Payments,26/03/2020,3110719444,601.5,Redacted Personal Data
http://statistics.data.gov.uk/id/local-authority/38,Oxfordshire County Council,Support at Home U65 Physical Support,5696,,25/03/2020,3110718156,602.08,Orders of St John Care Trust
http://statistics.data.gov.uk/id/local-authority/38,Oxfordshire County Council,Support at Home 65+ Physical Support,5696,,25/03/2020,3110718087,602.87,Orders of St John Care Trust
http://statistics.data.gov.uk/id/local-authority/38,Oxfordshire County Council,FPT CITY,4940,Other Services,10/03/2020,3110707100,603,Redacted Personal Data
http://statistics.data.gov.uk/id/local-authority/38,Oxfordshire County Council,Support at Home 65+ Physical Support,5698,,25/03/2020,3110718684,603.18,Charterville Care At Home Ltd
http://statistics.data.gov.uk/id/local-authority/38,Oxfordshire County Council,Support at Home U65 Learning Disability,5682,,12/03/2020,3110712659,603.67,The Brandon Trust
http://statistics.data.gov.uk/id/local-authority/38,Oxfordshire County Council,FLEET OPERATIONS,4685,Clothing and Uniforms,12/03/2020,2200746975,603.74,South East Workwear Ltd
http://statistics.data.gov.uk/id/local-authority/38,Oxfordshire County Council,Support at Home 65+ Physical Support,5689,,31/03/2020,3110721097,603.94,Greigcare Home Service
http://statistics.data.gov.uk/id/local-authority/38,Oxfordshire County Council,Support at Home 65+ Mental Health,5899,Social Care - Direct Payments,17/03/2020,3110713491,604,Purple Conversation Com In Co (DP)
http://statistics.data.gov.uk/id/local-authority/38,Oxfordshire County Council,Support at Home 65+ Physical Support,5698,,25/03/2020,3110718563,604.12,Bridges Home Care Ltd
http://statistics.data.gov.uk/id/local-authority/38,Oxfordshire County Council,Support at Home U65 Learning Disability,5227,Other Transport Arrangements,05/03/2020,3110706438,604.19,Unitaxi Ltd
http://statistics.data.gov.uk/id/local-authority/38,Oxfordshire County Council,Support at Home 65+ Physical Support,5698,,25/03/2020,3110718811,604.28,Day & Night Care Assistance
http://statistics.data.gov.uk/id/local-authority/38,Oxfordshire County Council,Support at Home U65 Learning Disability,5696,,25/03/2020,3110718032,604.64,Orders of St John Care Trust
http://statistics.data.gov.uk/id/local-authority/38,Oxfordshire County Council,Support at Home U65 Sensory Support,5899,Social Care - Direct Payments,17/03/2020,3110714356,604.8,Purple Conversation Com In Co (DP)
http://statistics.data.gov.uk/id/local-authority/38,Oxfordshire County Council,Continuing Care - Support at Home - U65,5691,,10/03/2020,3110707916,605,Oxfordshire Crossroads
http://statistics.data.gov.uk/id/local-authority/38,Oxfordshire County Council,SEN TRANSPORT,4330,Transport to School Activities,25/03/2020,3110718332,605,Oxon Transport Services Ltd
http://statistics.data.gov.uk/id/local-authority/38,Oxfordshire County Council,Support at Home U65 Autism /Abated,5899,Social Care - Direct Payments,17/03/2020,3110714802,605.08,Redacted Personal Data
http://statistics.data.gov.uk/id/local-authority/38,Oxfordshire County Council,Support at Home 65+ Physical Support,5689,,03/03/2020,3110705464,605.35,Greigcare Home Service
http://statistics.data.gov.uk/id/local-authority/38,Oxfordshire County Council,SEN TRANSPORT,5227,Other Transport Arrangements,16/03/2020,3110713201,605.7,Transpiration Ltd
http://statistics.data.gov.uk/id/local-authority/38,Oxfordshire County Council,Support at Home 65+ Physical Support,5693,,25/03/2020,3110718167,605.76,PROFESSIONAL CARE SERVICES BUCKS
http://statistics.data.gov.uk/id/local-authority/38,Oxfordshire County Council,NURSERY ED FUND,5537,Payments to Other Establishments,31/03/2020,3110722559,606,St Thomas More Primary School - Aca
http://statistics.data.gov.uk/id/local-authority/38,Oxfordshire County Council,Support at Home 65+ Physical Support,5689,,31/03/2020,3110721083,606.77,Greigcare Home Service
http://statistics.data.gov.uk/id/local-authority/38,Oxfordshire County Council,Support at Home U65 Learning Disability,5690,,11/03/2020,3110708251,606.89,Life Path Trust Ltd
http://statistics.data.gov.uk/id/local-authority/38,Oxfordshire County Council,Support at Home U65 Learning Disability,5690,,11/03/2020,3110708393,606.89,Life Path Trust Ltd
http://statistics.data.gov.uk/id/local-authority/38,Oxfordshire County Council,Support at Home U65 Learning Disability,5690,,11/03/2020,3110708474,606.89,Life Path Trust Ltd
http://statistics.data.gov.uk/id/local-authority/38,Oxfordshire County Council,NURSERY ED FUND,5537,Payments to Other Establishments,31/03/2020,3110722480,607.44,Clanfield Pre-School
http://statistics.data.gov.uk/id/local-authority/38,Oxfordshire County Council,SM DISABILITIES,5554,Childrens' Social Care - Direct Payments,26/03/2020,3110719390,607.63,Purple Conversation Com In Co (DP)
http://statistics.data.gov.uk/id/local-authority/38,Oxfordshire County Council,Support at Home U65 MH OBC Contract,5689,,03/03/2020,3110705938,608.16,Response Organisation
http://statistics.data.gov.uk/id/local-authority/38,Oxfordshire County Council,Support at Home 65+ Physical Support,5693,,04/03/2020,3110706073,608.33,Heritage Healthcare Oxford - South
http://statistics.data.gov.uk/id/local-authority/38,Oxfordshire County Council,Community Support Service Wantage,4232,Vehicle Fuel,06/03/2020,2200744223,608.37,Allstar Business Solutions Ltd
http://statistics.data.gov.uk/id/local-authority/38,Oxfordshire County Council,Support at Home 65+ Learning Disability,5688,,11/03/2020,3110708352,608.44,The Laurels (Witney)
http://statistics.data.gov.uk/id/local-authority/38,Oxfordshire County Council,Contingency Home Care,5689,,03/03/2020,3110705749,608.7,Oxford University Hospitals NHS FT
http://statistics.data.gov.uk/id/local-authority/38,Oxfordshire County Council,Planned preventative Maintenance,3787,Premises Repairs,27/03/2020,2200752390,609.17,Life Environmental Services Ltd
http://statistics.data.gov.uk/id/local-authority/38,Oxfordshire County Council,FAM GRP CONFERENCES,5668,Technical and Professional Consultant F,31/03/2020,2200754132,609.43,Geneva Quarshie
http://statistics.data.gov.uk/id/local-authority/38,Oxfordshire County Council,Support at Home 65+ Physical Support,5689,,31/03/2020,3110721460,609.52,PLL Care Services
http://statistics.data.gov.uk/id/local-authority/38,Oxfordshire County Council,LEAVING CARE CITY 1,3942,Hire of Accommodation and Facilities,10/03/2020,3110706839,610,Redacted Personal Data
http://statistics.data.gov.uk/id/local-authority/38,Oxfordshire County Council,LAC PUPIL PREMIUM,5537,Payments to Other Establishments,17/03/2020,3110713395,610,Windale Community Primary School
http://statistics.data.gov.uk/id/local-authority/38,Oxfordshire County Council,Support at Home U65 Mental Health,5689,,03/03/2020,3110705917,610.34,Response Organisation
http://statistics.data.gov.uk/id/local-authority/38,Oxfordshire County Council,Support at Home U65 Mental Health,5689,,31/03/2020,3110721505,610.34,Response Organisation
http://statistics.data.gov.uk/id/local-authority/38,Oxfordshire County Council,Support at Home U65 MH OBC Contract,5689,,31/03/2020,3110721511,610.34,Response Organisation
http://statistics.data.gov.uk/id/local-authority/38,Oxfordshire County Council,Support at Home U65 MH OBC Contract,5689,,31/03/2020,3110721527,610.34,Response Organisation
http://statistics.data.gov.uk/id/local-authority/38,Oxfordshire County Council,Support at Home U65 Learning Disability,5899,Social Care - Direct Payments,17/03/2020,3110713901,610.71,Redacted Personal Data
http://statistics.data.gov.uk/id/local-authority/38,Oxfordshire County Council,MUSEUM CAFE,4641,Catering Provisions,18/03/2020,2200748986,610.91,Illycaffe UK Ltd
http://statistics.data.gov.uk/id/local-authority/38,Oxfordshire County Council,Support at Home U65 Physical Support,5689,,03/03/2020,3110704420,611.39,Alina Homecare
http://statistics.data.gov.uk/id/local-authority/38,Oxfordshire County Council,Support at Home 65+ Physical Support,5693,,18/03/2020,3110715943,611.93,1st Homecare (Oxford) Ltd
http://statistics.data.gov.uk/id/local-authority/38,Oxfordshire County Council,Support at Home U65 Learning Disability,5899,Social Care - Direct Payments,17/03/2020,3110714962,612,Redacted Personal Data
http://statistics.data.gov.uk/id/local-authority/38,Oxfordshire County Council,Support at Home U65 Physical Support,5899,Social Care - Direct Payments,17/03/2020,3110715072,612,Purple Conversation Com In Co (DP)
http://statistics.data.gov.uk/id/local-authority/38,Oxfordshire County Council,MUSEUMS COLLECTIONS,4940,Other Services,09/03/2020,2200745075,612.13,Restore plc
http://statistics.data.gov.uk/id/local-authority/38,Oxfordshire County Council,SEN TRANSPORT,4330,Transport to School Activities,24/03/2020,3110716962,612.25,A2B Castle Cars Ltd
http://statistics.data.gov.uk/id/local-authority/38,Oxfordshire County Council,Support at Home 65+ Physical Support,5689,,03/03/2020,3110705862,613.64,PLL Care Services
http://statistics.data.gov.uk/id/local-authority/38,Oxfordshire County Council,FOSTERING MAIN,5549,B*Fostering Allowance - Regulation 38,10/03/2020,3110707072,614,Redacted Personal Data
http://statistics.data.gov.uk/id/local-authority/38,Oxfordshire County Council,Early Years SEN Funding,5537,Payments to Other Establishments,27/03/2020,3110719604,614.4,Crowmarsh Pre-School
http://statistics.data.gov.uk/id/local-authority/38,Oxfordshire County Council,Support at Home U65 Learning Disability,5690,,11/03/2020,3110708441,614.77,Life Path Trust Ltd
http://statistics.data.gov.uk/id/local-authority/38,Oxfordshire County Council,LEGAL BUDGET,5251,Legal Costs,31/03/2020,2200754129,614.97,Truemans
http://statistics.data.gov.uk/id/local-authority/38,Oxfordshire County Council,COMMUNICATIONS,5085,Radio Costs,11/03/2020,2200745987,615,Autopage Ltd.
http://statistics.data.gov.uk/id/local-authority/38,Oxfordshire County Council,NURSERY ED FUND,5537,Payments to Other Establishments,31/03/2020,3110722431,615,Banbury School Day Nurse
http://statistics.data.gov.uk/id/local-authority/38,Oxfordshire County Council,NURSERY ED FUND,5537,Payments to Other Establishments,31/03/2020,3110722458,615,Busy Bees Playgroup (Thame)
http://statistics.data.gov.uk/id/local-authority/38,Oxfordshire County Council,Disability Access Fund,5537,Payments to Other Establishments,31/03/2020,3110719814,615,Redacted Personal Data
http://statistics.data.gov.uk/id/local-authority/38,Oxfordshire County Council,TREE MAINT OPS,5526,Payments to Private Contractors,20/03/2020,2200749874,615,Jenks Oxford Ltd
http://statistics.data.gov.uk/id/local-authority/38,Oxfordshire County Council,Disability Access Fund,5537,Payments to Other Establishments,04/03/2020,3110706427,615,Redacted Personal Data
http://statistics.data.gov.uk/id/local-authority/38,Oxfordshire County Council,NURSERY ED FUND,5537,Payments to Other Establishments,31/03/2020,3110722986,615,Kennington Playgroup
http://statistics.data.gov.uk/id/local-authority/38,Oxfordshire County Council,Disability Access Fund,5537,Payments to Other Establishments,04/03/2020,3110706430,615,Little Monkeys Charlbury Limited
http://statistics.data.gov.uk/id/local-authority/38,Oxfordshire County Council,Disability Access Fund,5537,Payments to Other Establishments,04/03/2020,3110706432,615,Little Peeple Nursery
http://statistics.data.gov.uk/id/local-authority/38,Oxfordshire County Council,Disability Access Fund,5537,Payments to Other Establishments,04/03/2020,3110706435,615,Long Wittenham Pre-School
http://statistics.data.gov.uk/id/local-authority/38,Oxfordshire County Council,Disability Access Fund,5537,Payments to Other Establishments,04/03/2020,3110706437,615,Marcham Playgroup
http://statistics.data.gov.uk/id/local-authority/38,Oxfordshire County Council,AGENCY RESID - DISAB,5549,B*Fostering Allowance - Regulation 38,03/03/2020,3110705134,615,Redacted Personal Data
http://statistics.data.gov.uk/id/local-authority/38,Oxfordshire County Council,AGENCY RESID - DISAB,5549,B*Fostering Allowance - Regulation 38,10/03/2020,3110707639,615,Redacted Personal Data
http://statistics.data.gov.uk/id/local-authority/38,Oxfordshire County Council,AGENCY RESID - DISAB,5549,B*Fostering Allowance - Regulation 38,17/03/2020,3110715698,615,Redacted Personal Data
http://statistics.data.gov.uk/id/local-authority/38,Oxfordshire County Council,AGENCY RESID - DISAB,5549,B*Fostering Allowance - Regulation 38,25/03/2020,3110717787,615,Redacted Personal Data
http://statistics.data.gov.uk/id/local-authority/38,Oxfordshire County Council,AGENCY RESID - DISAB,5549,B*Fostering Allowance - Regulation 38,31/03/2020,3110720385,615,Redacted Personal Data
http://statistics.data.gov.uk/id/local-authority/38,Oxfordshire County Council,Disability Access Fund,5537,Payments to Other Establishments,04/03/2020,3110706447,615,St Gregory the Great Catholic
http://statistics.data.gov.uk/id/local-authority/38,Oxfordshire County Council,Disability Access Fund,5537,Payments to Other Establishments,04/03/2020,3110706453,615,Sunningwell Pre-School
http://statistics.data.gov.uk/id/local-authority/38,Oxfordshire County Council,Disability Access Fund,5537,Payments to Other Establishments,04/03/2020,3110706457,615,The Close Day Nursery Opco Ltd
http://statistics.data.gov.uk/id/local-authority/38,Oxfordshire County Council,Disability Access Fund,5537,Payments to Other Establishments,04/03/2020,3110706467,615,Tracey Hedges Childcare
http://statistics.data.gov.uk/id/local-authority/38,Oxfordshire County Council,NURSERY ED FUND,5537,Payments to Other Establishments,31/03/2020,3110722576,615,Treetops Nursery
http://statistics.data.gov.uk/id/local-authority/38,Oxfordshire County Council,Disability Access Fund,5537,Payments to Other Establishments,04/03/2020,3110706469,615,Two by Two Windale
http://statistics.data.gov.uk/id/local-authority/38,Oxfordshire County Council,Disability Access Fund,5537,Payments to Other Establishments,31/03/2020,3110719815,615,Wantage Preschool
http://statistics.data.gov.uk/id/local-authority/38,Oxfordshire County Council,Support at Home U65 Physical Support,5689,,31/03/2020,3110720913,615.48,Oxfordshire Crossroads
http://statistics.data.gov.uk/id/local-authority/38,Oxfordshire County Council,Support at Home 65+ Physical Support,5689,,31/03/2020,3110720824,615.72,Caremark (West Oxfordshire & Cherwe
http://statistics.data.gov.uk/id/local-authority/38,Oxfordshire County Council,Support at Home U65 Physical Support,5899,Social Care - Direct Payments,17/03/2020,3110714781,615.84,Purple Conversation Com In Co (DP)
http://statistics.data.gov.uk/id/local-authority/38,Oxfordshire County Council,SEN TRANSPORT,5227,Other Transport Arrangements,25/03/2020,3110718275,616,Oxon Transport Services Ltd
http://statistics.data.gov.uk/id/local-authority/38,Oxfordshire County Council,Support at Home 65+ Physical Support,5899,Social Care - Direct Payments,17/03/2020,3110713872,616,Purple Conversation Com In Co (DP)
http://statistics.data.gov.uk/id/local-authority/38,Oxfordshire County Council,Support at Home U65 Physical Support,5899,Social Care - Direct Payments,17/03/2020,3110714810,616,Purple Conversation Com In Co (DP)
http://statistics.data.gov.uk/id/local-authority/38,Oxfordshire County Council,Support at Home 65+ Mental Health,5899,Social Care - Direct Payments,17/03/2020,3110714822,616,Purple Conversation Com In Co (DP)
http://statistics.data.gov.uk/id/local-authority/38,Oxfordshire County Council,ECH Central Costs,5688,,11/03/2020,3110708157,616.46,Orders of St John Care Trust
http://statistics.data.gov.uk/id/local-authority/38,Oxfordshire County Council,COMM DRAWDOWN FUNDNG,8102,Payments to main contractor,18/03/2020,2200748990,616.5,Bouygues E&S Infrastructure UK Ltd
http://statistics.data.gov.uk/id/local-authority/38,Oxfordshire County Council,FOSTERING MAIN,5548,B*Fostering - Special Rates & Plus Amou,10/03/2020,3110707081,616.86,Redacted Personal Data
http://statistics.data.gov.uk/id/local-authority/38,Oxfordshire County Council,Support at Home U65 Learning Disability,5899,Social Care - Direct Payments,17/03/2020,3110714916,616.88,Redacted Personal Data
http://statistics.data.gov.uk/id/local-authority/38,Oxfordshire County Council,Delegated Health Tasks  - Over 65,5691,,16/03/2020,3110713145,616.9,Enable Health Ltd
http://statistics.data.gov.uk/id/local-authority/38,Oxfordshire County Council,Support at Home 65+ Physical Support,5698,,25/03/2020,3110718870,616.99,Day & Night Care Assistance
http://statistics.data.gov.uk/id/local-authority/38,Oxfordshire County Council,Housing & Growth Deal Capacity Funding,3942,Hire of Accommodation and Facilities,10/03/2020,2200745940,617,THE INSTITUTION OF CIVIL ENGINEERS
http://statistics.data.gov.uk/id/local-authority/38,Oxfordshire County Council,Support at Home U65 Physical Support,5689,,03/03/2020,3110705456,617.38,Greigcare Home Service
http://statistics.data.gov.uk/id/local-authority/38,Oxfordshire County Council,Support at Home 65+ Physical Support,5689,,31/03/2020,3110720628,617.97,Alina Homecare
http://statistics.data.gov.uk/id/local-authority/38,Oxfordshire County Council,Reading Adoption Support Fund,4859,Medical and Counselling Fees,18/03/2020,2200748858,618,Amanda Bailey - Relax Kids
http://statistics.data.gov.uk/id/local-authority/38,Oxfordshire County Council,Support at Home 65+ Physical Support,5693,,25/03/2020,3110718164,618.38,PROFESSIONAL CARE SERVICES BUCKS
http://statistics.data.gov.uk/id/local-authority/38,Oxfordshire County Council,Support at Home 65+ Physical Support,5696,,25/03/2020,3110717946,618.42,Orders of St John Care Trust
http://statistics.data.gov.uk/id/local-authority/38,Oxfordshire County Council,Support at Home 65+ Physical Support,5696,,25/03/2020,3110718065,618.42,Orders of St John Care Trust
http://statistics.data.gov.uk/id/local-authority/38,Oxfordshire County Council,Support at Home 65+ Physical Support,5696,,25/03/2020,3110718179,618.42,Orders of St John Care Trust
http://statistics.data.gov.uk/id/local-authority/38,Oxfordshire County Council,Support at Home U65 Learning Disability,5690,,11/03/2020,3110708830,618.89,Style Acre
http://statistics.data.gov.uk/id/local-authority/38,Oxfordshire County Council,Support at Home 65+ Mental Health,5689,,03/03/2020,3110705516,618.93,Harino Care
http://statistics.data.gov.uk/id/local-authority/38,Oxfordshire County Council,Support at Home 65+ Physical Support,5698,,25/03/2020,3110719032,619.46,Oxford Private Care
http://statistics.data.gov.uk/id/local-authority/38,Oxfordshire County Council,Support at Home 65+ Physical Support,5689,,31/03/2020,3110720772,619.65,Caremark (West Oxfordshire & Cherwe
http://statistics.data.gov.uk/id/local-authority/38,Oxfordshire County Council,Housing & Growth Deal Capacity Funding,3942,Hire of Accommodation and Facilities,05/03/2020,2200743658,620,CRANFIELD UNIVERSITY
http://statistics.data.gov.uk/id/local-authority/38,Oxfordshire County Council,Planned preventative Maintenance,3787,Premises Repairs,25/03/2020,2200751454,620,Darren Bryan Security Services
http://statistics.data.gov.uk/id/local-authority/38,Oxfordshire County Council,Support at Home 65+ Physical Support,5899,Social Care - Direct Payments,17/03/2020,3110714488,620,Redacted Personal Data
http://statistics.data.gov.uk/id/local-authority/38,Oxfordshire County Council,SEN TRANSPORT,5227,Other Transport Arrangements,25/03/2020,3110718236,620,Oxon Transport Services Ltd
http://statistics.data.gov.uk/id/local-authority/38,Oxfordshire County Council,Support at Home 65+ Physical Support,5899,Social Care - Direct Payments,17/03/2020,3110713867,620,Purple Conversation Com In Co (DP)
http://statistics.data.gov.uk/id/local-authority/38,Oxfordshire County Council,Support at Home 65+ Physical Support,5899,Social Care - Direct Payments,17/03/2020,3110715266,620,Purple Conversation Com In Co (DP)
http://statistics.data.gov.uk/id/local-authority/38,Oxfordshire County Council,MAINSTREAM-SECONDARY,4330,Transport to School Activities,30/03/2020,3110719676,620,Streamline Peppard Taxi
http://statistics.data.gov.uk/id/local-authority/38,Oxfordshire County Council,Support at Home U65 Learning Disability,5690,,11/03/2020,3110708704,620,Style Acre
http://statistics.data.gov.uk/id/local-authority/38,Oxfordshire County Council,Support at Home U65 Learning Disability,5690,,11/03/2020,3110708239,620,The Ice Centre
http://statistics.data.gov.uk/id/local-authority/38,Oxfordshire County Council,SEN TRANSPORT,4330,Transport to School Activities,23/03/2020,3110716606,620,The Oxfordshire Taxi Company Ltd T/
http://statistics.data.gov.uk/id/local-authority/38,Oxfordshire County Council,ASSESSMENT TEAM NORT,4330,Transport to School Activities,23/03/2020,3110716665,620,The Oxfordshire Taxi Company Ltd T/
http://statistics.data.gov.uk/id/local-authority/38,Oxfordshire County Council,Support at Home U65 Learning Disability,5690,,11/03/2020,3110708637,620,Turnstyle
http://statistics.data.gov.uk/id/local-authority/38,Oxfordshire County Council,Support at Home U65 Learning Disability,5690,,11/03/2020,3110708662,620,Turnstyle
http://statistics.data.gov.uk/id/local-authority/38,Oxfordshire County Council,OPERATIONS,4496,Equipment Maintenance Contracts,13/03/2020,2200747519,620.16,Dyaco UK Ltd
http://statistics.data.gov.uk/id/local-authority/38,Oxfordshire County Council,FAM GRP CONFERENCES,5668,Technical and Professional Consultant F,18/03/2020,2200749217,620.2,Sandra Woodward
http://statistics.data.gov.uk/id/local-authority/38,Oxfordshire County Council,Support at Home U65 Other /Soc Isolation,5690,,11/03/2020,3110708653,620.89,Turnstyle
http://statistics.data.gov.uk/id/local-authority/38,Oxfordshire County Council,DISABILITIES TEAM-C,5227,Other Transport Arrangements,31/03/2020,3110719841,621.85,OCC One Time Vendor
http://statistics.data.gov.uk/id/local-authority/38,Oxfordshire County Council,DEPARTMENTAL MANAGE,8102,Payments to main contractor,02/03/2020,2200741905,622,Inside Out Developments Ltd
http://statistics.data.gov.uk/id/local-authority/38,Oxfordshire County Council,LIBRARY COLLECTIONS,4539,"Books, DVDs and CDs",24/03/2020,3110716945,622.17,ASKEWS & HOLTS LIBRARY SERVICES LTD
http://statistics.data.gov.uk/id/local-authority/38,Oxfordshire County Council,FLETCHERS HOUSE SITE,4070,Cleaning services,09/03/2020,2200745294,622.33,Parker Contract Cleaning
http://statistics.data.gov.uk/id/local-authority/38,Oxfordshire County Council,FLETCHERS HOUSE SITE,4070,Cleaning services,30/03/2020,2200753256,622.33,Parker Contract Cleaning
http://statistics.data.gov.uk/id/local-authority/38,Oxfordshire County Council,FOSTERING MAIN,5549,B*Fostering Allowance - Regulation 38,17/03/2020,3110715638,622.9,Redacted Personal Data
http://statistics.data.gov.uk/id/local-authority/38,Oxfordshire County Council,FOSTERING MAIN,5549,B*Fostering Allowance - Regulation 38,03/03/2020,3110704670,622.9,Redacted Personal Data
http://statistics.data.gov.uk/id/local-authority/38,Oxfordshire County Council,Support at Home 65+ Physical Support,5689,,03/03/2020,3110704389,623,Alina Homecare
http://statistics.data.gov.uk/id/local-authority/38,Oxfordshire County Council,LIBRARY COLLECTIONS,4539,"Books, DVDs and CDs",18/03/2020,3110715897,623.58,ASKEWS & HOLTS LIBRARY SERVICES LTD
http://statistics.data.gov.uk/id/local-authority/38,Oxfordshire County Council,Early Years SEN Funding,5537,Payments to Other Establishments,27/03/2020,3110719602,623.7,Faringdon Pre-School
http://statistics.data.gov.uk/id/local-authority/38,Oxfordshire County Council,Early Years SEN Funding,5537,Payments to Other Establishments,03/03/2020,3110706287,623.7,Horspath Nursery
http://statistics.data.gov.uk/id/local-authority/38,Oxfordshire County Council,Support at Home 65+ Physical Support,5689,,31/03/2020,3110721488,623.86,Premier Personal Care
http://statistics.data.gov.uk/id/local-authority/38,Oxfordshire County Council,Support at Home U65 Learning Disability,5693,,18/03/2020,3110715947,624,ADVANCE HOUSING & SUPPORT LTD
http://statistics.data.gov.uk/id/local-authority/38,Oxfordshire County Council,Support at Home 65+ Other /Soc Isolation,5899,Social Care - Direct Payments,17/03/2020,3110713523,624,Redacted Personal Data
http://statistics.data.gov.uk/id/local-authority/38,Oxfordshire County Council,MEADOWBROOK TRANSPT,4330,Transport to School Activities,10/03/2020,3110707868,624,Browns Taxis Ltd
http://statistics.data.gov.uk/id/local-authority/38,Oxfordshire County Council,Support at Home 65+ Physical Support,5899,Social Care - Direct Payments,17/03/2020,3110713673,624,Purple Conversation Com In Co (DP)
http://statistics.data.gov.uk/id/local-authority/38,Oxfordshire County Council,Support at Home 65+ Physical Support,5899,Social Care - Direct Payments,17/03/2020,3110714807,624,Purple Conversation Com In Co (DP)
http://statistics.data.gov.uk/id/local-authority/38,Oxfordshire County Council,Support at Home U65 Physical Support,5899,Social Care - Direct Payments,17/03/2020,3110715372,624,Purple Conversation Com In Co (DP)
http://statistics.data.gov.uk/id/local-authority/38,Oxfordshire County Council,FOSTERING MAIN,5549,B*Fostering Allowance - Regulation 38,10/03/2020,3110707002,624,Redacted Personal Data
http://statistics.data.gov.uk/id/local-authority/38,Oxfordshire County Council,SCHOOLS H&S,4878,Hired and Contracted Services (Curricul,31/03/2020,2200753902,624,Sportsafe UK Ltd
http://statistics.data.gov.uk/id/local-authority/38,Oxfordshire County Council,Support at Home U65 Learning Disability,5899,Social Care - Direct Payments,17/03/2020,3110714402,624.4,Redacted Personal Data
http://statistics.data.gov.uk/id/local-authority/38,Oxfordshire County Council,SERVICE DELIVERY,4685,Clothing and Uniforms,23/03/2020,2200750499,624.43,Oxford Safety Supplies
http://statistics.data.gov.uk/id/local-authority/38,Oxfordshire County Council,Support at Home 65+ Physical Support,5689,,03/03/2020,3110704487,624.63,Allied Health-Services Limited
http://statistics.data.gov.uk/id/local-authority/38,Oxfordshire County Council,Support at Home 65+ Physical Support,5696,,25/03/2020,3110718119,624.65,Orders of St John Care Trust
http://statistics.data.gov.uk/id/local-authority/38,Oxfordshire County Council,Support at Home 65+ Physical Support,5689,,03/03/2020,3110704365,624.88,1 to 1 Care
http://statistics.data.gov.uk/id/local-authority/38,Oxfordshire County Council,Support at Home 65+ Physical Support,5689,,31/03/2020,3110721207,624.91,My Carer Ltd
http://statistics.data.gov.uk/id/local-authority/38,Oxfordshire County Council,INCIDENT RESPONSE,5526,Payments to Private Contractors,06/03/2020,2200744574,625,Acreman's Arboriculture Ltd
http://statistics.data.gov.uk/id/local-authority/38,Oxfordshire County Council,TREE MAINT OPS,5526,Payments to Private Contractors,19/03/2020,2200749841,625,Jenks Oxford Ltd
